Workbook

Sheet Overview of tables
D9: Jyske Bank Disclosure Q2 2024
D10: Reference date 2024-30-06
E12: Jyske Bank Group
E14: Composition of capital
F15: EU KM1 - Key metrics template | M15: Er
F16: EU CC1 - Composition of regulatory own funds
F17: EU CC2 - reconciliation of regulatory own funds to balance sheet in the audited financial statements
E19: Risk Exposure Amount
F20: EU OV1 – Overview of total risk exposure amounts
E22: Credit risk
F23: EU CQ1 - Credit quality of forborne exposures
F24: EU CQ7 - Collateral obtained by taking possession and execution processes
F25: EU CR1 - Performing and non-performing exposures and related provisions.
F26: EU CR2 - Changes in the stock of non-performing loans and advances
F27: EU CR3 – CRM techniques overview: Disclosure of the use of credit risk mitigation techniques
F28: EU CR4 – standardised approach – Credit risk exposure and CRM effects
F29: EU CR5 – standardised approach
F30: EU CR7 – IRB approach – Effect on the RWEAs of credit derivatives used as CRM techniques
F31: EU CR7-A – IRB approach – Disclosure of the extent of the use of CRM techniques
F32: EU CR8 – RWEA flow statements of credit risk exposures under the IRB approach
E34: Countercyclical capital buffer
F35: EU CCyB1 - Geographical distribution of credit exposures relevant for the calculation of the countercyclical buffer
F36: EU CCyB2 - Amount of institution-specific countercyclical capital buffer
E38: Leverage ratio
F39: EU LR1 - LRSum: Summary reconciliation of accounting assets and leverage ratio exposures
F40: EU LR2 - LRCom: Leverage ratio common disclosure
F41: EU LR3 - LRSpl: Split-up of on balance sheet exposures (excluding derivatives, SFTs and exempted exposures)
E43: Liquidity coverage ratio
F44: EU LIQ1 - Quantitative information of LCR
F45: EU LIQ2: Net Stable Funding Ratio
F46: EU LIQB on qualitative information on LCR, which complements template EU LIQ1.
E48: Counterparty credit risk
F49: EU CCR1 – Analysis of CCR exposure by approach
F50: EU CCR2 – Transactions subject to own funds requirements for CVA risk
F51: EU CCR3 – Standardised approach – CCR exposures by regulatory exposure class and risk weights
F52: EU CCR4 – IRB approach – CCR exposures by exposure class and PD scale
F53: EU CCR5 – Composition of collateral for CCR exposures
F54: EU CCR6 – Credit derivatives exposures
F55: EU CCR8 – Exposures to CCPs
E57: Securitisations
F58: EU SEC1 - Securitisation exposures in the non-trading book
F59: EU SEC4 - Securitisation exposures in the non-trading book and associated regulatory capital requirements - institution acting as investor
E61: Market risk
F62: EU MR1 - Market risk under the standardised approach
E64: IRRBB
F65: EU IRRBB1 - Interest rate risks of non-trading book activities
E67: Jyske Realkredit
E69: Composition of capital
F70: EU CC1 - Composition of regulatory own funds
F71: EU CC2 - Reconciliation of regulatory own funds to balance sheet in the audited financial statements
E73: Risk Exposure Amount
F74: EU OV1 – Overview of total risk exposure amounts
E76: Credit risk
F77: EU CQ1 - Credit quality of forborne exposures
F78: EU CQ7 - Collateral obtained by taking possession and execution processes
F79: EU CR1 - Performing and non-performing exposures and related provisions.
F80: EU CR2 - Changes in the stock of non-performing loans and advances
F81: EU CR3 – CRM techniques overview: Disclosure of the use of credit risk mitigation techniques
F82: EU CR4 – standardised approach – Credit risk exposure and CRM effects
F83: EU CR5 – standardised approach
F84: EU CR7 – IRB approach – Effect on the RWEAs of credit derivatives used as CRM techniques
F85: EU CR7-A – IRB approach – Disclosure of the extent of the use of CRM techniques
F86: EU CR8 – RWEA flow statements of credit risk exposures under the IRB approach
E88: Leverage ratio
F89: EU LR1 - LRSum: Summary reconciliation of accounting assets and leverage ratio exposures
F90: EU LR2 - Leverage ratio common disclosure
F91: EU LR3 - LRSpl: Split-up of on balance sheet exposures (excluding derivatives, SFTs and exempted exposures)
E93: Counterparty credit risk
F94: EU CCR3 – Standardised approach – CCR exposures by regulatory exposure class and risk weights
E96: Liquidity coverage ratio
F97: EU LIQ1 - Quantitative information of LCR
F98: EU LIQ2: Net Stable Funding Ratio

Sheet EU KM1
B2: EU KM1 - Key metrics template
D4: a | E4: b | F4: c | G4: d | H4: e
D5: 30.06.2024 | E5: 31.03.2024 | F5: 31.12.2023 | G5: 30.09.2023 | H5: 30.06.2023
C6: Available own funds (amounts)
B7: 1 | C7: Common Equity Tier 1 (CET1) capital | D7: 38361.43512 | E7: 38451.1256 | F7: =38038575006.2/1000000 -> 38038.57501 | G7: 36929.70296 | H7: 35928.77537
B8: 2 | C8: Tier 1 capital | D8: 43198.94012 | E8: 43280.70106 | F8: =41295988525.2/1000000 -> 41295.98853 | G8: 40176.33816 | H8: 39156.13037
B9: 3 | C9: Total capital | D9: 50717.29012 | E9: 50814.60106 | F9: =47408008525.2/1000000 -> 47408.00853 | G9: 46249.30659 | H9: 45161.74037
C10: Risk-weighted exposure amounts
B11: 4 | C11: Total risk-weighted exposure amount | D11: 231188.3527 | E11: 230949.961 | F11: =225520611599.96/1000000 -> 225520.6116 | G11: 221366.1034 | H11: 222525.1041
C12: Capital ratios (as a percentage of risk-weighted exposure amount)
B13: 5 | C13: Common Equity Tier 1 ratio (%) | D13: 0.1659315215 | E13: 0.1664911543 | F13: 0.1686700596 | G13: 0.1668263677 | H13: 0.1614594257
B14: 6 | C14: Tier 1 ratio (%) | D14: 0.1868560411 | E14: 0.1874029373 | F14: 0.1831140322 | G14: 0.1814927288 | H14: 0.1759627557
B15: 7 | C15: Total capital ratio (%) | D15: 0.2193764943 | E15: 0.2200242894 | F15: 0.2102158565 | G15: 0.2089267773 | H15: 0.2029512162
C16: Additional own funds requirements to address risks other than the risk of excessive leverage (as a percentage of risk-weighted exposure amount)
B17: EU 7a | C17: Additional own funds requirements to address risks other than the risk of excessive leverage (%) | D17: 0.03302941214 | E17: 0.03075756787 | F17: 0.03245163502 | G17: 0.03167471561 | H17: 0.0314
B18: EU 7b | C18: of which: to be made up of CET1 capital (percentage points) | D18: =4.5/8*D17 -> 0.01857904433 | E18: =E17*4.5/8 -> 0.01730113193 | F18: 0.0182540447 | G18: 0.01781702753 | H18: 0.01764143513
B19: EU 7c | C19: of which: to be made up of Tier 1 capital (percentage points) | D19: =D17*6/8 -> 0.0247720591 | E19: =E17*6/8 -> 0.02306817591 | F19: 0.02433872626 | G19: 0.02375603671 | H19: 0.02352191351
B20: EU 7d | C20: Total SREP own funds requirements (%) | D20: =D17+8% -> 0.1130294121 | E20: =E17+8% -> 0.1107575679 | F20: 0.112451635 | G20: 0.1116747156 | H20: 0.1113625513
C21: Combined buffer requirement (as a percentage of risk-weighted exposure amount)
B22: 8 | C22: Capital conservation buffer (%) | D22: 0.025 | E22: 0.025 | F22: 0.025 | G22: 0.025 | H22: 0.025
B23: EU 8a | C23: Conservation buffer due to macro-prudential or systemic risk identified at the level of a Member State (%)
B24: 9 | C24: Institution specific countercyclical capital buffer (%) | D24: 0.02431461148 | E24: 0.02424804904 | F24: 0.02427799293 | G24: 0.02424693388 | H24: 0.0242
B25: EU 9a | C25: Systemic risk buffer (%) | D25: 0.007540371189 | E25: 0 | F25: 0 | G25: 0 | H25: 0
B26: 10 | C26: Global Systemically Important Institution buffer (%) | D26: 0 | E26: 0 | F26: 0 | G26: 0 | H26: 0
B27: EU 10a | C27: Other Systemically Important Institution buffer | D27: 0.015 | E27: 0.015 | F27: 0.015 | G27: 0.015 | H27: 0.015
B28: 11 | C28: Combined buffer requirement (%) | D28: =SUM(D27,D25,D24,D22) -> 0.07185498267 | E28: 0.06424804904 | F28: 0.06427799293 | G28: 0.06424693388 | H28: 0.06423638495
B29: EU 11a | C29: Overall capital requirements (%) | D29: 0.1848843948 | E29: 0.1750056169 | F29: 0.176729628 | G29: 0.1759216495 | H29: 0.1755989363
B30: 12 | C30: CET1 available after meeting the total SREP own funds requirements (%) | D30: 0.03049749452 | E30: 0.03994197337 | F30: 0.04113802351 | G30: 0.03976240629 | H30: 0.03458160564
C31: Leverage ratio
B32: 13 | C32: Total exposure measure | D32: =822435477865.43/1000000 -> 822435.4779 | E32: =819558856840.79/1000000 -> 819558.8568 | F32: 824490.0489 | G32: 808632.8241 | H32: 823564.2435
B33: 14 | C33: Leverage ratio (%) | D33: =5.252562903443% -> 0.05252562903 | E33: 0.05280975332 | F33: 0.05008670339 | G33: 0.049684 | H33: 0.047545
C34: Additional own funds requirements to address the risk of excessive leverage (as a percentage of total exposure measure)
B35: EU 14a | C35: Additional own funds requirements to address the risk of excessive leverage (%) | D35: 0 | E35: 0 | F35: 0 | G35: 0 | H35: 0
B36: EU 14b | C36: of which: to be made up of CET1 capital (percentage points) | D36: 0 | E36: 0 | F36: 0 | G36: 0 | H36: 0
B37: EU 14c | C37: Total SREP leverage ratio requirements (%) | D37: 0.03 | E37: 0.03 | F37: 0.03 | G37: 0.03 | H37: 0.03
C38: Leverage ratio buffer and overall leverage ratio requirement (as a percentage of total exposure measure)
B39: EU 14d | C39: Leverage ratio buffer requirement (%) | D39: 0 | E39: 0 | F39: 0 | G39: 0 | H39: 0
B40: EU 14e | C40: Overall leverage ratio requirements (%) | D40: 0.03 | E40: 0.03 | F40: 0.03 | G40: 0.03 | H40: 0.03
C41: Liquidity Coverage Ratio
B42: 15 | C42: Total high-quality liquid assets (HQLA) (Weighted value - average) | D42: 140400.126 | E42: 144142.8373 | F42: 150202.3089 | G42: 150526.1895 | H42: 145138.9716
B43: EU 16a | C43: Cash outflows - Total weighted value | D43: 91809.12459 | E43: 96034.40762 | F43: 99049.39102 | G43: 97231.71297 | H43: 92438.75193
B44: EU 16b | C44: Cash inflows - Total weighted value | D44: 27632.89866 | E44: 27199.29051 | F44: 25194.90924 | G44: 24311.03839 | H44: 23604.30288
B45: 16 | C45: Total net cash outflows (adjusted value) | D45: 64133.7239 | E45: 68834.08696 | F45: 73854.48178 | G45: 72920.67458 | H45: 68834.44905
B46: 17 | C46: Liquidity coverage ratio (%) | D46: 2.332368116 | E46: 2.189636525 | F46: 2.11632656 | G46: 2.190960116 | H46: 2.244966267
C47: Net Stable Funding Ratio
B48: 18 | C48: Total available stable funding | D48: 247614.6772 | E48: 238294.7753 | F48: 240579.274 | G48: 237103.606 | H48: 235517.3834
B49: 19 | C49: Total required stable funding | D49: 171470.0147 | E49: 176542.9799 | F49: 176649.6097 | G49: 173876.7391 | H49: 176848.7332
B50: 20 | C50: NSFR ratio (%) | D50: 1.444069843 | E50: 1.349783353 | F50: 1.361900966 | G50: 1.363630393 | H50: 1.331744814

Sheet EU CC1
B2: EU CC1 - Composition of regulatory own funds
B4: Reported in DKKm | D4: At 30 June 2024 | E4: Source based on reference numbers/letters of the balance sheet under the regulatory scope of consolidation
B5: Common Equity Tier 1 (CET1) capital: instruments and reserves
B6: 1 | C6: Capital instruments and the related share premium accounts | D6: 642.721 | E6: a
C7: of which: Instrument type 1 | D7: 642.721 | E7: a
C8: of which: Instrument type 2
C9: of which: Instrument type 3
B10: 2 | C10: Retained earnings | D10: 40996.68116 | E10: c
B11: 3 | C11: Accumulated other comprehensive income (and other reserves) | D11: 163.891 | E11: b
B12: EU-3a | C12: Funds for general banking risk
B13: 4 | C13: Amount of qualifying items referred to in Article 484 (3) and the related share premium accounts subject to phase out from CET1
B14: 5 | C14: Minority interests (amount allowed in consolidated CET1)
B15: EU-5a | C15: Independently reviewed interim profits net of any foreseeable charge or dividend | D15: 1745.728489 | E15: d
B16: 6 | C16: Common Equity Tier 1 (CET1) capital before regulatory adjustments | D16: 43549.02165
B17: Common Equity Tier 1 (CET1) capital: regulatory adjustments
B18: 7 | C18: Additional value adjustments (negative amount) | D18: -247.124335
B19: 8 | C19: Intangible assets (net of related tax liability) (negative amount) | D19: -3361.316066 | E19: e
B20: 9 | C20: Empty set in the EU
B21: 10 | C21: Deferred tax assets that rely on future profitability excluding those arising from temporary differences (net of related tax liability where the conditions in Article 38 (3) are met) (negative amount)
B22: 11 | C22: Fair value reserves related to gains or losses on cash flow hedges of financial instruments that are not valued at fair value
B23: 12 | C23: Negative amounts resulting from the calculation of expected loss amounts
B24: 13 | C24: Any increase in equity that results from securitised assets (negative amount)
B25: 14 | C25: Gains or losses on liabilities valued at fair value resulting from changes in own credit standing
B26: 15 | C26: Defined-benefit pension fund assets (negative amount)
B27: 16 | C27: Direct and indirect holdings by an institution of own CET1 instruments (negative amount) | D27: -1222.14642
B28: 17 | C28: Direct, indirect and synthetic holdings of the CET 1 instruments of financial sector entities where those entities have reciprocal cross holdings with the institution designed to inflate artificially the own funds of the institution (negative amount)
B29: 18 | C29: Direct, indirect and synthetic holdings by the institution of the CET1 instruments of financial sector entities where the institution does not have a significant investment in those entities (amount above 10% threshold and net of eligible short positions) (negative amount)
B30: 19 | C30: Direct, indirect and synthetic holdings by the institution of the CET1 instruments of financial sector entities where the institution has a significant investment in those entities (amount above 10% threshold and net of eligible short positions) (negative amount)
B31: 20 | C31: Empty set in the EU
B32: EU-20a | C32: Exposure amount of the following items which qualify for a RW of 1250%, where the institution opts for the deduction alternative
B33: EU-20b | C33: of which: qualifying holdings outside the financial sector (negative amount)
B34: EU-20c | C34: of which: securitisation positions (negative amount)
B35: EU-20d | C35: of which: free deliveries (negative amount)
B36: 21 | C36: Deferred tax assets arising from temporary differences (amount above 10% threshold, net of related tax liability where the conditions in Article 38 (3) are met) (negative amount)
B37: 22 | C37: Amount exceeding the 17,65% threshold (negative amount)
B38: 23 | C38: of which: direct, indirect and synthetic holdings by the institution of the CET1 instruments of financial sector entities where the institution has a significant investment in those entities
B39: 24 | C39: Empty set in the EU
B40: 25 | C40: of which: deferred tax assets arising from temporary differences
B41: EU-25a | C41: Losses for the current financial year (negative amount)
B42: EU-25b | C42: Foreseeable tax charges relating to CET1 items except where the institution suitably adjusts the amount of CET1 items insofar as such tax charges reduce the amount up to which those items may be used to cover risks or losses (negative amount)
B43: 26 | C43: Empty set in the EU
B44: 27 | C44: Qualifying AT1 deductions that exceed the AT1 items of the institution (negative amount)
B45: 27a | C45: Other regulatory adjusments | D45: -356.999705
B46: 28 | C46: Total regulatory adjustments to Common Equity Tier 1 (CET1) | D46: -5187.586526
B47: 29 | C47: Common Equity Tier 1 (CET1) capital | D47: 38361.43512
B48: Additional Tier 1 (AT1) capital: instruments
B49: 30 | C49: Capital instruments and the related share premium accounts | D49: 4847.505 | E49: f
B50: 31 | C50: of which: classified as equity under applicable accounting standards | D50: 4847.505 | E50: f
B51: 32 | C51: of which: classified as liabilities under applicable accounting standards
B52: 33 | C52: Amount of qualifying items referred to in Article 484 (4) and the related share premium accounts subject to phase out from AT1
B53: EU-33a | C53: Amount of qualifying items referred to in Article 494a(1) subject to phase out from AT1
B54: EU-33b | C54: Amount of qualifying items referred to in Article 494b(1) subject to phase out from AT1
B55: 34 | C55: Qualifying Tier 1 capital included in consolidated AT1 capital (including minority interests not included in row 5) issued by subsidiaries and held by third parties
B56: 35 | C56: of which: instruments issued by subsidiaries subject to phase out
B57: 36 | C57: Additional Tier 1 (AT1) capital before regulatory adjustments | D57: 4847.505
B58: Additional Tier 1 (AT1) capital: regulatory adjustments
B59: 37 | C59: Direct and indirect holdings by an institution of own AT1 instruments (negative amount) | D59: -10
B60: 38 | C60: Direct, indirect and synthetic holdings of the AT1 instruments of financial sector entities where those entities have reciprocal cross holdings with the institution designed to inflate artificially the own funds of the institution (negative amount)
B61: 39 | C61: Direct, indirect and synthetic holdings of the AT1 instruments of financial sector entities where the institution does not have a significant investment in those entities (amount above 10% threshold and net of eligible short positions) (negative amount)
B62: 40 | C62: Direct, indirect and synthetic holdings by the institution of the AT1 instruments of financial sector entities where the institution has a significant investment in those entities (net of eligible short positions) (negative amount)
B63: 41 | C63: Not applicable
B64: 42 | C64: Qualifying T2 deductions that exceed the T2 items of the institution (negative amount)
B65: 42a | C65: Other regulatory adjustments to AT1 capital
B66: 43 | C66: Total regulatory adjustments to Additional Tier 1 (AT1) capital | D66: -10
B67: 44 | C67: Additional Tier 1 (AT1) capital | D67: 4837.505
B68: 45 | C68: Tier 1 capital (T1 = CET1 + AT1) | D68: 43198.94012
B69: Tier 2 (T2) capital: instruments
B70: 46 | C70: Capital instruments and the related share premium accounts | D70: 7586.51 | E70: g
B71: 47 | C71: Amount of qualifying items referred to in Article 484 (5) and the related share premium accounts subject to phase out from T2 as described in Article 486 (4) CRR
B72: EU-47a | C72: Amount of qualifying items referred to in Article 494a (2) subject to phase out from T2
B73: EU-47b | C73: Amount of qualifying items referred to in Article 494b (2) subject to phase out from T2
B74: 48 | C74: Qualifying own funds instruments included in consolidated T2 capital (including minority interests and AT1 instruments not included in rows 5 or 34) issued by subsidiaries and held by third parties
B75: 49 | C75: of which: instruments issued by subsidiaries subject to phase out
B76: 50 | C76: Credit risk adjustments
B77: 51 | C77: Tier 2 (T2) capital before regulatory adjustments | D77: 7586.51
B78: Tier 2 (T2) capital: regulatory adjustments
B79: 52 | C79: Direct and indirect holdings by an institution of own T2 instruments and subordinated loans (negative amount) | D79: -18
B80: 53 | C80: Direct, indirect and synthetic holdings of the T2 instruments and subordinated loans of financial sector entities where those entities have reciprocal cross holdings with the institution designed to inflate artificially the own funds of the institution (negative amount)
B81: 54 | C81: Direct and indirect holdings of the T2 instruments and subordinated loans of financial sector entities where the institution does not have a significant investment in those entities (amount above 10% threshold and net of eligible short positions) (negative amount)
B82: 54a | C82: Not applicable
B83: 55 | C83: Direct and indirect holdings by the institution of the T2 instruments and subordinated loans of financial sector entities where the institution has a significant investment in those entities (net of eligible short positions) (negative amount) | D83: -50.16
B84: 56 | C84: Not applicable
B85: EU-56a | C85: Qualifying eligible liabilities deductions that exceed the eligible liabilities items of the institution (negative amount)
B86: 56b | C86: Other regulatory adjusments to T2 capital
B87: 57 | C87: Total regulatory adjustments to Tier 2 (T2) capital | D87: -68.16
B88: 58 | C88: Tier 2 (T2) capital | D88: 7518.35
B89: 59 | C89: Total capital (TC = T1 + T2) | D89: 50717.29012
B90: 60 | C90: Total risk exposure amount | D90: 231188.3527
B91: Capital ratios and requirements including buffers
B92: 61 | C92: Common Equity Tier 1 | D92: 0.1659315215
B93: 62 | C93: Tier 1 | D93: 0.1868560402
B94: 63 | C94: Total capital | D94: 0.2193764934
B95: 64 | C95: Institution CET1 overall capital requirements | D95: 0.135434027
B96: 65 | C96: of which: capital conservation buffer requirement | D96: 0.025
B97: 66 | C97: of which: countercyclical capital buffer requirement | D97: 0.02431461148
B98: 67 | C98: of which: systemic risk buffer requirement | D98: 0.007540371189
B99: EU-67a | C99: of which: Global Systemically Important Institution (G-SII) or Other Systemically Important Institution (O-SII) buffer requirement | D99: 0.015
B100: EU-67b | C100: of which: additional own funds requirements to address the risks other than the risk of excessive leverage | D100: 0.01857904433
B101: 68 | C101: Common Equity Tier 1 capital (as a percentage of risk exposure amount) available after meeting the minimum capital requirements | D101: =D92-D95 -> 0.03049749452
B102: Amounts below the thresholds for deduction (before risk weighting)
B103: 72 | C103: Direct and indirect holdings of own funds and eligible liabilities of financial sector entities where the institution does not have a significant investment in those entities (amount below 10% threshold and net of eligible short positions) | D103: 1553.337501 | E103: i
B104: 73 | C104: Direct and indirect holdings by the institution of the CET1 instruments of financial sector entities where the institution has a significant investment in those entities (amount below 17.65% thresholds and net of eligible short positions) | D104: 556.827654 | E104: j
B105: 74 | C105: Not applicable
B106: 75 | C106: Deferred tax assets arising from temporary differences (amount below 17.65% threshold, net of related tax liability where the conditions in Article 38 (3) are met) | D106: 446.234 | E106: h
B107: Applicable caps on the inclusion of provisions in Tier 2
B108: 76 | C108: Credit risk adjustments included in T2 in respect of exposures subject to standardised approach (prior to the application of the cap)
B109: 77 | C109: Cap on inclusion of credit risk adjustments in T2 under standardised approach | D109: 160.0085017
B110: 78 | C110: Credit risk adjustments included in T2 in respect of exposures subject to internal ratings-based approach (prior to the application of the cap)
B111: 79 | C111: Cap for inclusion of credit risk adjustments in T2 under internal ratings-based approach | D111: 932.4136392
B112: Capital instruments subject to phase-out arrangements (only applicable between 1 Jan 2014 and 1 Jan 2022)
B113: 80 | C113: Current cap on CET1 instruments subject to phase out arrangements
B114: 81 | C114: Amount excluded from CET1 due to cap (excess over cap after redemptions and maturities)
B115: 82 | C115: Current cap on AT1 instruments subject to phase out arrangements
B116: 83 | C116: Amount excluded from AT1 due to cap (excess over cap after redemptions and maturities)
B117: 84 | C117: Current cap on T2 instruments subject to phase out arrangements
B118: 85 | C118: Amount excluded from T2 due to cap (excess over cap after redemptions and maturities)

Sheet EU CC2
B2: EU CC2 - reconciliation of regulatory own funds to balance sheet in the audited financial statements
B4: Reported in DKKm | D4: Balance sheet as in published financial statements | E4: Under regulatory scope of consolidation | F4: Reference
D5: At 30 June 2024
B6: Assets - Breakdown by asset clases according to the balance sheet in the published financial statements
B7: 8 | C7: Intangible assets | D7: 3361.316 | E7: 3361.316066 | F7: e
B8: 10 | C8: Deferred tax assets | D8: 446.234 | E8: 446.234 | F8: h
B9: 14 | C9: Total assets | D9: 769893.411
B10: Liabilities - Breakdown by liability clases according to the balance sheet in the published financial statements
B11: 8 | C11: Subordinated debt | D11: 7580.255 | E11: 7586.51 | F11: g
B12: 9 | C12: Total liabilities | D12: 720670.916
B13: Shareholders' Equity
B14: 1 | C14: Share capital | D14: 642.721 | E14: 642.721 | F14: a
B15: 2 | C15: Revaluation reserve | D15: 163.891 | E15: 163.891 | F15: b
B16: 3 | C16: Retained profit | D16: 43490.579 | E16: 42742.40965 | F16: c, d
B17: 4 | C17: Holders of additional tier 1 capital (AT1) | D17: 4925.304 | E17: 4847.505 | F17: f
B18: 5 | C18: Total shareholders' equity | D18: 49222.495

Sheet EU OV1
B2: EU OV1 – Overview of total risk exposure amounts
B4: Reported in DKKm | D4: Risk weighted exposure amounts (RWEAs) | F4: Total own funds requirements
D5: a | E5: b | F5: c
D6: 30.06.2024 | E6: 31.03.2024 | F6: 30.06.2024
B7: 1 | C7: Credit risk (excluding CCR) | D7: =169113649140.05 - (60167061.08 +1061326235.96+0+314598595.99 + 3652970253.87 + 0+ 0 +0+ 0) - 0 -1428390374.14 + 0 + 0 -> 1.625961966e+11 | E7: 158956.3377 | F7: =D7*0.08/1000000 -> 13007.69573
B8: 2 | C8: Of which the standardised approach | D8: =12432394166.74 - (60167061.08 + 1061326235.96 + 0) -> 1.131090087e+10 | E8: 10736.41685 | F8: =D8*0.08/1000000 -> 904.8720696
B9: 3 | C9: Of which the Foundation IRB (F-IRB) approach | D9: =0 - (0+ 0 + 0 + 0) + 5688404345.57 -> 5688404346 | F9: =D9*0.08/1000000 -> 455.0723476
B10: 4 | C10: Of which: slotting approach | F10: =D10*0.08 -> 0
B11: EU 4a | C11: Of which: equities under the simple riskweighted approach | F11: 0
B12: 5 | C12: Of which the Advanced IRB (A-IRB) approach | D12: =149564460253.6 - (314598595.99 + 3652970253.87 +0 + 0) -> 1.455968914e+11 | E12: 148219.9209 | F12: =D12*0.08/1000000 -> 11647.75131
B13: 6 | C13: Counterparty credit risk - CCR | D13: =60167061.08 + 1061326235.96 + 0 + 314598595.99 + 3652970253.87 +0 + 0 + 0 + 0 + 0 + 1198836684.97 -> 6287898832 | E13: 9590.363344 | F13: =D13*0.08/1000000 -> 503.0319065
B14: 7 | C14: Of which the standardised approach | F14: 0
B15: 8 | C15: Of which internal model method (IMM) | F15: 0
B16: EU 8a | C16: Of which exposures to a CCP | D16: =18965756.22 + 0 -> 18965756.22 | F16: =D16*0.08/1000000 -> 1.517260498
B17: EU 8b | C17: Of which credit valuation adjustment - CVA | D17: 1198836685 | E17: 1058.536744 | F17: =D17*0.08/1000000 -> 95.9069348
B18: 9 | C18: Of which other CCR | D18: 8329.134843 | E18: =E13-E17 -> 8531.826599 | F18: 666.3307874
B19: 15 | C19: Settlement risk | D19: 17765.2 | E19: 0 | F19: 1421.216
B20: 16 | C20: Securitisation exposures in the non-trading book (after the cap) | D20: =1428390374.14/1000000 -> 1428.390374 | E20: 1451.762112 | F20: 114.2712299
B21: 17 | C21: Of which SEC-IRBA approach | D21: =1428390374.14/1000000 -> 1428.390374 | E21: 1451.762112 | F21: 114.2712299
B22: 18 | C22: Of which SEC-ERBA (including IAA) | F22: 0
B23: 19 | C23: Of which SEC-SA approach | F23: 0
B24: EU 19a | C24: Of which 1250% | F24: 0
B25: 20 | C25: Position, foreign exchange and commodities risks (Market risk) | D25: =10159.47001869*1000000 -> 1.015947002e+10 | E25: 10779.81318 | F25: =D25*0.08/1000000 -> 812.7576015
B26: 21 | C26: Of which the standardised approach | D26: =10159.47001869*1000000 -> 1.015947002e+10 | E26: 10779.81318 | F26: =D26*0.08/1000000 -> 812.7576015
B27: 22 | C27: Of which IMA | F27: 0
B28: EU 22a | C28: Large exposures | F28: 0
B29: 23 | C29: Operational risk | D29: 1.949268453e+10 | E29: 19492.68453 | F29: =D29*0.08/1000000 -> 1559.414763
B30: EU 23a | C30: Of which basic indicator approach | F30: 0
B31: EU 23b | C31: Of which standardised approach | D31: 1.949268453e+10 | E31: 19492.68453 | F31: =D31*0.08/1000000 -> 1559.414763
B32: EU 23c | C32: Of which advanced measurement approach | F32: 0
B33: 24 | C33: Amounts below the thresholds for deduction (subject to 250% risk weight) (For information) | F33: 0
C34: Other | D34: 30706 | E34: 30679 | F34: 2456.48
B35: 29 | C35: Total | D35: 231188.3527 | E35: 230949.9609 | F35: 18495.06822

Sheet EU CQ1
B2: EU CQ1 - Credit quality of forborne exposures
B4: Reported in DKKm | D4: a | E4: b | F4: c | H4: d | I4: e | J4: f | K4: g | M4: h
D5: Gross carrying amount/ Nominal amount of exposures with forbearance measures | I5: Accumulated impairment, accumulated negative changes in fair value due to credit risk and provisions | K5: Collaterals received and financial guarantees received on forborne exposures
D6: Performing forborne | E6: Non-performing forborne | I6: On performing forborne exposures | J6: On non-performing forborne exposures | M6: Of which: Collateral and financial guarantees received on non-performing exposures with forbearance measures
F7: Of which defaulted | H7: Of which impaired
B8: 5 | C8: Cash balances at central banks and other demand deposits
B9: 10 | C9: Loans and advances | D9: 2214.591773 | E9: 5086.652982 | F9: 4812.394093 | H9: 1986.317435 | I9: 40.54794454 | J9: 942.3160468 | K9: 5165.881888 | M9: 3513.223734
B10: 20 | C10: Central banks
B11: 30 | C11: General governments | D11: 0.74116176 | E11: 1.2631222 | F11: 1.05744093 | H11: 1.05744093 | I11: 3.78e-06 | J11: 0.34781633
B12: 40 | C12: Credit institutions
B13: 50 | C13: Other financial corporations | D13: 45.4378391 | E13: 497.4948378 | F13: 497.4948379 | H13: 497.4394029 | I13: 0.87446916 | J13: 269.9626252 | K13: 119.7711929 | M13: 112.0216607
B14: 60 | C14: Non-financial corporations | D14: 1105.619573 | E14: 2882.842356 | F14: 2741.277122 | H14: 1053.354538 | I14: 26.44560311 | J14: 377.5271269 | K14: 2762.484388 | M14: 2034.357667
B15: 70 | C15: Households | D15: 1062.793199 | E15: 1705.052666 | F15: 1572.564692 | H15: 434.4660535 | I15: 13.22786849 | J15: 294.4784784 | K15: 2283.626308 | M15: 1366.844406
B16: 80 | C16: Debt Securities
B17: 90 | C17: Loan commitments given | D17: 40.67731314 | E17: 144.1378444 | F17: 143.9912805 | H17: 144.0822924 | I17: 1.18787007 | J17: 13.18938519
B18: 100 | C18: Total | D18: 2255.269087 | E18: 5230.790826 | F18: 4956.385373 | H18: 2130.399728 | I18: 41.73581461 | J18: 955.505432 | K18: 5165.881888 | M18: 3513.223734

Sheet EU CQ7
B2: EU CQ7 - Collateral obtained by taking possession and execution processes
B4: Reported in DKKm | D4: a | E4: b
D5: Collateral obtained by taking possession
D6: Value at initial recognition | E6: Accumulated negative changes
B7: 010 | C7: Property Plant and Equipment (PP&E)
B8: 020 | C8: Other than PP&E | D8: 133909155 | E8: 0
B9: 030 | C9: Residential immovable property | D9: 2389076 | E9: 0
B10: 040 | C10: Commercial Immovable property
B11: 050 | C11: Movable property (auto, shipping, etc.)
B12: 060 | C12: Equity and debt instruments | D12: 128520079
B13: 070 | C13: Other collateral | D13: 3000000
B14: 080 | C14: Total | D14: 133909155 | E14: 0

Sheet EU CR1
B2: EU CR1 - Performing and non-performing exposures and related provisions.
B4: Reported in DKKm | D4: a | E4: b | F4: c | G4: d | H4: e | I4: f | J4: g | K4: h | L4: i | M4: j | N4: k | O4: l | P4: m | Q4: n | R4: o
D5: Gross carrying values | J5: Accumulated impairment, accumulated negative changes in fair value due to credit risk and provisions | P5: Accumulated partial write-of | Q5: Collateral and financial guarantees received
D6: Performing exposures | G6: Non-performing exposures | J6: Performing exposures – accumulated impairment and provisions | M6: Non-performing exposures – accumulated impairment, accumulated negative changes in fair value due to credit risk and provisions | Q6: On performing exposures | R6: On non-performing exposures
E9: Of which stage 1 | F9: Of which stage 2 | H9: Of which stage 2 | I9: Of which stage 3 | K9: Of which stage 1 | L9: Of which stage 2 | N9: Of which stage 2 | O9: Of which stage 3
B10: 005 | C10: Cash balances at central banks and other demand deposits | D10: 85392.0406 | E10: 84392.15209 | F10: 999.888511 | G10: 0 | H10: 0 | I10: 0 | J10: 5.24041579 | K10: 0.90842729 | L10: 4.3319885 | M10: 0 | N10: 0 | O10: 0 | P10: 0 | Q10: 0 | R10: 0
B11: 010 | C11: Loans and advances | D11: 547589.027 | E11: 527905.9001 | F11: 19683.12693 | G11: 7833.967705 | H11: 273.9783873 | I11: 7559.989317 | J11: 1496.731605 | K11: 634.5185035 | L11: 862.2131016 | M11: 1799.528547 | N11: 6.00696778 | O11: 1793.521579 | P11: 947.6638381 | Q11: 419535.1138 | R11: 5272.710693
B12: 020 | C12: Central banks | D12: 84.393611 | E12: 84.393611 | F12: 0 | G12: 0 | H12: 0 | I12: 0 | J12: 0 | K12: 0 | L12: 0 | M12: 0 | N12: 0 | O12: 0 | P12: 0 | Q12: 0 | R12: 0
B13: 030 | C13: General governments | D13: 12913.8171 | E13: 12904.04468 | F13: 9.77241388 | G13: 1.2631222 | H13: 0.20568127 | I13: 1.05744093 | J13: 5.13495868 | K13: 0.63281693 | L13: 4.50214175 | M13: 0.34781633 | N13: 0.01655748 | O13: 0.33125885 | P13: 0 | Q13: 204.0559768 | R13: 0
B14: 040 | C14: Credit institutions | D14: 2430.945407 | E14: 2429.729211 | F14: 1.21619639 | G14: 0 | H14: 0 | I14: 0 | J14: 0.29169953 | K14: 0.29169953 | L14: 0 | M14: 0 | N14: 0 | O14: 0 | P14: 0.00043049 | Q14: 5.03998967 | R14: 0
B15: 050 | C15: Other financial corporations | D15: 56717.32892 | E15: 55411.19772 | F15: 1306.1312 | G15: 865.2637802 | H15: 0 | I15: 865.2637802 | J15: 279.1168756 | K15: 77.14342524 | L15: 201.9734504 | M15: 474.0775319 | N15: 0 | O15: 474.0775319 | P15: 0 | Q15: 7591.955811 | R15: 260.1052877
B16: 060 | C16: Non-financial corporations | D16: 260351.5723 | E16: 252498.3061 | F16: 7853.266177 | G16: 4045.393793 | H16: 141.565234 | I16: 3903.828559 | J16: 902.2462397 | K16: 371.2880348 | L16: 530.9582049 | M16: 678.4125112 | N16: 1.44388763 | O16: 676.9686236 | P16: 414.9575331 | Q16: 208599.8541 | R16: 2790.119075
B17: 070 | C17: Of which SMEs | D17: 84906.01971 | E17: 80141.51134 | F17: 4764.508366 | G17: 2409.423891 | H17: 140.973904 | I17: 2268.449987 | J17: 467.0329782 | K17: 195.1845206 | L17: 271.8484577 | M17: 548.2320933 | N17: 1.44189155 | O17: 546.7902018 | P17: 374.649155 | Q17: 63913.169 | R17: 1655.192585
B18: 080 | C18: Households | D18: 215090.9697 | E18: 204578.2287 | F18: 10512.74094 | G18: 2922.047009 | H18: 132.207472 | I18: 2789.839537 | J18: 309.9418315 | K18: 185.1625271 | L18: 124.7793045 | M18: 646.6906871 | N18: 4.54652267 | O18: 642.1441645 | P18: 532.7058745 | Q18: 203134.2079 | R18: 2222.48633
B19: 090 | C19: Debt securities | D19: 74477.94581 | E19: 74477.94581 | F19: 0 | G19: 0 | H19: 0 | I19: 0 | J19: 1.74987796 | K19: 1.74987796 | L19: 0 | M19: 0 | N19: 0 | O19: 0 | P19: 0 | Q19: 0 | R19: 0
B20: 100 | C20: Central banks | D20: 412.0941829 | E20: 412.0941829 | F20: 0 | G20: 0 | H20: 0 | I20: 0 | J20: 0.0067687 | K20: 0.0067687 | L20: 0 | M20: 0 | N20: 0 | O20: 0 | P20: 0 | Q20: 0 | R20: 0
B21: 110 | C21: General governments | D21: 4827.644314 | E21: 4827.644314 | F21: 0 | G21: 0 | H21: 0 | I21: 0 | J21: 0.17322522 | K21: 0.17322522 | L21: 0 | M21: 0 | N21: 0 | O21: 0 | P21: 0 | Q21: 0 | R21: 0
B22: 120 | C22: Credit institutions | D22: 61453.73179 | E22: 61453.73179 | F22: 0 | G22: 0 | H22: 0 | I22: 0 | J22: 1.25892713 | K22: 1.25892713 | L22: 0 | M22: 0 | N22: 0 | O22: 0 | P22: 0 | Q22: 0 | R22: 0
B23: 130 | C23: Other financial corporations | D23: 0 | E23: 0 | F23: 0 | G23: 0 | H23: 0 | I23: 0 | J23: 0 | K23: 0 | L23: 0 | M23: 0 | N23: 0 | O23: 0 | P23: 0 | Q23: 0 | R23: 0
B24: 140 | C24: Non-financial corporations | D24: 7784.475529 | E24: 7784.475529 | F24: 0 | G24: 0 | H24: 0 | I24: 0 | J24: 0.31095691 | K24: 0.31095691 | L24: 0 | M24: 0 | N24: 0 | O24: 0 | P24: 0 | Q24: 0 | R24: 0
B25: 150 | C25: Off-balance-sheet exposures | D25: 104968.9363 | E25: 103236.6855 | F25: 1732.250802 | G25: 1131.907507 | H25: 0.055552 | I25: 1131.851955 | J25: 256.7380436 | K25: 166.4582351 | L25: 90.27980848 | M25: 252.7387077 | N25: 0.00332572 | O25: 252.7353819 | P25: 0 | Q25: 0 | R25: 493.3162428
B26: 160 | C26: Central banks | D26: 0 | E26: 0 | F26: 0 | G26: 0 | H26: 0 | I26: 0 | J26: 0 | K26: 0 | L26: 0 | M26: 0 | N26: 0 | O26: 0 | P26: 0 | Q26: 0 | R26: 0
B27: 170 | C27: General governments | D27: 7864.830315 | E27: 7836.18455 | F27: 28.64576482 | G27: 0 | H27: 0 | I27: 0 | J27: 4.93537709 | K27: 3.7477697 | L27: 1.18760739 | M27: 0 | N27: 0 | O27: 0 | P27: 0 | Q27: 0 | R27: 0
B28: 180 | C28: Credit institutions | D28: 395.2147263 | E28: 271.730183 | F28: 123.4845432 | G28: 0 | H28: 0 | I28: 0 | J28: 1.51026603 | K28: 0.93126208 | L28: 0.57900395 | M28: 0 | N28: 0 | O28: 0 | P28: 0 | Q28: 0 | R28: 0
B29: 190 | C29: Other financial corporations | D29: 7178.115425 | E29: 6902.37965 | F29: 275.7357753 | G29: 72.58930764 | H29: 0 | I29: 72.58930764 | J29: 24.15178251 | K29: 9.55949031 | L29: 14.5922922 | M29: 123.2682686 | N29: 0 | O29: 123.2682686 | P29: 0 | Q29: 0 | R29: 1.14515363
B30: 200 | C30: Non-financial corporations | D30: 71918.37942 | E30: 70837.90234 | F30: 1080.47708 | G30: 936.1413286 | H30: 0.055552 | I30: 936.0857766 | J30: 130.6585708 | K30: 69.22691033 | L30: 61.43166047 | M30: 108.0776474 | N30: 0.00332572 | O30: 108.0743217 | P30: 0 | Q30: 0 | R30: 480.1481485
B31: 210 | C31: Households | D31: 17612.39641 | E31: 17388.48877 | F31: 223.9076388 | G31: 123.1768703 | H31: 0 | I31: 123.1768703 | J31: 95.48204716 | K31: 82.99280269 | L31: 12.48924447 | M31: 21.39279166 | N31: 0 | O31: 21.39279166 | P31: 0 | Q31: 0 | R31: 12.02294063
B32: 220 | C32: Total | D32: 812427.9497 | E32: 790012.6835 | F32: 22415.26624 | G32: 8965.875211 | H32: 274.0339393 | I32: 8691.841272 | J32: 1760.459942 | K32: 803.6350439 | L32: 956.8248986 | M32: 2052.267254 | N32: 6.0102935 | O32: 2046.256961 | P32: 947.6638381 | Q32: 419535.1138 | R32: 5766.026936

Sheet EU CR1-A
B2: EU CR1-A: Maturity of exposures
B4: Reported in DKKm | D4: a | E4: b | F4: c | G4: d | H4: e | I4: f
D5: Net exposure value
D6: On demand | E6: <= 1 year | F6: > 1 year <= 5 years | G6: > 5 years | H6: No stated maturity | I6: Total
B7: 1 | C7: Loans and advances | D7: 2.3 | E7: 40613.16 | F7: 117450.42 | G7: 423821.55 | I7: 581887.42
B8: 2 | C8: Debt securities | D8: 2012.52 | E8: 101470.28 | F8: 41032.49 | G8: 12348.09 | I8: 156863.38
B9: 3 | C9: Total | D9: 2014.82 | E9: 142083.44 | F9: 158482.91 | G9: 436169.63 | I9: 738750.8

Sheet EU CR2
B2: EU CR2 - Changes in the stock of non-performing loans and advances
B4: Reported in DKKm | D4: a
D5: Gross carrying amount
B6: 010 | C6: Initial stock of non-performing loans and advances | D6: 7692.618605
B7: 020 | C7: Inflows to non-performing portfolios | D7: 1659.438642
B8: 030 | C8: Outflows from non-performing portfolios | D8: 926.6219106
B9: 040 | C9: Outflows due to write-offs | D9: 244.454653
B10: 050 | C10: Outflow due to other situations | D10: 347.0129787
B11: 060 | C11: Final stock of non-performing loans and advances | D11: 7833.967705

Sheet EU CR3
B2: EU CR3 - CRM techniques overview: Disclosure of the use of credit risk mitigation techniques
B5: Reported in DKKm | D5: Unsecured carrying amount | E5: Secured carrying amount
F6: Of which secured by collateral | G6: Of which secured by financial guarantees
H7: Of which secured by credit derivatives
D8: a | E8: b | F8: c | G8: d | H8: e
B9: 1 | C9: Loans and advances | D9: 212705.7102 | E9: 424807.8245 | F9: 383307.7821 | G9: 41500.04239 | H9: 0
B10: 2 | C10: Debt securities | D10: 74476.19593 | E10: 0 | F10: 0 | G10: 0 | H10: 0
B11: 3 | C11: Total | D11: 287181.9062 | E11: 424807.8245 | F11: 383307.7821 | G11: 41500.04239 | H11: 0
B12: 4 | C12: Of which non-performing exposures | D12: 761.7284651 | E12: 5272.710693 | F12: 5267.238233 | G12: 5.47246028 | H12: 0
B13: EU-5 | C13: Of which defaulted | D13: 761.6953551 | E13: 5027.780068 | F13: 0 | G13: 0 | H13: 0

Sheet EU CR4
B2: EU CR4 – standardised approach – Credit risk exposure and CRM effects
B4: Reported in DKKm | D4: Exposures before CCF and before CRM | F4: Exposures post CCF and post CRM | H4: RWAs and RWAs density
C5: Exposure classes
D6: On-balance-sheet exposures | E6: Off-balance-sheet exposures | F6: On-balance-sheet exposures | G6: Off-balance-sheet exposures | H6: RWEA | I6: RWEA density (%)
D7: a | E7: b | F7: c | G7: d | H7: e | I7: f
B8: 1 | C8: Central governments or central banks | D8: 84955051470 | E8: 11322193501 | F8: 85342982571 | G8: 1009508355 | H8: 1115585772 | I8: 0.0129
B9: 2 | C9: Regional government or local authorities | D9: 9046172301 | E9: 7651214477 | F9: 9047445743 | G9: 3847657202 | H9: 28684896 | I9: 0.0022
B10: 3 | C10: Public sector entities | D10: 63316689 | E10: 498841607 | F10: 16475234 | G10: 249420804 | H10: 53179208 | I10: 0.2
B11: 4 | C11: Multilateral development banks | D11: 459074893 | E11: - | F11: 459074893 | G11: - | H11: - | I11: 0
B12: 5 | C12: International organisations
B13: 6 | C13: Institutions | D13: 1676955238 | E13: 625399589 | F13: 1681043570 | G13: 373207739 | H13: 462331835 | I13: 0.2251
B14: 7 | C14: Corporates | D14: 1494205688 | E14: 307641653 | F14: 1464502220 | G14: 74094475 | H14: 1097152124 | I14: 0.7131
B15: 8 | C15: Retail | D15: 340390562 | E15: 341972267 | F15: 203427258 | G15: 120631367 | H15: 210812565 | I15: 0.6505
B16: 9 | C16: Secured by mortgages on immovable property | D16: 424431295 | E16: 73052223 | F16: 424431295 | G16: 38065976 | H16: 155348412 | I16: 0.3359
B17: 10 | C17: Exposures in default | D17: 587314728 | E17: 8951263 | F17: 578527673 | G17: 2000723 | H17: 583329552 | I17: 1.0048
B18: 11 | C18: Exposures associated with particularly high risk | D18: 84731 | E18: - | F18: 84731 | G18: - | H18: 127097 | I18: 1.5
B19: 12 | C19: Covered bonds | D19: 54890067259 | E19: - | F19: 54890067259 | G19: - | H19: 5489006726 | I19: 0.1
B20: 13 | C20: Institutions and corporates with a short-term credit assessment
B21: 14 | C21: Collective investment undertakings
B22: 15 | C22: Equity | D22: 1679354975 | E22: - | F22: 1679354975 | G22: - | H22: 2483628652 | I22: 1.4789
B23: 16 | C23: Other items
B24: 17 | C24: TOTAL | D24: 155616419829 | E24: 20829266580 | F24: 155787417424 | G24: 5714586641 | H24: 11679186839 | I24: 0.0723

Sheet EU CR5
B2: EU CR5 – standardised approach
B4: Reported in DKKm
C5: Exposure classes | D5: Risk weight | S5: Total | T5: Of which unrated
D6: 0 | E6: 0.02 | F6: 0.04 | G6: 0.1 | H6: 0.2 | I6: 0.35 | J6: 0.5 | K6: 0.7 | L6: 0.75 | M6: 1 | N6: 1.5 | O6: 2.5 | P6: 3.7 | Q6: 12.5 | R6: Others
D7: a | E7: b | F7: c | G7: d | H7: e | I7: f | J7: g | K7: h | L7: i | M7: j | N7: k | O7: l | P7: m | Q7: n | R7: o | S7: p | T7: q
B8: 1 | C8: Central governments or central banks | D8: 85906256617 | E8: - | F8: - | G8: - | H8: - | I8: - | J8: - | K8: - | L8: - | M8: - | N8: - | O8: 446234309 | P8: - | Q8: - | R8: - | S8: 86352490925 | T8: 0
B9: 2 | C9: Regional government or local authorities | D9: 12780363362 | E9: - | F9: - | G9: - | H9: - | I9: - | J9: - | K9: - | L9: - | M9: - | N9: - | O9: - | P9: - | Q9: - | R9: 114739584 | S9: 12895102945 | T9: -
B10: 3 | C10: Public sector entities | D10: - | E10: - | F10: - | G10: - | H10: 265896038 | I10: - | J10: - | K10: - | L10: - | M10: - | N10: - | O10: - | P10: - | Q10: - | R10: - | S10: 265896038 | T10: 0
B11: 4 | C11: Multilateral development banks | D11: 459074893 | E11: - | F11: - | G11: - | H11: - | I11: - | J11: - | K11: - | L11: - | M11: - | N11: - | O11: - | P11: - | Q11: - | R11: - | S11: 459074893 | T11: 0
B12: 5 | C12: International organisations | T12: 0
B13: 6 | C13: Institutions | D13: - | E13: - | F13: - | G13: - | H13: 1884454915 | I13: - | J13: 169253739 | K13: - | L13: - | M13: - | N13: 542655 | O13: - | P13: - | Q13: - | R13: - | S13: 2054251309 | T13: 0
B14: 7 | C14: Corporates | D14: - | E14: - | F14: - | G14: - | H14: 534384918 | I14: - | J14: 467014 | K14: - | L14: - | M14: 1002096231 | N14: 1648532 | O14: - | P14: - | Q14: - | R14: - | S14: 1538596695 | T14: 1034124124
B15: 8 | C15: Retail | D15: - | E15: - | F15: - | G15: - | H15: - | I15: - | J15: - | K15: - | L15: 324058625 | M15: - | N15: - | O15: - | P15: - | Q15: - | R15: - | S15: 324058625 | T15: 324058625
B16: 9 | C16: Secured by mortgages on immovable property | D16: - | E16: - | F16: - | G16: - | H16: - | I16: 391103898 | J16: 71393373 | K16: - | L16: - | M16: - | N16: - | O16: - | P16: - | Q16: - | R16: - | S16: 462497271 | T16: 85916276628
B17: 10 | C17: Exposures in default | D17: - | E17: - | F17: - | G17: - | H17: - | I17: - | J17: - | K17: - | L17: - | M17: 574926084 | N17: 5602312 | O17: - | P17: - | Q17: - | R17: - | S17: 580528396 | T17: 580528396
B18: 11 | C18: Exposures associated with particularly high risk | D18: - | E18: - | F18: - | G18: - | H18: - | I18: - | J18: - | K18: - | L18: - | M18: - | N18: 84731 | O18: - | P18: - | Q18: - | R18: - | S18: 84731 | T18: 84731
B19: 12 | C19: Covered bonds | D19: - | E19: - | F19: - | G19: 54890067259 | H19: - | I19: - | J19: - | K19: - | L19: - | M19: - | N19: - | O19: - | P19: - | Q19: - | R19: - | S19: 54890067259 | T19: 0
B20: 13 | C20: Institutions and corporates with a short-term credit assessment
B21: 14 | C21: Unit or shares in collective investment undertakings
B22: 15 | C22: Equity | D22: - | E22: - | F22: - | G22: - | H22: - | I22: - | J22: - | K22: - | L22: - | M22: 1143172524 | N22: - | O22: 536182451 | P22: - | Q22: - | R22: - | S22: 1679354975 | T22: 1679354975
B23: 16 | C23: Other items
B24: 17 | C24: TOTAL | D24: 99145694871 | E24: - | F24: - | G24: 54890067259 | H24: 2684735871 | I24: 391103898 | J24: 241114127 | K24: - | L24: 324058625 | M24: 2720194839 | N24: 7878230 | O24: 982416760 | P24: - | Q24: - | R24: 114739584 | S24: 161502004064 | T24: 89534427479

Sheet EU CR6-A
B2: EU CR6-A - Scope of the use of IRB and SA approaches
B5: Reported in DKKm | D5: Exposure value as defined in Article 166 CRR for exposures subject to IRB approach | E5: Total exposure value for exposures subject to the Standardised approach and to the IRB approach | F5: Percentage of total exposure value subject to the permanent partial use of the SA (%) | G5: Percentage of total exposure value subject to a roll-out plan (%) | H5: Percentage of total exposure value subject to IRB Approach (%)
D6: a | E6: b | F6: c | G6: e | H6: e
B7: 1 | C7: Central governments or central banks | D7: - | E7: 99220960942 | F7: 1 | G7: 0 | H7: 0
B8: 1.1 | C8: Of which Regional governments or local authorities | E8: 12872511378 | F8: 1 | G8: 0 | H8: 0
B9: 1.2 | C9: Of which Public sector entities | E9: - | F9: 0 | G9: 0 | H9: 0
B10: 2 | C10: Institutions | D10: - | E10: 57259543212 | F10: 1 | G10: 0 | H10: 0
B11: 3 | C11: Corporates | D11: 274785953620 | E11: 276773589025 | F11: 0.0072 | G11: 0 | H11: 0.9928
B12: 3.1 | C12: Of which Corporates - Specialised lending, excluding slotting approach | E12: 188727692 | F12: 0.0015 | G12: 0 | H12: 0.9985
B13: 3.2 | C13: Of which Corporates - Specialised lending under slotting approach | E13: - | F13: 0 | G13: 0 | H13: 0
B14: 4 | C14: Retail | D14: 225166202422 | E14: 226760521805 | F14: 0.007 | G14: 0 | H14: 0.993
B15: 4.1 | C15: of which Retail – Secured by real estate SMEs | E15: 33910538544 | F15: 0.0056 | G15: 0 | H15: 0.9944
B16: 4.2 | C16: of which Retail – Secured by real estate non-SMEs | E16: 163704794377 | F16: 0.0038 | G16: 0 | H16: 0.9962
B17: 4.3 | C17: of which Retail – Qualifying revolving | E17: - | F17: 0 | G17: 0 | H17: 0
B18: 4.4 | C18: of which Retail – Other SMEs | E18: 10445153433 | F18: 0.0407 | G18: 0 | H18: 0.9593
B19: 4.5 | C19: of which Retail – Other non-SMEs | E19: 18700035451 | F19: 0.0195 | G19: 0 | H19: 0.9805
B20: 5 | C20: Equity | D20: - | E20: 1679354975 | F20: 1 | G20: 0 | H20: 0
B21: 6 | C21: Other non-credit obligation assets | D21: 5688404346 | E21: 5688404346 | F21: 0 | G21: 0 | H21: 1
B22: 7 | C22: Total | D22: 505640560388 | E22: 667382374306 | F22: 0.2424 | G22: 0 | H22: 0.7576

Sheet EU CR6-B
B2: EU CR6-B - IRB approach – Credit risk exposures by exposure class and PD range
B4: Reported in DKKm
B5: A-IRB | C5: PD scale | D5: On-balance sheet exposures | E5: Off-balance-sheet exposures pre-CCF | F5: Exposure weighted average CCF | G5: Exposure post CCF and post CRM | H5: Exposure weighted average PD (%) | I5: Number of obligors | J5: Exposure weighted average LGD (%) | K5: Exposure weighted average maturity ( years) | L5: Risk weighted exposure amount after supporting factors | M5: Density of risk weighted exposure amount | N5: Expected loss amount | O5: Value adjust-ments and provisions
C6: a | D6: b | E6: c | F6: d | G6: e | H6: f | I6: g | J6: h | K6: i | L6: j | M6: k | N6: l | O6: m
B7: Corporate
C8: 0.00 to <0.15 | D8: 5519085393 | E8: 10180360768 | F8: 0.5644 | G8: 11264439466 | H8: 0.0009 | I8: 88 | J8: 0.5076 | K8: 1 | L8: 2698284524 | M8: 0.2395 | N8: 5268317 | O8: -9175986
C9: 0.00 to <0.10 | D9: 3265029836 | E9: 6348309474 | F9: 0.633 | G9: 7283815872 | H9: 0.0007 | I9: 53 | J9: 0.4636 | K9: 1 | L9: 1268331926 | M9: 0.1741 | N9: 2376372 | O9: -3828415
C10: 0.10 to <0.15 | D10: 2254055556 | E10: 3832051294 | F10: 0.4506 | G10: 3980623594 | H10: 0.0012 | I10: 35 | J10: 0.5882 | K10: 1 | L10: 1429952598 | M10: 0.3592 | N10: 2891945 | O10: -5347571
C11: 0.15 to <0.25 | D11: 18658637925 | E11: 5705149878 | F11: 0.51 | G11: 21546823169 | H11: 0.0018 | I11: 167 | J11: 0.3968 | K11: 3 | L11: 8073992470 | M11: 0.3747 | N11: 15490119 | O11: -33441854
C12: 0.25 to <0.50 | D12: 56915677033 | E12: 17172339053 | F12: 0.4547 | G12: 64723906356 | H12: 0.003 | I12: 1248 | J12: 0.2123 | K12: 4 | L12: 16018845530 | M12: 0.2475 | N12: 44143515 | O12: -118607153
C13: 0.50 to <0.75 | D13: 14638608176 | E13: 3976941255 | F13: 0.552 | G13: 16833192916 | H13: 0.0062 | I13: 682 | J13: 0.247 | K13: 4 | L13: 6656783319 | M13: 0.3955 | N13: 24580497 | O13: -46046199
C14: 0.75 to <2.50 | D14: 75828864517 | E14: 14550295445 | F14: 0.4339 | G14: 82102142293 | H14: 0.0131 | I14: 2338 | J14: 0.1555 | K14: 4 | L14: 30223910795 | M14: 0.3681 | N14: 159840418 | O14: -304921178
C15: 0.75 to <1.75 | D15: 62331157698 | E15: 11788710722 | F15: 0.4486 | G15: 67579431697 | H15: 0.0117 | I15: 1675 | J15: 0.1541 | K15: 4 | L15: 23573964454 | M15: 0.3488 | N15: 113730990 | O15: -233917968
C16: 1.75 to <2.5 | D16: 13497706819 | E16: 2761584722 | F16: 0.3712 | G16: 14522710597 | H16: 0.02 | I16: 663 | J16: 0.1618 | K16: 4 | L16: 6649946341 | M16: 0.4579 | N16: 46109428 | O16: -71003210
C17: 2.50 to <10.00 | D17: 21200558086 | E17: 2885955727 | F17: 0.4406 | G17: 22348662439 | H17: 0.0416 | I17: 1875 | J17: 0.1797 | K17: 4 | L17: 13236806941 | M17: 0.5923 | N17: 167977262 | O17: -251977834
C18: 2.5 to <5 | D18: 16845226040 | E18: 2361232572 | F18: 0.4104 | G18: 17707692926 | H18: 0.0345 | I18: 1361 | J18: 0.1809 | K18: 4 | L18: 10050077059 | M18: 0.5676 | N18: 110889011 | O18: -161751891
C19: 5 to <10 | D19: 4355332046 | E19: 524723155 | F19: 0.5768 | G19: 4640969513 | H19: 0.0691 | I19: 514 | J19: 0.1753 | K19: 4 | L19: 3186729882 | M19: 0.6867 | N19: 57088251 | O19: -90225942
C20: 10.00 to <100.00 | D20: 3367303925 | E20: 252467066 | F20: 0.7917 | G20: 3539635574 | H20: 0.2575 | I20: 398 | J20: 0.2485 | K20: 3 | L20: 4526061506 | M20: 1.2787 | N20: 215400087 | O20: -349026358
C21: 10 to <20 | D21: 1494959110 | E21: 65391798 | F21: 0.5607 | G21: 1531621639 | H21: 0.1377 | I21: 280 | J21: 0.1218 | K21: 4 | L21: 909983109 | M21: 0.5941 | N21: 25523763 | O21: -21096875
C22: 20 to <30 | D22: 1361275375 | E22: 187075268 | F22: 0.8724 | G22: 1496944495 | H22: 0.2377 | I22: 71 | J22: 0.4271 | K22: 1 | L22: 3427535518 | M22: 2.2897 | N22: 153414307 | O22: -325038022
C23: 30.00 to <100.00 | D23: 511069440 | E23: - | F23: 0 | G23: 511069440 | H23: 0.6748 | I23: 47 | J23: 0.105 | K23: 5 | L23: 188542879 | M23: 0.3689 | N23: 36462018 | O23: -2891461
C24: 100.00 (Default) | D24: 2512590484 | E24: 1060241743 | F24: 0.096 | G24: 2595031683 | H24: 1 | I24: 192 | J24: 0.2373 | K24: 3 | L24: 2720125397 | M24: 1.0482 | N24: 635236231 | O24: -643979354
B25: Subtotal (exposure class) | D25: 198641325538 | E25: 55783750935 | F25: 0.4649 | G25: 224953833896 | H25: 0.0261 | I25: 6988 | J25: 0.2242 | K25: 4 | L25: 84154810483 | M25: 0.3741 | N25: 1267936447 | O25: -1757175915
B28: Corporate SL
C29: 0.00 to <0.15 | D29: - | E29: - | F29: 0 | G29: - | H29: 0 | I29: - | J29: 0 | K29: - | L29: - | M29: - | N29: - | O29: -
C30: 0.00 to <0.10 | D30: - | E30: - | F30: 0 | G30: - | H30: 0 | I30: - | J30: 0 | K30: - | L30: - | M30: - | N30: - | O30: -
C31: 0.10 to <0.15 | D31: - | E31: - | F31: 0 | G31: - | H31: 0 | I31: - | J31: 0 | K31: - | L31: - | M31: - | N31: - | O31: -
C32: 0.15 to <0.25 | D32: - | E32: 7300000 | F32: 0.85 | G32: 6240000 | H32: 0.0024 | I32: 1 | J32: 0.57 | K32: 1 | L32: 2238759 | M32: 0.3588 | N32: 8677 | O32: -20638
C33: 0.25 to <0.50 | D33: 279179 | E33: 12237292 | F33: 0.91 | G33: 11386138 | H33: 0.0038 | I33: 5 | J33: 0.3496 | K33: 1 | L33: 3695235 | M33: 0.3245 | N33: 15225 | O33: -32721
C34: 0.50 to <0.75 | D34: 18448532 | E34: 14701468 | F34: 0.86 | G34: 31113808 | H34: 0.0058 | I34: 4 | J34: 0.0478 | K34: 1 | L34: 1189960 | M34: 0.0382 | N34: 8431 | O34: -14856
C35: 0.75 to <2.50 | D35: 102451128 | E35: 57396516 | F35: 0.65 | G35: 139534996 | H35: 0.0107 | I35: 8 | J35: 0.352 | K35: 2 | L35: 111617256 | M35: 0.7999 | N35: 623016 | O35: -1100691
C36: 0.75 to <1.75 | D36: 102447428 | E36: 16996516 | F36: 0.98 | G36: 119131296 | H36: 0.0092 | I36: 7 | J36: 0.3112 | K36: 3 | L36: 83925388 | M36: 0.7045 | N36: 391030 | O36: -728696
C37: 1.75 to <2.5 | D37: 3700 | E37: 40400000 | F37: 0.5 | G37: 20403700 | H37: 0.0193 | I37: 1 | J37: 0.59 | K37: 1 | L37: 27691868 | M37: 1.357198362 | N37: 231986 | O37: -371994
C38: 2.50 to <10.00 | D38: - | E38: - | F38: 0 | G38: - | H38: 0 | I38: - | J38: 0 | K38: - | L38: - | M38: - | N38: - | O38: -
C39: 2.5 to <5 | D39: - | E39: - | F39: 0 | G39: - | H39: 0 | I39: - | J39: 0 | K39: - | L39: - | M39: - | N39: - | O39: -
C40: 5 to <10 | D40: - | E40: - | F40: 0 | G40: - | H40: 0 | I40: - | J40: 0 | K40: - | L40: - | M40: - | N40: - | O40: -
C41: 10.00 to <100.00 | D41: - | E41: - | F41: 0 | G41: - | H41: 0 | I41: - | J41: 0 | K41: - | L41: - | M41: - | N41: - | O41: -
C42: 10 to <20 | D42: - | E42: - | F42: 0 | G42: - | H42: 0 | I42: - | J42: 0 | K42: - | L42: - | M42: - | N42: - | O42: -
C43: 20 to <30 | D43: - | E43: - | F43: 0 | G43: - | H43: 0 | I43: - | J43: 0 | K43: - | L43: - | M43: - | N43: - | O43: -
C44: 30.00 to <100.00 | D44: - | E44: - | F44: 0 | G44: - | H44: 0 | I44: - | J44: 0 | K44: - | L44: - | M44: - | N44: - | O44: -
C45: 100.00 (Default) | D45: 171314 | E45: 78686 | F45: 0 | G45: 171314 | H45: 1 | I45: 1 | J45: 0.55 | K45: 1 | L45: - | M45: 0 | N45: 177141 | O45: -171314
B46: Subtotal (exposure class) | D46: 121350153 | E46: 91713961 | F46: 0.7038 | G46: 188446257 | H46: 0.0101 | I46: 19 | J46: 0.309 | K46: 2 | L46: 118741210 | M46: 0.6301 | N46: 832490 | O46: -1340220
B48: Corporate SME
C49: 0.00 to <0.15 | D49: 2727265210 | E49: 2702815935 | F49: 0.427 | G49: 3860060226 | H49: 0.001 | I49: 67 | J49: 0.4538 | K49: 2 | L49: 828179061 | M49: 0.2146 | N49: 1789717 | O49: -5680790
C50: 0.00 to <0.10 | D50: 1322389933 | E50: 600913234 | F50: 0.6862 | G50: 1734724845 | H50: 0.0007 | I50: 36 | J50: 0.4333 | K50: 2 | L50: 286328579 | M50: 0.1651 | N50: 546918 | O50: -3389553
C51: 0.10 to <0.15 | D51: 1404875277 | E51: 2101902700 | F51: 0.353 | G51: 2125335381 | H51: 0.0012 | I51: 31 | J51: 0.4706 | K51: 2 | L51: 541850482 | M51: 0.2549 | N51: 1242798 | O51: -2291237
C52: 0.15 to <0.25 | D52: 1323441192 | E52: 266622431 | F52: 0.6906 | G52: 1507557981 | H52: 0.0019 | I52: 65 | J52: 0.2318 | K52: 2 | L52: 241525129 | M52: 0.1602 | N52: 638134 | O52: -3796259
C53: 0.25 to <0.50 | D53: 5341334292 | E53: 3358962575 | F53: 0.4713 | G53: 6924538588 | H53: 0.0035 | I53: 201 | J53: 0.2129 | K53: 3 | L53: 1315425930 | M53: 0.19 | N53: 4784572 | O53: -35688793
C54: 0.50 to <0.75 | D54: 5371650579 | E54: 1166117451 | F54: 0.6842 | G54: 6168166848 | H54: 0.0061 | I54: 177 | J54: 0.1805 | K54: 3 | L54: 1378687630 | M54: 0.2235 | N54: 6705107 | O54: -27738139
C55: 0.75 to <2.50 | D55: 16281658253 | E55: 3890833948 | F55: 0.5249 | G55: 18256726426 | H55: 0.0143 | I55: 708 | J55: 0.2198 | K55: 3 | L55: 7185753188 | M55: 0.3936 | N55: 57459753 | O55: -115947345
C56: 0.75 to <1.75 | D56: 10650734919 | E56: 2923516931 | F56: 0.5683 | G56: 12250598915 | H56: 0.0116 | I56: 494 | J56: 0.2115 | K56: 3 | L56: 4314601184 | M56: 0.3522 | N56: 29230345 | O56: -72907105
C57: 1.75 to <2.5 | D57: 5630923334 | E57: 967317017 | F57: 0.3938 | G57: 6006127510 | H57: 0.0199 | I57: 214 | J57: 0.2368 | K57: 3 | L57: 2871152005 | M57: 0.478 | N57: 28229409 | O57: -43040239
C58: 2.50 to <10.00 | D58: 8564771063 | E58: 1809598918 | F58: 0.3557 | G58: 9189176324 | H58: 0.0438 | I58: 505 | J58: 0.1843 | K58: 3 | L58: 4368530524 | M58: 0.4754 | N58: 74510932 | O58: -198531568
C59: 2.5 to <5 | D59: 6479519931 | E59: 1073858974 | F59: 0.4603 | G59: 6956109272 | H59: 0.0353 | I59: 374 | J59: 0.1792 | K59: 4 | L59: 3036009099 | M59: 0.4365 | N59: 43644943 | O59: -75702962
C60: 5 to <10 | D60: 2085251132 | E60: 735739944 | F60: 0.203 | G60: 2233067052 | H60: 0.0699 | I60: 131 | J60: 0.1999 | K60: 3 | L60: 1332521425 | M60: 0.5967 | N60: 30865990 | O60: -122828606
C61: 10.00 to <100.00 | D61: 1783641613 | E61: 364226333 | F61: 0.297 | G61: 1869848214 | H61: 0.2313 | I61: 91 | J61: 0.2208 | K61: 3 | L61: 1684818928 | M61: 0.901 | N61: 88388514 | O61: -107784581
C62: 10 to <20 | D62: 746630284 | E62: 293433899 | F62: 0.171 | G62: 796812435 | H62: 0.137 | I62: 42 | J62: 0.2193 | K62: 3 | L62: 677684823 | M62: 0.8505 | N62: 23434590 | O62: -33582333
C63: 20 to <30 | D63: 886514788 | E63: 70792435 | F63: 0.819 | G63: 922539238 | H63: 0.2432 | I63: 43 | J63: 0.2394 | K63: 3 | L63: 953298350 | M63: 1.0333 | N63: 53549496 | O63: -66236075
C64: 30.00 to <100.00 | D64: 150496541 | E64: - | F64: 0 | G64: 150496541 | H64: 0.6569 | I64: 6 | J64: 0.1149 | K64: 5 | L64: 53835756 | M64: 0.3577 | N64: 11404429 | O64: -7966173
C65: 100.00 (Default) | D65: 1464362070 | E65: 177851562 | F65: 0.2204 | G65: 1472277247 | H65: 1 | I65: 71 | J65: 0.2878 | K65: 3 | L65: 1501435630 | M65: 1.0198 | N65: 437529980 | O65: -431146494
B66: Subtotal (exposure class) | D66: 42858124273 | E66: 13737029153 | F66: 0.4854 | G66: 49248351853 | H66: 0.0536 | I66: 1885 | J66: 0.2281 | K66: 3 | L66: 18504356020 | M66: 0.3757 | N66: 671806709 | O66: -926313970
B68: Retail Mort
C69: 0.00 to <0.15 | D69: 2677224046 | E69: 1140064748 | F69: 0.7302 | G69: 3509709659 | H69: 0.0009 | I69: 9804 | J69: 0.0667 | K69: - | L69: 57228172 | M69: 0.0163 | N69: 227369 | O69: -5713144
C70: 0.00 to <0.10 | D70: 1718794998 | E70: 759736926 | F70: 0.7219 | G70: 2267256619 | H70: 0.0007 | I70: 6425 | J70: 0.0589 | K70: - | L70: 27874657 | M70: 0.0123 | N70: 105150 | O70: -560812
C71: 0.10 to <0.15 | D71: 958429049 | E71: 380327821 | F71: 0.7468 | G71: 1242453040 | H71: 0.0012 | I71: 3379 | J71: 0.0809 | K71: - | L71: 29353515 | M71: 0.0236 | N71: 122219 | O71: -5152331
C72: 0.15 to <0.25 | D72: 1313141658 | E72: 374461537 | F72: 0.7685 | G72: 1600904275 | H72: 0.002 | I72: 3661 | J72: 0.0833 | K72: - | L72: 56679123 | M72: 0.0354 | N72: 267310 | O72: -8621062
C73: 0.25 to <0.50 | D73: 4097889675 | E73: 401286948 | F73: 0.7704 | G73: 4407052986 | H73: 0.004 | I73: 7980 | J73: 0.0779 | K73: - | L73: 240081437 | M73: 0.0545 | N73: 1364576 | O73: -12826209
C74: 0.50 to <0.75 | D74: 39837147491 | E74: 278292750 | F74: 0.5493 | G74: 39990011720 | H74: 0.0064 | I74: 54662 | J74: 0.0937 | K74: - | L74: 3677377253 | M74: 0.092 | N74: 24003167 | O74: -56699433
C75: 0.75 to <2.50 | D75: 93701429892 | E75: 1180293785 | F75: 0.2818 | G75: 94034036687 | H75: 0.0129 | I75: 89733 | J75: 0.1049 | K75: - | L75: 15460617913 | M75: 0.1644 | N75: 129982203 | O75: -127443417
C76: 0.75 to <1.75 | D76: 79413911940 | E76: 332246405 | F76: 0.423 | G76: 79554453973 | H76: 0.0115 | I76: 77891 | J76: 0.0995 | K76: - | L76: 11373743786 | M76: 0.143 | N76: 90142348 | O76: -99151336
C77: 1.75 to <2.5 | D77: 14287517953 | E77: 848047380 | F77: 0.2265 | G77: 14479582714 | H77: 0.0209 | I77: 11842 | J77: 0.1347 | K77: - | L77: 4086874127 | M77: 0.2823 | N77: 39839856 | O77: -28292082
C78: 2.50 to <10.00 | D78: 14705162724 | E78: 89159674 | F78: 0.4504 | G78: 14745322259 | H78: 0.0475 | I78: 12579 | J78: 0.1117 | K78: - | L78: 5415294866 | M78: 0.3673 | N78: 78026826 | O78: -99123989
C79: 2.5 to <5 | D79: 9412133672 | E79: 70840040 | F79: 0.48 | G79: 9446136006 | H79: 0.0344 | I79: 8047 | J79: 0.1094 | K79: - | L79: 2912423403 | M79: 0.3083 | N79: 35207881 | O79: -38458702
C80: 5 to <10 | D80: 5293029052 | E80: 18319634 | F80: 0.3361 | G80: 5299186253 | H80: 0.0709 | I80: 4532 | J80: 0.1158 | K80: - | L80: 2502871463 | M80: 0.4723 | N80: 42818945 | O80: -60665287
C81: 10.00 to <100.00 | D81: 3086472616 | E81: 16884044 | F81: 0.669 | G81: 3097768202 | H81: 0.2366 | I81: 3061 | J81: 0.1215 | K81: - | L81: 2104774729 | M81: 0.6794 | N81: 89461493 | O81: -92125624
C82: 10 to <20 | D82: 1581656776 | E82: 7701232 | F82: 0.5423 | G82: 1585833450 | H82: 0.1343 | I82: 1446 | J82: 0.1222 | K82: - | L82: 1034987985 | M82: 0.6526 | N82: 26149997 | O82: -49379586
C83: 20 to <30 | D83: 657307047 | E83: 8238262 | F83: 0.8412 | G83: 664237049 | H83: 0.2309 | I83: 824 | J83: 0.1156 | K83: - | L83: 467608727 | M83: 0.704 | N83: 17845156 | O83: -23430098
C84: 30.00 to <100.00 | D84: 847508793 | E84: 944551 | F84: 0.2 | G84: 847697703 | H84: 0.4324 | I84: 791 | J84: 0.1249 | K84: - | L84: 602178016 | M84: 0.7104 | N84: 45466341 | O84: -19315940
C85: 100.00 (Default) | D85: 1695143984 | E85: 23567511 | F85: 0.3826 | G85: 1704160852 | H85: 1 | I85: 2296 | J85: 0.1468 | K85: - | L85: 1819790314 | M85: 1.0679 | N85: 144585296 | O85: -147286457
B86: Subtotal (exposure class) | D86: 161113612086 | E86: 3504010997 | F86: 0.3987 | G86: 163088966640 | H86: 0.0284 | I86: 183776 | J86: 0.1018 | K86: - | L86: 28831843807 | M86: 0.1768 | N86: 467918239 | O86: -549839335
B88: Retail Mort SME
C89: 0.00 to <0.15 | D89: 141366605 | E89: 26185690 | F89: 0.7144 | G89: 160074843 | H89: 0.0009 | I89: 33 | J89: 0.1255 | K89: - | L89: 3436180 | M89: 0.0215 | N89: 17433 | O89: -447034
C90: 0.00 to <0.10 | D90: 126475779 | E90: 6142554 | F90: 0.2 | G90: 127704289 | H90: 0.0008 | I90: 19 | J90: 0.1225 | K90: - | L90: 2429580 | M90: 0.019 | N90: 11907 | O90: -410881
C91: 0.10 to <0.15 | D91: 14890827 | E91: 20043136 | F91: 0.8721 | G91: 32370554 | H91: 0.0012 | I91: 14 | J91: 0.1372 | K91: - | L91: 1006600 | M91: 0.0311 | N91: 5526 | O91: -36153
C92: 0.15 to <0.25 | D92: 1910914607 | E92: 54811887 | F92: 0.9033 | G92: 1960424063 | H92: 0.0019 | I92: 222 | J92: 0.0957 | K92: - | L92: 57947815 | M92: 0.0296 | N92: 352256 | O92: -6761027
C93: 0.25 to <0.50 | D93: 2226489266 | E93: 307831917 | F93: 0.8287 | G93: 2481595055 | H93: 0.0037 | I93: 543 | J93: 0.0999 | K93: - | L93: 134096342 | M93: 0.054 | N93: 966372 | O93: -7732915
C94: 0.50 to <0.75 | D94: 3321895843 | E94: 297615630 | F94: 0.7452 | G94: 3543675416 | H94: 0.0058 | I94: 697 | J94: 0.1044 | K94: - | L94: 258256299 | M94: 0.0729 | N94: 2145742 | O94: -12922458
C95: 0.75 to <2.50 | D95: 18439466437 | E95: 2492584895 | F95: 0.3948 | G95: 19423448805 | H95: 0.0143 | I95: 1816 | J95: 0.1091 | K95: - | L95: 2709872066 | M95: 0.1395 | N95: 30385581 | O95: -72837497
C96: 0.75 to <1.75 | D96: 12798625430 | E96: 528785868 | F96: 0.7751 | G96: 13208505712 | H96: 0.0114 | I96: 1374 | J96: 0.1086 | K96: - | L96: 1583470087 | M96: 0.1199 | N96: 16350072 | O96: -51580825
C97: 1.75 to <2.5 | D97: 5640841007 | E97: 1963799027 | F97: 0.2923 | G97: 6214943094 | H97: 0.0205 | I97: 442 | J97: 0.11 | K97: - | L97: 1126401978 | M97: 0.1812 | N97: 14035509 | O97: -21256672
C98: 2.50 to <10.00 | D98: 4666892457 | E98: 147875271 | F98: 0.838 | G98: 4790806794 | H98: 0.0446 | I98: 804 | J98: 0.1072 | K98: - | L98: 1298971895 | M98: 0.2711 | N98: 23671009 | O98: -30600943
C99: 2.5 to <5 | D99: 3513439978 | E99: 112238010 | F99: 0.8778 | G99: 3611962754 | H99: 0.0352 | I99: 585 | J99: 0.1037 | K99: - | L99: 835424778 | M99: 0.2313 | N99: 13322944 | O99: -16676636
C100: 5 to <10 | D100: 1153452478 | E100: 35637261 | F100: 0.7125 | G100: 1178844040 | H100: 0.0732 | I100: 219 | J100: 0.1179 | K100: - | L100: 463547117 | M100: 0.3932 | N100: 10348065 | O100: -13924307
C101: 10.00 to <100.00 | D101: 880177585 | E101: 27807473 | F101: 0.7887 | G101: 902109975 | H101: 0.336 | I101: 200 | J101: 0.1127 | K101: - | L101: 395292676 | M101: 0.4382 | N101: 33094650 | O101: -22337882
C102: 10 to <20 | D102: 450755945 | E102: 6082930 | F102: 0.5019 | G102: 453808891 | H102: 0.1502 | I102: 71 | J102: 0.1173 | K102: - | L102: 225867693 | M102: 0.4977 | N102: 8002807 | O102: -7795812
C103: 20 to <30 | D103: 130406093 | E103: 21724543 | F103: 0.869 | G103: 149285538 | H103: 0.2264 | I103: 106 | J103: 0.1118 | K103: - | L103: 78518190 | M103: 0.526 | N103: 3771348 | O103: -8165224
C104: 30.00 to <100.00 | D104: 299015546 | E104: - | F104: 0 | G104: 299015546 | H104: 0.6727 | I104: 23 | J104: 0.106 | K104: - | L104: 90906793 | M104: 0.304 | N104: 21320496 | O104: -6376846
C105: 100.00 (Default) | D105: 448720419 | E105: 15052818 | F105: 0.7427 | G105: 459900569 | H105: 1 | I105: 152 | J105: 0.1151 | K105: - | L105: 435808694 | M105: 0.9476 | N105: 26470186 | O105: -27578608
B106: Subtotal (exposure class) | D106: 32035923219 | E106: 3369765581 | F106: 0.5729 | G106: 33722035521 | H106: 0.0382 | I106: 4467 | J106: 0.1071 | K106: - | L106: 5293681966 | M106: 0.157 | N106: 117103230 | O106: -181218363
B108: Retail Other
C109: 0.00 to <0.15 | D109: 1818707321 | E109: 4528518200 | F109: 0.8392 | G109: 5619038823 | H109: 0.0009 | I109: 41982 | J109: 0.4572 | K109: - | L109: 637326284 | M109: 0.1134 | N109: 2403219 | O109: -28190287
C110: 0.00 to <0.10 | D110: 1097077354 | E110: 2889552081 | F110: 0.8422 | G110: 3530686372 | H110: 0.0008 | I110: 26144 | J110: 0.4527 | K110: - | L110: 345721158 | M110: 0.0979 | N110: 1234598 | O110: -4260841
C111: 0.10 to <0.15 | D111: 721629966 | E111: 1638966118 | F111: 0.8339 | G111: 2088352451 | H111: 0.0012 | I111: 15838 | J111: 0.4649 | K111: - | L111: 291605127 | M111: 0.1396 | N111: 1168621 | O111: -23929446
C112: 0.15 to <0.25 | D112: 842751889 | E112: 1138712322 | F112: 0.8498 | G112: 1810397915 | H112: 0.002 | I112: 22418 | J112: 0.44 | K112: - | L112: 337376469 | M112: 0.1864 | N112: 1569158 | O112: -27907007
C113: 0.25 to <0.50 | D113: 1177660116 | E113: 1015722268 | F113: 0.8517 | G113: 2042636623 | H113: 0.0034 | I113: 20952 | J113: 0.4753 | K113: - | L113: 583575315 | M113: 0.2857 | N113: 3294941 | O113: -31534337
C114: 0.50 to <0.75 | D114: 342576882 | E114: 495034074 | F114: 0.9134 | G114: 794741097 | H114: 0.0061 | I114: 4476 | J114: 0.4834 | K114: - | L114: 325434655 | M114: 0.4095 | N114: 2339663 | O114: -13909234
C115: 0.75 to <2.50 | D115: 5017447141 | E115: 1016426027 | F115: 0.8602 | G115: 5891633157 | H115: 0.0146 | I115: 60014 | J115: 0.295 | K115: - | L115: 2115216162 | M115: 0.359 | N115: 24958171 | O115: -66850390
C116: 0.75 to <1.75 | D116: 3806294293 | E116: 834845424 | F116: 0.8552 | G116: 4520287057 | H116: 0.0128 | I116: 45675 | J116: 0.2961 | K116: - | L116: 1565651738 | M116: 0.3464 | N116: 16689461 | O116: -47195751
C117: 1.75 to <2.5 | D117: 1211152848 | E117: 181580603 | F117: 0.8828 | G117: 1371346100 | H117: 0.0205 | I117: 14339 | J117: 0.2912 | K117: - | L117: 549564424 | M117: 0.4007 | N117: 8268710 | O117: -19654639
C118: 2.50 to <10.00 | D118: 1397339444 | E118: 479197314 | F118: 0.5439 | G118: 1657599621 | H118: 0.0435 | I118: 13025 | J118: 0.2996 | K118: - | L118: 758882312 | M118: 0.4578 | N118: 20915101 | O118: -42205829
C119: 2.5 to <5 | D119: 1010500128 | E119: 365522886 | F119: 0.5798 | G119: 1222065175 | H119: 0.0321 | I119: 9610 | J119: 0.3054 | K119: - | L119: 555878014 | M119: 0.4549 | N119: 12006593 | O119: -27984050
C120: 5 to <10 | D120: 386839316 | E120: 113674428 | F120: 0.4284 | G120: 435534446 | H120: 0.0754 | I120: 3415 | J120: 0.2835 | K120: - | L120: 203004297 | M120: 0.4661 | N120: 8908508 | O120: -14221779
C121: 10.00 to <100.00 | D121: 241003808 | E121: 31113582 | F121: 0.5528 | G121: 258026918 | H121: 0.2007 | I121: 3260 | J121: 0.3155 | K121: - | L121: 187390043 | M121: 0.7262 | N121: 15792784 | O121: -32905363
C122: 10 to <20 | D122: 116174943 | E122: 16844747 | F122: 0.6393 | G122: 126769338 | H122: 0.1665 | I122: 1705 | J122: 0.3693 | K122: - | L122: 102391932 | M122: 0.8077 | N122: 7855792 | O122: -16358893
C123: 20 to <30 | D123: 105464021 | E123: 13791882 | F123: 0.4641 | G123: 111863359 | H123: 0.2125 | I123: 1398 | J123: 0.2717 | K123: - | L123: 73385554 | M123: 0.656 | N123: 6432840 | O123: -13986725
C124: 30.00 to <100.00 | D124: 19364844 | E124: 476953 | F124: 0.0616 | G124: 19394221 | H124: 0.3558 | I124: 157 | J124: 0.2162 | K124: - | L124: 11612556 | M124: 0.5988 | N124: 1504151 | O124: -2559746
C125: 100.00 (Default) | D125: 257788409 | E125: 30991956 | F125: 0.0936 | G125: 260559280 | H125: 1 | I125: 3204 | J125: 0.3984 | K125: - | L125: 199145958 | M125: 0.7643 | N125: 158884538 | O125: -157710535
B126: Subtotal (exposure class) | D126: 11095275009 | E126: 8735715743 | F126: 0.8103 | G126: 18334633433 | H126: 0.0268 | I126: 169331 | J126: 0.3895 | K126: - | L126: 5144347198 | M126: 0.2806 | N126: 230157573 | O126: -401212982
B128: Retail Other SME
C129: 0.00 to <0.15 | D129: 50427555 | E129: 758502256 | F129: 0.5819 | G129: 491829745 | H129: 0.0011 | I129: 64 | J129: 0.513 | K129: - | L129: 54185569 | M129: 0.1102 | N129: 279893 | O129: -427822
C130: 0.00 to <0.10 | D130: 16104708 | E130: 154049783 | F130: 0.6962 | G130: 123349333 | H130: 0.0006 | I130: 23 | J130: 0.4855 | K130: - | L130: 8002205 | M130: 0.0649 | N130: 36016 | O130: -50378
C131: 0.10 to <0.15 | D131: 34322847 | E131: 604452473 | F131: 0.5528 | G131: 368480412 | H131: 0.0013 | I131: 41 | J131: 0.5222 | K131: - | L131: 46183364 | M131: 0.1253 | N131: 243877 | O131: -377444
C132: 0.15 to <0.25 | D132: 91035013 | E132: 495542741 | F132: 0.6959 | G132: 434613428 | H132: 0.0019 | I132: 226 | J132: 0.4801 | K132: - | L132: 69506043 | M132: 0.1599 | N132: 397960 | O132: -1000476
C133: 0.25 to <0.50 | D133: 256960335 | E133: 1131011842 | F133: 0.6872 | G133: 1025842483 | H133: 0.0037 | I133: 1073 | J133: 0.4404 | K133: - | L133: 225371304 | M133: 0.2197 | N133: 1676968 | O133: -3008098
C134: 0.50 to <0.75 | D134: 265343471 | E134: 1167479206 | F134: 0.6245 | G134: 983493873 | H134: 0.0062 | I134: 950 | J134: 0.4634 | K134: - | L134: 310088688 | M134: 0.3153 | N134: 2796335 | O134: -5686127
C135: 0.75 to <2.50 | D135: 1123621130 | E135: 2893330233 | F135: 0.635 | G135: 2919585634 | H135: 0.0135 | I135: 2804 | J135: 0.4221 | K135: - | L135: 1123474242 | M135: 0.3848 | N135: 16299675 | O135: -19377960
C136: 0.75 to <1.75 | D136: 796838299 | E136: 2184288031 | F136: 0.6607 | G136: 2216037630 | H136: 0.0114 | I136: 2139 | J136: 0.4386 | K136: - | L136: 847225392 | M136: 0.3823 | N136: 11004174 | O136: -13303200
C137: 1.75 to <2.5 | D137: 326782831 | E137: 709042203 | F137: 0.5558 | G137: 703548003 | H137: 0.0203 | I137: 665 | J137: 0.3703 | K137: - | L137: 276248849 | M137: 0.3927 | N137: 5295500 | O137: -6074760
C138: 2.50 to <10.00 | D138: 2662537751 | E138: 1315847925 | F138: 0.3868 | G138: 3165100391 | H138: 0.0497 | I138: 8900 | J138: 0.2483 | K138: - | L138: 936470856 | M138: 0.2959 | N138: 37841137 | O138: -46980370
C139: 2.5 to <5 | D139: 1444461755 | E139: 828784878 | F139: 0.4062 | G139: 1778524671 | H139: 0.0364 | I139: 5414 | J139: 0.2604 | K139: - | L139: 536062348 | M139: 0.3014 | N139: 16485050 | O139: -20564044
C140: 5 to <10 | D140: 1218075995 | E140: 487063047 | F140: 0.3536 | G140: 1386575720 | H140: 0.0667 | I140: 3486 | J140: 0.2328 | K140: - | L140: 400408508 | M140: 0.2888 | N140: 21356087 | O140: -26416325
C141: 10.00 to <100.00 | D141: 447569316 | E141: 240779173 | F141: 0.481 | G141: 542146200 | H141: 0.1816 | I141: 1050 | J141: 0.2446 | K141: - | L141: 236464054 | M141: 0.4362 | N141: 24838110 | O141: -56422777
C142: 10 to <20 | D142: 325156341 | E142: 143821435 | F142: 0.3587 | G142: 362250577 | H142: 0.158 | I142: 668 | J142: 0.1901 | K142: - | L142: 114848514 | M142: 0.317 | N142: 10633374 | O142: -21469709
C143: 20 to <30 | D143: 109551731 | E143: 96679808 | F143: 0.6637 | G143: 166978793 | H143: 0.2202 | I143: 331 | J143: 0.3715 | K143: - | L143: 117972238 | M143: 0.7065 | N143: 13613399 | O143: -33607208
C144: 30.00 to <100.00 | D144: 12861244 | E144: 277930 | F144: 0.2 | G144: 12916830 | H144: 0.3441 | I144: 51 | J144: 0.1331 | K144: - | L144: 3643301 | M144: 0.2821 | N144: 591337 | O144: -1345860
C145: 100.00 (Default) | D145: 300977554 | E145: 149314935 | F145: 0.4463 | G145: 353122151 | H145: 1 | I145: 691 | J145: 0.3354 | K145: - | L145: 585856716 | M145: 1.6591 | N145: 130647154 | O145: -134275537
B146: Subtotal (exposure class) | D146: 5198472124 | E146: 8151808311 | F146: 0.545 | G146: 9915733905 | H146: 0.0665 | I146: 15758 | J146: 0.3669 | K146: - | L146: 3541417471 | M146: 0.3572 | N146: 214777231 | O146: -267179167
B148: Total (all exposures classes) | D148: 451064082402 | E148: 93373794681 | F148: 0.467 | G148: 499452001505 | H148: 0.0312 | I148: 382224 | J148: 0.1857 | K148: 2 | L148: 145589198155 | M148: 0.2915 | N148: 2970531920 | O148: -4084279953

Sheet EU CR7
B2: EU CR7 - IRB approach – Effect on the RWEAs of credit derivatives used as CRM techniques
B4: Reported in DKKm | D4: Pre-credit derivatives risk weighted exposure amount | E4: Actual risk weighted exposure amount
D5: a | E5: b
B6: 1 | C6: Exposures under F-IRB
B7: 2 | C7: Central governments and central banks
B8: 3 | C8: Institutions
B9: 4 | C9: Corporates
B10: 4.1 | C10: of which Corporates - SMEs
B11: 4.2 | C11: of which Corporates - Specialised lending
B12: 5 | C12: Exposures under A-IRB | D12: 145589198155 | E12: 145589198155
B13: 6 | C13: Central governments and central banks
B14: 7 | C14: Institutions
B15: 8 | C15: Corporates | D15: 102777907712 | E15: 102777907712
B16: 8.1 | C16: of which Corporates - SMEs | D16: 18504356020 | E16: 18504356020
B17: 8.2 | C17: of which Corporates - Specialised lending | D17: 118741209 | E17: 118741209
B18: 9 | C18: Retail | D18: 42811290442 | E18: 42811290442
B19: 9.1 | C19: of which Retail – SMEs - Secured by immovable property collateral | D19: 5293681966 | E19: 5293681966
B20: 9.2 | C20: of which Retail – non-SMEs - Secured by immovable property collateral | D20: 28831843807 | E20: 28831843807
B21: 9.3 | C21: of which Retail – Qualifying revolving
B22: 9.4 | C22: of which Retail – SMEs - Other | D22: 3541417472 | E22: 3541417472
B23: 9.5 | C23: of which Retail – Non-SMEs- Other | D23: 5144347198 | E23: 5144347198
B24: 10 | C24: TOTAL (including F-IRB exposures and A-IRB exposures) | D24: 145589198155 | E24: 145589198155

Sheet EU CR7-A
B2: EU CR7-A - IRB approach – Disclosure of the extent of the use of CRM techniques
B4: Reported in DKKm
B5: A-IRB | D5: Total exposures | E5: Credit risk Mitigation techniques | P5: Credit risk Mitigation methods in the calculation of RWEAs
E6: Funded credit Protection (FCP) | N6: Unfunded credit Protection (UFCP) | P6: RWEA without substitution effects (reduction effects only) | Q6: RWEA with substitution effects (both reduction and sustitution effects)
E7: Part of exposures covered by Financial Collaterals (%) | F7: Part of exposures covered by Other eligible collaterals (%) | J7: Part of exposures covered by Other funded credit protection (%) | N7: Part of exposures covered by Guarantees (%) | O7: Part of exposures covered by Credit Derivatives (%)
G8: Part of exposures covered by Immovable property Collaterals (%) | H8: Part of exposures covered by Receivables (%) | I8: Part of exposures covered by Other physical collateral (%) | K8: Part of exposures covered by Cash on deposit (%) | L8: Part of exposures covered by Life insurance policies (%) | M8: Part of exposures covered by Instruments held by a third party (%)
D9: a | E9: b | F9: c | G9: d | H9: e | I9: f | J9: g | K9: h | L9: i | M9: j | N9: k | O9: l | P9: m | Q9: n
B10: 1 | C10: Central governments and central banks | D10: 0 | E10: 0 | F10: 0 | G10: 0 | H10: 0 | I10: 0 | J10: 0 | K10: 0 | L10: 0 | M10: 0 | N10: 0 | O10: 0 | P10: No mapping to reporting | Q10: 0
B11: 2 | C11: Institutions | D11: 0 | E11: 0 | F11: 0 | G11: 0 | H11: 0 | I11: 0 | J11: 0 | K11: 0 | L11: 0 | M11: 0 | N11: 0 | O11: 0 | P11: No mapping to reporting | Q11: 0
B12: 3 | C12: Corporates | D12: 274390632006 | E12: 0.02 | F12: 0.62 | G12: 0.58 | H12: 0 | I12: 0.04 | J12: 0 | K12: 0 | L12: 0 | M12: 0 | N12: 0.01 | O12: 0 | P12: 103477814296 | Q12: 102777907712
B13: 3.1 | C13: Of which Corporates – SMEs | D13: 49248351853 | E13: 0.04 | F13: 0.61 | G13: 0.47 | H13: 0 | I13: 0.13 | J13: 0 | K13: 0 | L13: 0 | M13: 0 | N13: 0.02 | O13: 0 | P13: 18873651353 | Q13: 18504356020
B14: 3.2 | C14: Of which Corporates – Specialised lending | D14: 188446257 | E14: 0 | F14: 0.46 | G14: 0.46 | H14: 0 | I14: 0 | J14: 0 | K14: 0 | L14: 0 | M14: 0 | N14: 0 | O14: 0 | P14: 118741209 | Q14: 118741209
B15: 3.3 | C15: Of which Corporates – Other | D15: 224953833896 | E15: 0.02 | F15: 0.62 | G15: 0.6 | H15: 0 | I15: 0.02 | J15: 0 | K15: 0 | L15: 0 | M15: 0 | N15: 0 | O15: 0 | P15: 84485421734 | Q15: 84154810483
B16: 4 | C16: Retail | D16: 388150336139 | E16: 0 | F16: 0.37 | G16: 0.35 | H16: 0 | I16: 0.02 | J16: 0 | K16: 0 | L16: 0 | M16: 0 | N16: 0 | O16: 0 | P16: 42950508202 | Q16: 42811290442
B17: 4.1 | C17: Of which Retail – Immovable property SMEs | D17: 196811002161 | E17: 0 | F17: 0.16 | G17: 0.16 | H17: 0 | I17: 0 | J17: 0 | K17: 0 | L17: 0 | M17: 0 | N17: 0 | O17: 0 | P17: 5296588148 | Q17: 5293681966
B18: 4.2 | C18: Of which Retail – Immovable property non-SMEs | D18: 163088966640 | E18: 0 | F18: 0.64 | G18: 0.64 | H18: 0 | I18: 0 | J18: 0 | K18: 0 | L18: 0 | M18: 0 | N18: 0 | O18: 0 | P18: 28831843807 | Q18: 28831843807
B19: 4.3 | C19: Of which Retail – Qualifying revolving | D19: 163088966640 | E19: 0 | F19: 0.64 | G19: 0.64 | H19: 0 | I19: 0 | J19: 0 | K19: 0 | L19: 0 | M19: 0 | N19: 0 | O19: 0 | P19: 28831843807 | Q19: 28831843807
B20: 4.4 | C20: Of which Retail – Other SMEs | D20: 9915733905 | E20: 0.07 | F20: 0.21 | G20: 0 | H20: 0 | I20: 0.21 | J20: 0 | K20: 0 | L20: 0 | M20: 0 | N20: 0.06 | O20: 0 | P20: 3676618436 | Q20: 3541417472
B21: 4.5 | C21: Of which Retail – Other non-SMEs | D21: 18334633433 | E21: 0.05 | F21: 0.24 | G21: 0 | H21: 0 | I21: 0.24 | J21: 0 | K21: 0 | L21: 0 | M21: 0 | N21: 0 | O21: 0 | P21: 5145457812 | Q21: 5144347198
B22: 5 | C22: Total | D22: 499452001505 | E22: 0.02 | F22: 0.63 | G22: 0.59 | H22: 0 | I22: 0.03 | J22: 0 | K22: 0 | L22: 0 | M22: 0 | N22: 0 | O22: 0 | P22: 146428322499 | Q22: 145589198155

Sheet EU CR8
B2: EU CR8 - RWEA flow statements of credit risk exposures under the IRB approach
B4: Reported in DKKm | D4: Risk weighted exposure amount
D5: a
B6: 1 | C6: Risk weighted exposure amount as at the end of the previous reporting period | D6: 144024.6013
B7: 2 | C7: Asset size (+/-) | D7: -335.725527
B8: 3 | C8: Asset quality (+/-) | D8: 1853
B9: 4 | C9: Model updates (+/-) | D9: 0
B10: 5 | C10: Methodology and policy (+/-) | D10: 0
B11: 6 | C11: Acquisitions and disposals (+/-) | D11: 0
B12: 7 | C12: Foreign exchange movements (+/-) | D12: 47.32244638
B13: 8 | C13: Other (+/-) | D13: 0
B14: 9 | C14: Risk weighted exposure amount as at the end of the reporting period | D14: 145589.198

Sheet EU CRD
B2: EU CRD - Qualitative disclosure requirements related to standardised model
B4: Legal basis | C4: Row number | D4: Qualitative information - Free format
B5: Article 444 (a) CRR | C5: (a) | D5: Names of the external credit assessment institutions (ECAIs) and export credit agencies (ECAs) nominated by the institution, and the reasons for any changes over the disclosure period;
B6: Article 444 (b) CRR | C6: (b) | D6: The exposure classes for which each ECAI or ECA is used;
B7: Article 444 (c) CRR | C7: (c ) | D7: A description of the process used to transfer the issuer and issue credit ratings onto comparable assets items not included in the trading book;
B8: Article 444 (d) CRR | C8: (d) | D8: The association of the external rating of each nominated ECAI or ECA (as referred to in row (a)) with the risk weights that correspond with the credit quality steps as set out in Chapter 2 of Title II of Part Three CRR (except where the institution complies with the standard association published by the EBA).

Sheet EU CCyB1
B2: EU CCyB1 - Geographical distribution of credit exposures relevant for the calculation of the countercyclical buffer
B4: Reported in DKKm | D4: a | E4: b | F4: c | G4: d | H4: e | I4: f | J4: g | K4: h | L4: i | M4: j | N4: k | O4: l | P4: m
D5: General credit exposures | F5: Relevant credit exposures – Market risk | H5: Securitisation exposures Exposure value for non-trading book | I5: Total exposure value | J5: Own fund requirements | N5: Risk-weighted exposure amounts | O5: Own fund requirements weights (%) | P5: Countercyclical buffer rate (%)
D7: Exposure value under the standardised approach | E7: Exposure value under the IRB approach | F7: Sum of long and short positions of trading book exposures for SA | G7: Value of trading book exposures for internal models | J7: Relevant credit risk exposures - Credit risk | K7: Relevant credit exposures – Market risk | L7: Relevant credit exposures – Securitisation positions in the non-trading book | M7: Total
B9: 0102 | C9: Australia | D9: 0.901394 | E9: 1.558234 | F9: 0.011725 | I9: =SUM(D9:H9) -> 2.471353 | J9: 0.079106 | K9: 0.000938 | M9: 0.080044 | N9: =(M9*12.5)/1000000 -> 1.00055e-06 | O9: 0 | P9: 0.01
B10: 0103 | C10: Belgium | D10: 31.482095 | E10: 22.378242 | F10: 6.897185 | I10: =SUM(D10:H10) -> 60.757522 | J10: 1.123914 | K10: 0.827598 | M10: 1.951512 | N10: 2.43939e-05 | O10: 0.0001 | P10: 0.005
B11: 0104 | C11: Bulgaria | E11: 11.765186 | I11: 11.765186 | J11: 0.326163 | M11: 0.326163 | N11: 4.0770375e-06 | O11: 0 | P11: 0.02
B12: 0105 | C12: Cyprus | E12: 0.412853 | F12: 3e-06 | I12: 0.412856 | J12: 2e-06 | M12: 2e-06 | N12: 2.5e-11 | O12: 0 | P12: 0.01
B13: 0106 | C13: Czech Republic | E13: 9.853289 | I13: 9.853289 | J13: 0.461385 | M13: 0.461385 | N13: 5.7673125e-06 | O13: 0 | P13: 0.0175
B14: 0107 | C14: Germany | D14: 66.174922 | E14: 1562.129421 | F14: 26.859036 | H14: 22.495074 | I14: 1677.658453 | J14: 55.383248 | K14: 2.148723 | L14: 0.359921 | M14: 57.891892 | N14: 0.00072364865 | O14: 0.0043 | P14: 0.0075
B15: 0108 | C15: Denmark | D15: 54536.50037 | E15: 500849.5508 | F15: 896.701327 | I15: 556282.7525 | J15: 12581.73886 | K15: 72.441047 | M15: 12654.1799 | N15: 0.1581772488 | O15: 0.9422 | P15: 0.025
B16: 0109 | C16: Estonia | E16: 43.34998 | I16: 43.34998 | J16: 3.186846 | M16: 3.186846 | N16: 3.9835575e-05 | O16: 0.0002 | P16: 0.015
B17: 0110 | C17: France | D17: 1002.292211 | E17: 449.781423 | F17: 43.371916 | H17: 680.298206 | I17: 2175.743756 | J17: 81.464855 | K17: 3.469753 | L17: 10.884771 | M17: 95.819379 | N17: 0.001197742237 | O17: 0.0071 | P17: 0.01
B18: 0111 | C18: United Kingdom | D18: 81.542565 | E18: 780.287564 | F18: 43.624718 | I18: 905.454847 | J18: 18.687343 | K18: 2.387084 | M18: 21.074428 | N18: 0.00026343035 | O18: 0.0016 | P18: 0.02
B19: 0112 | C19: Hong Kong, SAR China | D19: 2.3e-05 | E19: 42.527974 | F19: 4.2e-05 | I19: 42.528039 | J19: 0.708146 | K19: 3e-06 | M19: 0.70815 | N19: 8.851875e-06 | O19: 0.0001 | P19: 0.01
B20: 0113 | C20: Croatia | E20: 0.175988 | I20: 0.175988 | J20: 5e-06 | M20: 5e-06 | N20: 6.25e-11 | O20: 0 | P20: 0.015
B21: 0114 | C21: Ireland | D21: 0.000658 | E21: 39.93344 | F21: 0.60459 | H21: 3675.828873 | I21: 3716.367561 | J21: 3.042476 | K21: 0.048367 | L21: 58.813262 | M21: 61.904105 | N21: 0.0007738013125 | O21: 0.0046 | P21: 0.015
B22: 0115 | C22: Iceland | E22: 6.528865 | F22: 0.301463 | I22: 6.830328 | J22: 0.609105 | K22: 0.024117 | M22: 0.633222 | N22: 7.915275e-06 | O22: 0 | P22: 0.025
B23: 0116 | C23: Lithuania | E23: 18.01698 | I23: 18.01698 | J23: 3.919357 | M23: 3.919357 | N23: 4.89919625e-05 | O23: 0.0003 | P23: 0.01
B24: 0117 | C24: Luxembourg | D24: 1.497681 | E24: 60.551719 | F24: 71.834086 | I24: 133.883486 | J24: 2.864979 | K24: 7.269499 | M24: 10.134478 | N24: 0.000126680975 | O24: 0.0008 | P24: 0.005
B25: 0118 | C25: Monaco | D25: 15.270836 | E25: 1.530569 | I25: 16.801405 | J25: 1.238925 | M25: 1.238925 | N25: 1.54865625e-05 | O25: 0.0001 | P25: 0.01
B26: 0119 | C26: Netherlands | D26: 105.562458 | E26: 0.661946 | F26: 9.696341 | H26: 254.101744 | I26: 370.022489 | J26: 1.206375 | K26: 0.789362 | L26: 4.065628 | M26: 6.061365 | N26: 7.57670625e-05 | O26: 0.0005 | P26: 0.02
B27: 0120 | C27: Norway | D27: 293.88657 | E27: 2940.206922 | F27: 21.735155 | I27: 3255.828647 | J27: 112.347495 | K27: 1.738812 | M27: 114.086307 | N27: 0.001426078838 | O27: 0.0085 | P27: 0.025
B28: 0121 | C28: Romania | E28: 0.807992 | I28: 0.807992 | J28: 0.002383 | M28: 0.002383 | N28: 2.97875e-08 | O28: 0 | P28: 0.01
B29: 0122 | C29: Sweden | D29: 559.088733 | E29: 4580.943333 | F29: 6.93712 | I29: 5146.969186 | J29: 192.39861 | K29: 0.647382 | M29: 193.045993 | N29: 0.002413074913 | O29: 0.0144 | P29: 0.02
B30: 0123 | C30: Slovenia | E30: 0.014979 | I30: 0.014979 | J30: 0.000248 | M30: 0.000248 | N30: 3.1e-09 | O30: 0 | P30: 0.005
B31: 0124 | C31: Slovakia | E31: 14.891075 | I31: 14.891075 | J31: 0.576873 | M31: 0.576873 | N31: 7.2109125e-06 | O31: 0 | P31: 0.015
B32: 0125 | C32: Other | D32: 2801.388391 | E32: 4229.602525 | F32: 105.8383943 | H32: 2264.142946 | I32: 9400.972257 | J32: 161.3958123 | K32: 5.48131411 | L32: 36.99641419 | M32: 203.8735406 | N32: 2548.419258 | O32: 0.0152 | P32: 0
B33: 020 | C33: Total | D33: 59495.58891 | E33: 515667 | F33: 1234.413101 | H33: 6896.866843 | I33: =SUM(D33:H33) -> 583293.8689 | J33: 13222.76251 | K33: 97.27400134 | L33: 111.1199965 | M33: 13431.15651 | N33: =(M33*12.5)/1000000 -> 0.1678894563 | O33: =SUM(O9:O32) -> 1

Sheet EU CCyB2
B2: EU CCyB2 - Amount of institution-specific countercyclical capital buffer
B4: Reported in DKKm | D4: a
B5: 1 | C5: Total risk exposure amount | D5: 231188.3527
B6: 2 | C6: Institution specific countercyclical capital buffer rate | D6: 0.02431461148
B7: 3 | C7: Institution specific countercyclical capital buffer requirement | D7: =D6*D5 -> 5621.254976

Sheet EU LR1
B2: EU LR1 - LRSum: Summary reconciliation of accounting assets and leverage ratio exposures
B4: Reported in DKKm | D4: a
B5: At 30 June 2024 | D5: Applicable amount
B6: 1 | C6: Total assets as per published financial statements | D6: 769893.4113
B7: 2 | C7: Adjustment for entities which are consolidated for accounting purposes but are outside the scope of prudential consolidation
B8: 3 | C8: (Adjustment for securitised exposures that meet the operational requirements for the recognition of risk transference)
B9: 4 | C9: (Adjustment for temporary exemption of exposures to central banks (if applicable))
B10: 5 | C10: (Adjustment for fiduciary assets recognised on the balance sheet pursuant to the applicable accounting framework but excluded from the total exposure measure in accordance with point (i) of Article 429a(1) CRR)
B11: 6 | C11: Adjustment for regular-way purchases and sales of financial assets subject to trade date accounting
B12: 7 | C12: Adjustment for eligible cash pooling transactions
B13: 8 | C13: Adjustments for derivative financial instruments | D13: 9694.292657
B14: 9 | C14: Adjustment for securities financing transactions (SFTs) | D14: 285.826584
B15: 10 | C15: Adjustment for off-balance sheet items (ie conversion to credit equivalent amounts of off-balance sheet exposures) | D15: 50516.85211
B16: 11 | C16: (Adjustment for prudent valuation adjustments and specific and general provisions which have reduced Tier 1 capital)
B17: EU-11a | C17: (Adjustment for exposures excluded from the total exposure measure in accordance with point (c ) of Article 429a(1) CRR)
B18: EU-11b | C18: (Adjustment for exposures excluded from the total exposure measure in accordance with point (j) of Article 429a(1) CRR)
B19: 12 | C19: Other adjustments | D19: -7954.904775
B20: 13 | C20: Total exposure measure | D20: 822435.4779

Sheet EU LR2
B2: EU LR2 - Leverage ratio common disclosure
B4: Reported in DKKm | D4: CRR leverage ratio exposures
D5: 2024-06-30 | E5: 2023-12-31
B6: On-balance sheet exposures (excluding derivatives and SFTs)
B7: 1 | C7: On-balance sheet items (excluding derivatives, SFTs, but including collateral) | D7: 704061.3905 | E7: 703832.5589
B8: 2 | C8: Gross-up for derivatives collateral provided where deducted from the balance sheet assets pursuant to the applicable accounting framework
B9: 3 | C9: (Deductions of receivables assets for cash variation margin provided in derivatives transactions) | D9: -2757.318249 | E9: -3443.332285
B10: 4 | C10: (Adjustment for securities received under securities financing transactions that are recognised as an asset)
B11: 5 | C11: (General credit risk adjustments to on-balance sheet items)
B12: 6 | C12: (Asset amounts deducted in determining Tier 1 capital) | D12: -5197.586526 | E12: -4057.146177
B13: 7 | C13: Total on-balance sheet exposures (excluding derivatives and SFTs) | D13: 696106.4858 | E13: 696332.0805
B14: Derivative exposures
B15: 8 | C15: Replacement cost associated with SA-CCR derivatives transactions (ie net of eligible cash variation margin) | D15: 10092.44417 | E15: 9590.866736
B16: EU-8a | C16: Derogation for derivatives: replacement costs contribution under the simplified standardised approach
B17: 9 | C17: Add-on amounts for potential future exposure associated with SA-CCR derivatives transactions | D17: 14395.64628 | E17: 13998.08595
B18: EU-9a | C18: Derogation for derivatives: Potential future exposure contribution under the simplified standardised approach
B19: EU-9b | C19: Exposure determined under Original Exposure Method
B20: 10 | C20: (Exempted CCP leg of client-cleared trade exposures) (SA-CCR)
B21: EU-10a | C21: (Exempted CCP leg of client-cleared trade exposures) (simplified standardised approach)
B22: EU-10b | C22: (Exempted CCP leg of client-cleared trade exposures) (original Exposure Method)
B23: 11 | C23: Adjusted effective notional amount of written credit derivatives | D23: 349.58575 | E23: 384.0558383
B24: 12 | C24: (Adjusted effective notional offsets and add-on deductions for written credit derivatives) | D24: -349.58575 | E24: -384.0558383
B25: 13 | C25: Total derivatives exposures | D25: 24488.09045 | E25: 23588.95268
B26: Securities financing transaction (SFT) exposures
B27: 14 | C27: Gross SFT assets (with no recognition of netting), after adjustment for sales accounting transactions | D27: 51038.22297 | E27: 57629.69072
B28: 15 | C28: (Netted amounts of cash payables and cash receivables of gross SFT assets)
B29: 16 | C29: Counterparty credit risk exposure for SFT assets | D29: 285.826584 | E29: 764.0790026
B30: EU-16a | C30: Derogation for SFTs: Counterparty credit risk exposure in accordance with Articles 429e(5) and 222 CRR
B31: 17 | C31: Agent transaction exposures
B32: EU-17a | C32: (Exempted CCP leg of client-cleared SFT exposure)
B33: 18 | C33: Total securities financing transaction exposures | D33: 51324.04955 | E33: 58393.76972
B34: Other off-balance sheet exposures
B35: 19 | C35: Off-balance sheet exposures at gross notional amount | D35: 119242.0542 | E35: 113158.1977
B36: 20 | C36: (Adjustments for conversion to credit equivalent amounts) | D36: -68725.20206 | E36: -66982.95169
B37: 21 | C37: (General provisions deducted in determining Tier 1 capital and specific provisions associated with off-balance sheet exposures)
B38: 22 | C38: Off-balance sheet exposures | D38: 50516.85211 | E38: 46175.24597
B39: Excluded exposures
B40: EU-22a | C40: (Exposures excluded from the total exposure measure in accordance with point (c ) of Article 429a(1) CRR)
B41: EU-22b | C41: (Exposures exempted in accordance with point (j) of Article 429a (1) CRR (on and off balance sheet))
B42: EU-22c | C42: (Excluded exposures of public development banks (or units) - Public sector investments)
B43: EU-22d | C43: (Excluded exposures of public development banks (or units) - Promotional loans): - Promotional loans granted by a public development credit institution - Promotional loans granted by an entity directly set up by the central government, regional governments or local authorities of a Member State - Promotional loans granted by an entity set up by the central government, regional governments or local authorities of a Member State through an intermediate credit institution)
B44: EU-22e | C44: ( Excluded passing-through promotional loan exposures by non-public development banks (or units)): - Promotional loans granted by a public development credit institution - Promotional loans granted by an entity directly set up by the central government, regional governments or local authorities of a Member State - Promotional loans granted by an entity set up by the central government, regional governments or local authorities of a Member State through an intermediate credit institution)
B45: EU-22f | C45: (Excluded guaranteed parts of exposures arising from export credits )
B46: EU-22g | C46: (Excluded excess collateral deposited at triparty agents )
B47: EU-22h | C47: (Excluded CSD related services of CSD/institutions in accordance with point (o) of Article 429a(1) CRR)
B48: EU-22i | C48: (Excluded CSD related services of designated institutions in accordance with point (p) of Article 429a(1) CRR)
B49: EU-22j | C49: (Reduction of the exposure value of pre-financing or intermediate loans )
B50: EU-22k | C50: (Total exempted exposures)
B51: Capital and total exposure measure
B52: 23 | C52: Tier 1 capital | D52: 43198.94082 | E52: 41295.98852
B53: 24 | C53: Total exposure measure | D53: 822435.4779 | E53: 824490.0489
B54: Leverage ratio
B55: 25 | C55: Leverage ratio | D55: 0.05252562903 | E55: 0.05008670339
B56: EU-25 | C56: Leverage ratio excluding the impact of the exemption of public sector investments and promotional loans) (%) | D56: 0.05252562903 | E56: 0.05008670339
B57: 25a | C57: Leverage ratio (excluding the impact of any applicable temporary exemption of central bank reserves) | D57: 0.05252562903 | E57: 0.05008670339
B58: 26 | C58: Regulatory minimum leverage ratio requirement (%) | D58: 0.03 | E58: 0.03
B59: EU-26a | C59: Additional own funds requirements to address the risk of excessive leverage (%) | D59: 0 | E59: 0
B60: EU-26b | C60: of which: to be made up of CET1 capital (percentage points) | D60: 0 | E60: 0
B61: 27 | C61: Leverage ratio buffer requirement (%) | D61: 0 | E61: 0
B62: EU-27a | C62: Overall leverage ratio requirement (%) | D62: 0.03 | E62: 0.03
B63: Choice on transitional arrangements and relevant exposures
B64: EU-27b | C64: Choice on transitional arrangements for the definition of the capital measure | D64: Transitional | E64: Transitional
B65: Disclosure of mean values
B66: 28 | C66: Mean value of gross SFT assets, after adjustment for sale accounting transactions and netted of amounts of associated cash payables and cash receivables | D66: 50435.99187 | E66: 49697.20744
B67: 29 | C67: Quarter-end value of gross SFT assets, after adjustment for sale accounting transactions and netted of amounts of associated cash payables and cash receivables | D67: 51038.22297 | E67: 57629.69072
B68: 30 | C68: Total exposure measure (including the impact of any applicable temporary exemption of central bank reserves) incorporating mean values from row 28 of gross SFT assets (after adjustment for sale accounting transactions and netted of amounts of associated cash payables and cash receivables) | D68: 821833.2468 | E68: 816557.5656
B69: 30a | C69: Total exposure measure (excluding the impact of any applicable temporary exemption of central bank reserves) incorporating mean values from row 28 of gross SFT assets (after adjustment for sale accounting transactions and netted of amounts of associated cash payables and cash receivables) | D69: 821833.2468 | E69: 816557.5656
B70: 31 | C70: Leverage ratio (including the impact of any applicable temporary exemption of central bank reserves) incorporating mean values from row 28 of gross SFT assets (after adjustment for sale accounting transactions and netted of amounts of associated cash payables and cash receivables) | D70: 0.05256411928 | E70: 0.05057327281
B71: 31a | C71: Leverage ratio (excluding the impact of any applicable temporary exemption of central bank reserves) incorporating mean values from row 28 of gross SFT assets (after adjustment for sale accounting transactions and netted of amounts of associated cash payables and cash receivables) | D71: 0.05256411928 | E71: 0.05057327281

Sheet EU LR3
B2: EU LR3 - LRSpl: Split-up of on balance sheet exposures (excluding derivatives, SFTs and exempted exposures)
B4: Reported in DKKm | D4: a
B5: At 30 June 2024 | D5: CRR leverage ratio exposures
B6: EU-1 | C6: Total on-balance sheet exposures (excluding derivatives, SFTs, and exempted exposures), of which: | D6: 704061.3905
B7: EU-2 | C7: Trading book exposures | D7: 33889.78486
B8: EU-3 | C8: Banking book exposures, of which: | D8: 670171.6057
B9: EU-4 | C9: Covered bonds | D9: 54890.06726
B10: EU-5 | C10: Exposures treated as sovereigns | D10: 94478.29866
B11: EU-6 | C11: Exposures to regional governments, MDB, international organisations and PSE not treated as sovereigns | D11: 63.316689
B12: EU-7 | C12: Institutions | D12: 1728.205571
B13: EU-8 | C13: Secured by mortgages of immovable properties | D13: 320123.9082
B14: EU-9 | C14: Retail exposures | D14: 84063.99845
B15: EU-10 | C15: Corporates | D15: 83127.85398
B16: EU-11 | C16: Exposures in default | D16: 6834.951801
B17: EU-12 | C17: Other exposures (eg equity, securitisations, and other non-credit obligation assets) | D17: 24861.00509

Sheet EU LIQ1
B2: EU LIQ1 - Quantitative information of LCR
B4: Reported in DKKm | D4: a | E4: b | F4: c | G4: d | H4: e | I4: f | J4: g | K4: h
D5: Total unweighted value (average) | H5: Total weighted value (average)
B6: EU 1a | C6: Quarter ending on (DD Month YYY) | D6: T | E6: T-1 | F6: T-2 | G6: T-3 | H6: T | I6: T-1 | J6: T-2 | K6: T-3
B7: EU 1b | C7: Number of data points used in the calculation of averages | D7: 12 | E7: 12 | F7: 12 | G7: 12 | H7: 12 | I7: 12 | J7: 12 | K7: 12
B8: HIGH-QUALITY LIQUID ASSETS
B9: 1 | C9: Total high-quality liquid assets (HQLA), after application of haircuts in line with Article 9 of regulation (EU) 2015/61 | H9: 140400.126 | I9: 144142.8373 | J9: 150202.3089 | K9: 150526.1895
B10: CASH - OUTFLOWS
B11: 2 | C11: retail deposits and deposits from small business customers, of which: | D11: 116240.551 | E11: 114568.1842 | F11: 112617.9275 | G11: 107892.4311 | H11: 7258.218257 | I11: 7247.035811 | J11: 7212.754753 | K11: 7001.854171
B12: 3 | C12: Stable deposits | D12: 71667.78207 | E12: 71941.85321 | F12: 71805.99168 | G12: 69785.66683 | H12: 3583.389103 | I12: 3597.092661 | J12: 3590.299584 | K12: 3489.283342
B13: 4 | C13: Less stable deposits | D13: 35325.25248 | E13: 35208.96347 | F13: 35145.99687 | G13: 34233.85141 | H13: 3628.369045 | I13: 3608.792706 | J13: 3596.352971 | K13: 3494.800856
B14: 5 | C14: Unsecured wholesale funding | D14: 101191.6162 | E14: 105942.722 | F14: 110822.9078 | G14: 108092.7079 | H14: 65719.93977 | I14: 70032.21783 | J14: 73430.55767 | K14: 71860.68774
B15: 6 | C15: Operational deposits (all counterparties) and deposits in networks of cooperative banks | D15: 0 | E15: 0 | F15: 0 | G15: 0 | H15: 0 | I15: 0 | J15: 0 | K15: 0
B16: 7 | C16: Non-operational deposits (all counterparties) | D16: 69461.35409 | E16: 70135.83238 | F16: 72685.30414 | G16: 71329.7522 | H16: 33989.67763 | I16: 34225.32824 | J16: 35292.954 | K16: 35097.73201
B17: 8 | C17: Unsecured debt | D17: 31730.26214 | E17: 35806.88959 | F17: 38137.60368 | G17: 36762.95573 | H17: 31730.26214 | I17: 35806.88959 | J17: 38137.60368 | K17: 36762.95573
B18: 9 | C18: Secured wholesale funding | H18: 1122.131019 | I18: 1108.374113 | J18: 1090.901879 | K18: 1048.362568
B19: 10 | C19: Additional requirements | D19: 76609.45595 | E19: 76294.48699 | F19: 75847.67843 | G19: 72810.66348 | H19: 11210.62077 | I19: 10925.74847 | J19: 10705.48166 | K19: 10146.20422
B20: 11 | C20: Outflows related to derivative exposures and other collateral requirements | D20: 4966.798304 | E20: 4904.107136 | F20: 5032.408527 | G20: 4718.562025 | H20: 4637.32248 | I20: 4332.97552 | J20: 4086.153809 | K20: 3735.201303
B21: 12 | C21: Outflows related to loss of funding on debt products | D21: 0 | E21: 0 | F21: 0 | G21: 0 | H21: 0 | I21: 0 | J21: 0 | K21: 0
B22: 13 | C22: Credit and liquidity facilities | D22: 71642.65764 | E22: 71390.37986 | F22: 70815.26991 | G22: 68092.10145 | H22: 6573.298293 | I22: 6592.772945 | J22: 6619.327854 | K22: 6411.002918
B23: 14 | C23: Other contractual funding obligations | D23: 19569.54359 | E23: 19733.36492 | F23: 19835.87833 | G23: 20320.53863 | H23: 5053.622095 | I23: 5381.183609 | J23: 5294.293193 | K23: 5930.00618
B24: 15 | C24: Other contingent funding obligations | D24: 19749.51252 | E24: 19379.0124 | F24: 18580.75323 | G24: 18208.43925 | H24: 1444.592677 | I24: 1339.847793 | J24: 1315.401855 | K24: 1244.59809
B25: 16 | C25: TOTAL CASH OUTFLOWS | H25: 91809.12459 | I25: 96034.40762 | J25: 99049.39102 | K25: 97231.71297
B26: CASH - INFLOWS
B27: 17 | C27: Secured lending (e.g. reverse repos) | D27: 53917.8506 | E27: 53921.96683 | F27: 52734.65827 | G27: 52598.00976 | H27: 8903.274246 | I27: 9324.750473 | J27: 8879.776463 | K27: 9093.96698
B28: 18 | C28: Inflows from fully performing exposures | D28: 12260.54882 | E28: 11673.5202 | F28: 10240.77565 | G28: 9502.693107 | H28: 9097.811925 | I28: 8509.419676 | J28: 7370.355486 | K28: 6710.232736
B29: 19 | C29: Other cash inflows | D29: 9631.812492 | E29: 9365.120365 | F29: 8944.777292 | G29: 8506.838672 | H29: 9631.812492 | I29: 9365.120365 | J29: 8944.777292 | K29: 8506.838672
B30: EU-19a | C30: (Difference between total weighted inflows and total weighted outflows arising from transactions in third countries where there are transfer restrictions or which are denominated in non-convertible currencies) | H30: 0 | I30: 0 | J30: 0 | K30: 0
H31: 0 | I31: 0 | J31: 0 | K31: 0
B32: EU-19b | C32: (Excess inflows from a related specialised credit institution) | H32: 0 | I32: 0 | J32: 0 | K32: 0
H33: 0 | I33: 0 | J33: 0 | K33: 0
B34: 20 | C34: TOTAL CASH INFLOWS | D34: 75810.21191 | E34: 74960.6074 | F34: 71920.21121 | G34: 70607.54154 | H34: 27632.89866 | I34: 27199.29051 | J34: 25194.90924 | K34: 24311.03839
B35: EU-20a | C35: Fully exempt inflows | D35: 0 | E35: 0 | F35: 0 | G35: 0 | H35: 0 | I35: 0 | J35: 0 | K35: 0
B37: EU-20b | C37: Inflows subject to 90% cap | D37: 0 | E37: 0 | F37: 0 | G37: 0 | H37: 0 | I37: 0 | J37: 0 | K37: 0
B39: EU-20c | C39: Inflows subject to 75% cap | D39: 0 | E39: 0 | F39: 0 | G39: 0 | H39: 0 | I39: 0 | J39: 0 | K39: 0
B41: TOTAL ADJUSTED VALUE
B42: 21 | C42: LIQUIDITY BUFFER | H42: 140400.126 | I42: 144142.8373 | J42: 150202.3089 | K42: 150526.1895
B43: 22 | C43: TOTAL NET CASH OUTFLOWS | H43: 64133.7239 | I43: 68834.08696 | J43: 73854.48178 | K43: 72920.67458
B44: 23 | C44: LIQUIDITY COVERAGE RATIO | H44: 2.332368116 | I44: 2.189636525 | J44: 2.11632656 | K44: 2.190960116

Sheet EU LIQ2
B2: EU LIQ2: Net Stable Funding Ratio
B4: Reported in DKKm | D4: 2024-06-30 | I4: 2024-03-31 | N4: 2023-12-31 | S4: 2023-09-30 | X4: 2023-06-30
D5: Unweighted value by residual maturity | H5: Weighted value | I5: Unweighted value by residual maturity | M5: Weighted value | N5: Unweighted value by residual maturity | R5: Weighted value | S5: Unweighted value by residual maturity | W5: Weighted value | X5: Unweighted value by residual maturity | AB5: Weighted value
D6: No maturity | E6: < 6 months | F6: 6 months to < 1yr | G6: ≥ 1yr | I6: No maturity | J6: < 6 months | K6: 6 months to < 1yr | L6: ≥ 1yr | N6: No maturity | O6: < 6 months | P6: 6 months to < 1yr | Q6: ≥ 1yr | S6: No maturity | T6: < 6 months | U6: 6 months to < 1yr | V6: ≥ 1yr | X6: No maturity | Y6: < 6 months | Z6: 6 months to < 1yr | AA6: ≥ 1yr
B7: Available stable funding (ASF) Items
B8: 1 | C8: Capital items and instruments | D8: 47182.54353 | E8: 0 | F8: 0 | G8: 7586.51 | H8: 54769.05353 | I8: 47449.82835 | J8: 1545.400585 | K8: 0 | L8: 7552.14236 | M8: 55001.97071 | N8: 44771.00606 | O8: 671.9 | P8: 0 | Q8: 6130.0201 | R8: 50901.02616 | S8: 44139.6445 | T8: 0 | U8: 646.6 | V8: 6090.93995 | W8: 50230.58445 | X8: 42289.14894 | Y8: 0 | Z8: 630.8 | AA8: 6005.61 | AB8: 48294.75894
B9: 2 | C9: Own funds | D9: 47182.54353 | E9: 0 | F9: 0 | G9: 7586.51 | H9: 54769.05353 | I9: 47449.82835 | J9: 1545.400585 | K9: 0 | L9: 7552.14236 | M9: 55001.97071 | N9: 44771.00606 | O9: 671.9 | P9: 0 | Q9: 6130.0201 | R9: 50901.02616 | S9: 44139.6445 | T9: 0 | U9: 646.6 | V9: 6090.93995 | W9: 50230.58445 | X9: 42289.14894 | Y9: 0 | Z9: 630.8 | AA9: 6005.61 | AB9: 48294.75894
B10: 3 | C10: Other capital instruments | E10: 0 | F10: 0 | G10: 0 | H10: 0 | J10: 0 | K10: 0 | L10: 0 | M10: 0 | O10: 0 | P10: 0 | Q10: 0 | R10: 0 | T10: 0 | U10: 0 | V10: 0 | W10: 0 | Y10: 0 | Z10: 0 | AA10: 0 | AB10: 0
B11: 4 | C11: Retail deposits | E11: 114670.7027 | F11: 3642.689015 | G11: 106.2057138 | H11: 110453.5116 | J11: 110511.7129 | K11: 4099.791219 | L11: 624.6428487 | M11: 107507.3368 | O11: 114161.6324 | P11: 1447.067163 | Q11: 1525.924073 | R11: 109309.2027 | T11: 108042.2989 | U11: 2784.515916 | V11: 2493.579253 | W11: 105875.9623 | Y11: 107168.3007 | Z11: 3786.795367 | AA11: 2522.35056 | AB11: 106066.9481
B12: 5 | C12: Stable deposits | E12: 75170.34879 | F12: 2134.717127 | G12: 52.21955073 | H12: 73492.03217 | J12: 72198.29714 | K12: 2448.507714 | L12: 390.4678535 | M12: 71304.93246 | O12: 73925.00051 | P12: 783.9799153 | Q12: 955.8635714 | R12: 71929.39497 | T12: 71146.22165 | U12: 1618.772064 | V12: 2363.101159 | W12: 71489.84518 | Y12: 71501.79152 | Z12: 2198.429714 | AA12: 2343.488576 | AB12: 72358.69875
B13: 6 | C13: Less stable deposits | E13: 39500.35391 | F13: 1507.971888 | G13: 53.98616307 | H13: 36961.47939 | J13: 38313.41581 | K13: 1651.283505 | L13: 234.1749952 | M13: 36202.40438 | O13: 40236.63186 | P13: 663.0872473 | Q13: 570.0605021 | R13: 37379.80769 | T13: 36896.07727 | U13: 1165.743852 | V13: 130.4780936 | W13: 34386.11711 | Y13: 35666.50916 | Z13: 1588.365653 | AA13: 178.8619843 | AB13: 33708.24932
B14: 7 | C14: Wholesale funding: | E14: 162538.0482 | F14: 13381.35511 | G14: 34941.97797 | H14: 81500.44518 | J14: 170890.632 | K14: 5544.44625 | L14: 32034.87951 | M14: 74917.16121 | O14: 199644.6661 | P14: 11944.72727 | Q14: 33332.98397 | R14: 79964.27665 | T14: 200571.1592 | U14: 11816.29945 | V14: 29591.38447 | W14: 80412.41893 | Y14: 184052.297 | Z14: 12974.53163 | AA14: 27704.88949 | AB14: 80163.99557
B15: 8 | C15: Operational deposits | E15: 0 | F15: 0 | G15: 0 | H15: 0 | J15: 0 | K15: 0 | L15: 0 | M15: 0 | O15: 0 | P15: 0 | Q15: 0 | R15: 0 | T15: 0 | U15: 0 | V15: 0 | W15: 0 | Y15: 0 | Z15: 0 | AA15: 0 | AB15: 0
B16: 9 | C16: Other wholesale funding | E16: 162538.0482 | F16: 13381.35511 | G16: 34941.97797 | H16: 81500.44518 | J16: 170890.632 | K16: 5544.44625 | L16: 32034.87951 | M16: 74917.16121 | O16: 199644.6661 | P16: 11944.72727 | Q16: 33332.98397 | R16: 79964.27665 | T16: 200571.1592 | U16: 11816.29945 | V16: 29591.38447 | W16: 80412.41893 | Y16: 184052.297 | Z16: 12974.53163 | AA16: 27704.88949 | AB16: 80163.99557
B17: 10 | C17: Interdependent liabilities | E17: 0 | F17: 0 | G17: 0 | H17: 0 | J17: 0 | K17: 0 | L17: 0 | M17: 0 | O17: 0 | P17: 0 | Q17: 0 | R17: 0 | T17: 0 | U17: 0 | V17: 0 | W17: 0 | Y17: 0 | Z17: 0 | AA17: 0 | AB17: 0
B18: 11 | C18: Other liabilities: | D18: 2015.660959 | E18: 11047.50411 | F18: -4.768371582e-13 | G18: 891.6669218 | H18: 891.6669218 | I18: 1051.1579 | J18: 10217.71842 | K18: 0.804004 | L18: 867.9045618 | M18: 868.3065638 | N18: 2204.260268 | O18: 10647.80843 | P18: 750.804004 | Q18: 29.36655981 | R18: 404.7685618 | S18: 1653.736714 | T18: 9039.605867 | U18: 750 | V18: 209.6403598 | W18: 584.6403598 | X18: 1947.596097 | Y18: 20532.7842 | Z18: 0 | AA18: 991.6807728 | AB18: 991.6807728
B19: 12 | C19: NSFR derivative liabilities | D19: 2015.660959 | I19: 1051.1579 | N19: 2204.260268 | S19: 1653.736714 | X19: 1947.596097
B20: 13 | C20: All other liabilities and capital instruments not included in the above categories | E20: 11047.50411 | F20: -4.768371582e-13 | G20: 891.6669218 | H20: 891.6669218 | J20: 10217.71842 | K20: 0.804004 | L20: 867.9045618 | M20: 868.3065638 | O20: 10647.80843 | P20: 750.804004 | Q20: 29.36655981 | R20: 404.7685618 | T20: 9039.605867 | U20: 750 | V20: 209.6403598 | W20: 584.6403598 | Y20: 20532.7842 | Z20: 0 | AA20: 991.6807728 | AB20: 991.6807728
B21: 14 | C21: Total available stable funding (ASF) | H21: 247614.6772 | M21: 238294.7753 | R21: 240579.274 | W21: 237103.606 | AB21: 235517.3834
B22: Required stable funding (RSF) Items
B23: 15 | C23: Total high-quality liquid assets (HQLA) | H23: 11598.14312 | M23: 13103.08676 | R23: 12229.11103 | W23: 9799.542008 | AB23: 10336.35992
B24: EU-15a | C24: Assets encumbered for a residual maturity of one year or more in a cover pool | E24: 0 | F24: 0 | G24: 0 | H24: 0 | J24: 0 | K24: 0 | L24: 0 | M24: 0 | O24: 0 | P24: 0 | Q24: 0 | R24: 0 | T24: 0 | U24: 0 | V24: 0 | W24: 0 | Y24: 0 | Z24: 0 | AA24: 0 | AB24: 0
B25: 16 | C25: Deposits held at other financial institutions for operational purposes | E25: 0 | F25: 0 | G25: 0 | H25: 0 | J25: 0 | K25: 0 | L25: 0 | M25: 0 | O25: 0 | P25: 0 | Q25: 0 | R25: 0 | T25: 0 | U25: 0 | V25: 0 | W25: 0 | Y25: 0 | Z25: 0 | AA25: 0 | AB25: 0
B26: 17 | C26: Performing loans and securities: | E26: 29091.56135 | F26: 16242.77331 | G26: 143853.1752 | H26: 145897.4527 | J26: 28593.82117 | K26: 14550.22992 | L26: 150293.8196 | M26: 149769.2486 | O26: 26680.33969 | P26: 11867.20285 | Q26: 154018.9405 | R26: 150337.3781 | T26: 27871.76293 | U26: 12828.89785 | V26: 152012.4241 | W26: 149656.408 | Y26: 29050.01146 | Z26: 13876.68041 | AA26: 153502.1467 | AB26: 151655.3124
B27: 18 | C27: Performing securities financing transactions with financial customers collateralised by Level 1 HQLA subject to 0% haircut | E27: 0 | F27: 0 | G27: 0 | H27: 0 | J27: 0 | K27: 0 | L27: 0 | M27: 0 | O27: 0 | P27: 0 | Q27: 0 | R27: 0 | T27: 0 | U27: 0 | V27: 0 | W27: 0 | Y27: 1394.220108 | Z27: 0 | AA27: 0 | AB27: 0
B28: 19 | C28: Performing securities financing transactions with financial customer collateralised by other assets and loans and advances to financial institutions | E28: 3574.942661 | F28: 14.65559288 | G28: 1857.231849 | H28: 2158.157145 | J28: 4011.216651 | K28: 33.48473977 | L28: 1985.148234 | M28: 2317.81835 | O28: 4752.33843 | P28: 106.0123838 | Q28: 3265.174185 | R28: 3673.482492 | T28: 3516.862762 | U28: 1.134952119 | V28: 3060.718331 | W28: 3352.242213 | Y28: 3124.493849 | Z28: 9.381120758 | AA28: 3229.578132 | AB28: 3521.744104
B29: 20 | C29: Performing loans to non- financial corporate clients, loans to retail and small business customers, and loans to sovereigns, and PSEs, of which: | E29: 24360.45158 | F29: 14268.83986 | G29: 115828.7765 | H29: 117842.7791 | J29: 23782.43636 | K29: 13476.71754 | L29: 118954.5449 | M29: 119827.4546 | O29: 21691.25938 | P29: 11600.30508 | Q29: 120359.4554 | R29: 119031.9687 | T29: 24147.12038 | U29: 11717.79828 | V29: 120055.756 | W29: 120050.6546 | Y29: 24312.57995 | Z29: 13128.15755 | AA29: 120732.0565 | AB29: 121411.583
B30: 21 | C30: With a risk weight of less than or equal to 35% under the Basel II Standardised Approach for credit risk | E30: 0 | F30: 0 | G30: 0 | H30: 0 | J30: 0 | K30: 0 | L30: 0 | M30: 0 | O30: 0 | P30: 0 | Q30: 0 | R30: 0 | T30: 0 | U30: 0 | V30: 0 | W30: 0 | Y30: 0 | Z30: 0 | AA30: 0 | AB30: 0
B31: 22 | C31: Performing residential mortgages, of which: | E31: 0 | F31: 0 | G31: 0 | H31: 0 | J31: 0 | K31: 0 | L31: 0 | M31: 0 | O31: 0 | P31: 0 | Q31: 0 | R31: 0 | T31: 0 | U31: 0 | V31: 0 | W31: 0 | Y31: 0 | Z31: 0 | AA31: 0 | AB31: 0
B32: 23 | C32: With a risk weight of less than or equal to 35% under the Basel II Standardised Approach for credit risk | E32: 0 | F32: 0 | G32: 0 | H32: 0 | J32: 0 | K32: 0 | L32: 0 | M32: 0 | O32: 0 | P32: 0 | Q32: 0 | R32: 0 | T32: 0 | U32: 0 | V32: 0 | W32: 0 | Y32: 0 | Z32: 0 | AA32: 0 | AB32: 0
B33: 24 | C33: Other loans and securities that are not in default and do not qualify as HQLA, including exchange-traded equities and trade finance on-balance sheet products | E33: 1156.167113 | F33: 1959.277859 | G33: 26167.1669 | H33: 25896.51643 | J33: 800.1681618 | K33: 1040.027641 | L33: 29354.1264 | M33: 27623.97563 | O33: 236.7418803 | P33: 160.8853938 | Q33: 30394.31082 | R33: 27631.92687 | T33: 207.7797819 | U33: 1109.964616 | V33: 28895.94977 | W33: 26253.51119 | Y33: 218.7175489 | Z33: 739.141744 | AA33: 29540.5121 | AB33: 26721.98528
B34: 25 | C34: Interdependent assets | E34: 1742.090708 | F34: 45.10949849 | G34: 352970.6652 | H34: 0 | J34: 4175.46634 | K34: 326.4252694 | L34: 349781.5239 | M34: 0 | O34: 3073.808586 | P34: 673.3533485 | Q34: 352226.4399 | R34: 0 | T34: 6323.356743 | U34: 184.074867 | V34: 337143.7084 | W34: 0 | Y34: 6544.922047 | Z34: 122.6026372 | AA34: 334191.5369 | AB34: 0
B35: 26 | C35: Other assets: | D35: 0 | E35: 17493.26193 | F35: 0 | G35: 3892.525452 | H35: 10424.82312 | I35: 0 | J35: 15737.54316 | K35: 0 | L35: 4264.245932 | M35: 10223.66198 | N35: 0 | O35: 16968.04099 | P35: 0 | Q35: 5108.498216 | R35: 10477.7908 | S35: 0 | T35: 18905.24646 | U35: 0 | V35: 5439.649835 | W35: 11007.30143 | X35: 0 | Y35: 17850.00389 | Z35: 0 | AA35: 5351.564326 | AB35: 11007.18028
B36: 27 | C36: Physical traded commodities | G36: 0 | H36: 0 | L36: 0 | M36: 0 | Q36: 0 | R36: 0 | V36: 0 | W36: 0 | AA36: 0 | AB36: 0
B37: 28 | C37: Assets posted as initial margin for derivative contracts and contributions to default funds of CCPs | E37: 819.7395372 | F37: 0 | G37: 0 | H37: 696.7786066 | J37: 523.235634 | K37: 0 | L37: 0 | M37: 444.7502889 | O37: 600.9768678 | P37: 0 | Q37: 0 | R37: 510.8303376 | T37: 618.8291619 | U37: 0 | V37: 0 | W37: 526.0047876 | Y37: 766.938069 | Z37: 0 | AA37: 0 | AB37: 651.8973587
B38: 29 | C38: NSFR derivative assets | E38: 0.75513956 | H38: 0.75513956 | J38: 0 | M38: 0 | O38: 0 | R38: 0 | T38: 0 | W38: 0 | Y38: 0 | AB38: 0
B39: 30 | C39: NSFR derivative liabilities before deduction of variation margin posted | E39: 8295.282871 | H39: 414.7641435 | J39: 7588.02074 | M39: 379.401037 | O39: 9850.973746 | R39: 492.5486873 | T39: 11486.50907 | W39: 574.3254533 | Y39: 10412.93705 | AB39: 520.6468525
B40: 31 | C40: All other assets not included in the above categories | E40: 8377.484382 | F40: 0 | G40: 3892.525452 | H40: 9312.52523 | J40: 7626.286781 | K40: 0 | L40: 4264.245932 | M40: 9399.510657 | O40: 6516.090372 | P40: 0 | Q40: 5108.498216 | R40: 9474.411774 | T40: 6799.908228 | U40: 0 | V40: 5439.649835 | W40: 9906.971186 | Y40: 6670.128769 | Z40: 0 | AA40: 5351.564326 | AB40: 9834.636069
B41: 32 | C41: Off-balance sheet items | E41: 70983.52702 | F41: 0 | G41: 8.387598 | H41: 3549.595731 | J41: 68931.5023 | K41: 0 | L41: 8.150414 | M41: 3446.982636 | O41: 72098.44398 | P41: 0 | Q41: 8.150414 | R41: 3605.32972 | T41: 68262.71116 | U41: 0 | V41: 7.042251 | W41: 3413.487671 | Y41: 76989.80916 | Z41: 0 | AA41: 7.802903 | AB41: 3849.880603
B42: 33 | C42: Total RSF | H42: 171470.0147 | M42: 176542.9799 | R42: 176649.6097 | W42: 173876.7391 | AB42: 176848.7332
B43: 34 | C43: Net Stable Funding Ratio (%) | H43: 1.444069843 | M43: 1.349783353 | R43: 1.361900966 | W43: 1.363630393 | AB43: 1.331744814

Sheet EU LIQA
B2: EU LIQA - Liquidity risk management
B3: in accordance with Article 451a(4) CRR
B5: Row number | C5: Qualitative information - Free format
B6: (a) | C6: Strategies and processes in the management of the liquidity risk, including policies on diversification in the sources and tenor of planned funding, | D6: A Liquidity Policy (Policy moving forward) has been approved and adopted by The Group Supervisory Board of Directors. The policy defines the overall risk profile, the organisational structuring and liquidity management of the Group. The policy ensures that sufficient liquidity is available on all horizons to fulfill all of the Group's liabilities. The Policy states two overall risk elements that constitutes the Group's overall risk appetite. The first states that the Group should at all times ensure a suitable distance to default on debt, i.e. in time of a crisis there must be sufficient time to react to events and avoid financial and regulatory default. The second states that the dependency of the financial markets in terms of funding shall be limited such that the Group isn't vulnerable to opinions of investors, market stress and dysfunctionality. To accommodate the overall risk appetite the Policy contains declarations that together ensures the Group's desired risk profile, i.e. low: - The Group maintains a balanced ratio between deposits and loans. - The Group aims at having a diversificated funding structure where no volatile funding sources alone or in general are dominant. - The Group maintains a significant, diversified and high-liquid liquidity buffer that can withstand an unlikely but plausible scenario of crisis. - The Group maintains a buffer to the regulatory requirement of the Liquidity Coverage Ratio (LCR). - The Group maintans a stable funding profile measured by the regulatory Net Stable Funding Ratio.
B7: (b) | C7: Structure and organisation of the liquidity risk management function (authority, statute, other arrangements). | D7: See section 'Organisation, management, and monitoring' in 'Risk and Capital Management 2023'
B8: (c) | C8: A description of the degree of centralisation of liquidity management and interaction between the group’s units | D8: See section 'Organisation, management, and monitoring' in 'Risk and Capital Management 2023'
B9: (d) | C9: Scope and nature of liquidity risk reporting and measurement systems. | D9: See chapter 'Liquidity Risk' in 'Risk and Capital Management 2023'
B10: (e) | C10: Policies for hedging and mitigating the liquidity risk and strategies and processes for monitoring the continuing effectiveness of hedges and mitigants. | D10: See chapter 'Liquidity Risk' in 'Risk and Capital Management 2023'
B11: (f) | C11: An outline of the bank`s contingency funding plans. | D11: See section 'Liquidity contingency plan' in 'Risk and Capital Management 2023'
B12: (g) | C12: An explanation of how stress testing is used. | D12: The Group employs stress testing as an integrated part of the liquidity risk management. As of today three scenarios have been adopted that together reveal the most relevant sensitivitites in the Group's liquidity risk profile. To accommodate the risk profile minimum survival horizons for each scenario have been specified. If relevant the Group can make use of ad hoc liquidity stress testing.
B13: (h) | C13: A declaration approved by the management body on the adequacy of liquidity risk management arrangements of the institution providing assurance that the liquidity risk management systems put in place are adequate with regard to the institution’s profile and strategy. | D13: The Supervisory Board of the Group has approved and adopted a suplementary document to the liquidity policy where the Group's risk appetite and profile have been quantified.
B14: (i) | C14: A concise liquidity risk statement approved by the management body succinctly describing the institution’s overall liquidity risk profile associated with the business strategy. This statement shall include key ratios and figures (other than those already covered in the EU LIQ1 template under this ITS ) providing external stakeholders with a comprehensive view of the institution’s management of liquidity risk, including how the liquidity risk profile of the institution interacts with the risk tolerance set by the management body. These ratios may include: | D14: See chapter 'Liquidity Risk' in 'Risk and Capital Management 2023'
C15: · Concentration limits on collateral pools and sources of funding (both products and counterparties)
C16: · Customised measurement tools or metrics that assess the structure of the bank’s balance sheet or that project cash flows and future liquidity positions, taking into account off-balance sheet risks which are specific to that bank
C17: · Liquidity exposures and funding needs at the level of individual legal entities, foreign branches and subsidiaries, taking into account legal, regulatory and operational limitations on the transferability of liquidity
C18: · Balance sheet and off-balance sheet items broken down into maturity buckets and the resultant liquidity gaps

Sheet EU LIQB
B2: EU LIQB on qualitative information on LCR, which complements template EU LIQ1.
B3: in accordance with Article 451a(2) CRR
B4: Row number | C4: Qualitative information - Free format
B5: (a) | C5: Explanations on the main drivers of LCR results and the evolution of the contribution of inputs to the LCR’s calculation over time | D5: Timing of maturing and issuances of CP is a large driver to LCR net-outflow.
B6: (b) | C6: Explanations on the changes in the LCR over time | D6: See section 'Liquidity risk legislation and supervisory diamond' in 'Risk and Capital Management 2023'
B7: (c) | C7: Explanations on the actual concentration of funding sources | D7: See section 'Group funding structure' in 'Risk and Capital Mangement 2023'
B8: (d) | C8: High-level description of the composition of the institution`s liquidity buffer. | D8: See section 'The Group's liquidity buffer' in 'Risk and Capital Management 2023'
B9: (e) | C9: Derivative exposures and potential collateral calls | D9: The impact of an adverse market scenario is calculated using the Historical Look Back Approach (HLBA).
B10: (f) | C10: Currency mismatch in the LCR | D10: Jyske Bank Group complies with the requirements set forth by the Danish FSA to have a minimum LCR of 100% for Euro.
B11: (g) | C11: Other items in the LCR calculation that are not captured in the LCR disclosure template but that the institution considers relevant for its liquidity profile | D11: None

Sheet EU CCR1
B2: EU CCR1 - Analysis of CCR exposure by approach
B4: Reported in DKKm | D4: a | E4: b | F4: c | G4: d | H4: e | I4: f | J4: g | K4: h
D5: Replacement cost (RC) | E5: Potential future exposure (PFE) | F5: EEPE | G5: Alpha used for computing regulatory exposure value | H5: Exposure value pre-CRM | I5: Exposure value post-CRM | J5: Exposure value | K5: RWEA
B6: EU1 | C6: EU - Original Exposure Method (for derivatives) | G6: 1.4
B7: EU2 | C7: EU - Simplified SA-CCR (for derivatives) | G7: 1.4
B8: 1 | C8: SA-CCR (for derivatives) | D8: 1952.231992 | E8: 9079.528449 | G8: 1.4 | H8: 25364.19429 | I8: 14890.53187 | J8: 14890.53187 | K8: 4695.330734
B9: 2 | C9: IMM (for derivatives and SFTs) | H9: 0 | I9: 0 | J9: 0 | K9: 0
B10: 2a | C10: Of which securities financing transactions netting sets | H10: 0 | I10: 0 | J10: 0 | K10: 0
B11: 2b | C11: Of which derivatives and long settlement transactions netting sets | H11: 0 | I11: 0 | J11: 0 | K11: 0
B12: 2c | C12: Of which from contractual cross-product netting sets | H12: 0 | I12: 0 | J12: 0 | K12: 0
B13: 3 | C13: Financial collateral simple method (for SFTs) | H13: 0 | I13: 0 | J13: 0 | K13: 0
B14: 4 | C14: Financial collateral comprehensive method (for SFTs) | H14: 76024.75359 | I14: 2220.705616 | J14: 2220.705616 | K14: 374.7656571
B15: 5 | C15: VaR for SFTs | H15: 0 | I15: 0 | J15: 0 | K15: 0
B16: 6 | C16: Total | H16: 101388.9479 | I16: 17111.23749 | J16: 17111.23749 | K16: 5070.096391

Sheet EU CCR2
B2: EEU CCR2 – Transactions subject to own funds requirements for CVA risk
B4: Reported in DKKm | D4: a | E4: b
D5: Exposure value | E5: RWEA
B7: 1 | C7: Total transactions subject to the Advanced method
B8: 2 | C8: (i) VaR component (including the 3× multiplier)
B9: 3 | C9: (ii) stressed VaR component (including the 3× multiplier)
B10: 4 | C10: Transactions subject to the Standardised method | D10: 9462.018916 | E10: 1198.836685
B11: EU4 | C11: Transactions subject to the Alternative approach (Based on the Original Exposure Method) | D11: 0 | E11: 0
B12: 5 | C12: Total transactions subject to own funds requirements for CVA risk | D12: 9462.018916 | E12: 1198.836685

Sheet EU CCR3
B2: EU CCR3 - Standardised approach – CCR exposures by regulatory exposure class and risk weights
B4: Reported in DKKm
C5: Exposure classes | D5: Risk weight
D6: a | E6: b | F6: c | G6: d | H6: e | I6: f | J6: g | K6: h | L6: i | M6: j | N6: k | O6: l
D7: 0 | E7: 0.02 | F7: 0.04 | G7: 0.1 | H7: 0.2 | I7: 0.5 | J7: 0.7 | K7: 0.75 | L7: 1 | M7: 1.5 | N7: Others | O7: Total exposure value
B8: 1 | C8: Central governments or central banks | D8: 539392570 | O8: 539392570
B9: 2 | C9: Regional government or local authorities | D9: 1118502939 | O9: 1118502939
B10: 3 | C10: Public sector entities | H10: 11972513 | O10: 11972513
B11: 4 | C11: Multilateral development banks | D11: 555989784 | O11: 555989784
B12: 5 | C12: International organisations
B13: 6 | C13: Institutions | E13: 948287811 | H13: 3641285046 | I13: 689434123 | L13: 7204086 | O13: 5286211066
B14: 7 | C14: Corporates | L14: 19079619 | O14: 19079619
B15: 8 | C15: Retail | K15: 1321335 | O15: 1321335
B16: 9 | C16: Institutions and corporates with a short-term credit assessment
B17: 10 | C17: Other items
B18: 11 | C18: Total exposure value | D18: 2213885293 | E18: 948287811 | H18: 3653257559 | I18: 689434123 | K18: 1321335 | L18: 26283705 | O18: 7532469826

Sheet EU CCR4
B2: EU CCR4 – IRB approach – CCR exposures by exposure class and PD scale
B4: Reported in DKKm
C5: Exposure class X = | D5: Corporates (A-IRB)
E7: a | F7: b | G7: c | H7: d | I7: e | J7: f | K7: g
D8: PD scale | E8: Exposure value | F8: Exposure weighted average PD (%) | G8: Number of obligors | H8: Exposure weighted average LGD (%) | I8: Exposure weighted average maturity (years) | J8: RWEA | K8: Density of risk weighted exposure amount
B10: 1 … x | C10: Exposure class X
B11: 1 | D11: 0.00 to <0.15 | E11: 5651.788079 | F11: 0.0007 | G11: 123 | H11: 0.5688 | I11: 1 | J11: 957.604988 | K11: 0.1694
B12: 2 | D12: 0.15 to <0.25 | E12: 2095.62 | F12: 0.0018 | G12: 42 | H12: 0.5672 | I12: 1 | J12: 716.439478 | K12: 0.3419
B13: 3 | D13: 0.25 to <0.50 | E13: 1069.002783 | F13: 0.0033 | G13: 64 | H13: 0.5937 | I13: 2 | J13: 788.44661 | K13: 0.7376
B14: 4 | D14: 0.50 to <0.75 | E14: 956.171019 | F14: 0.0058 | G14: 31 | H14: 0.5695 | I14: 0 | J14: 681.095066 | K14: 0.7123
B15: 5 | D15: 0.75 to <2.50 | E15: 508.440719 | F15: 0.013 | G15: 97 | H15: 0.5652 | I15: 1 | J15: 507.924086 | K15: 0.999
B16: 6 | D16: 2.50 to <10.00 | E16: 156.096212 | F16: 0.036 | G16: 32 | H16: 0.5487 | I16: - | J16: 207.490919 | K16: 1.3293
B17: 7 | D17: 10.00 to <100.00 | E17: 27.112079 | F17: 0.2273 | G17: 11 | H17: 0.5368 | I17: 2 | J17: 80.235412 | K17: 2.9594
B18: 8 | D18: 100.00 (Default) | E18: 7.36402 | F18: 1 | G18: 7 | H18: 0.3945 | I18: 2 | J18: 7.584314 | K18: 1.0299
B19: x | D19: Sub-total (Exposure class X) | E19: 10471.59491 | F19: 0.0041 | G19: 407 | H19: 0.5704 | I19: 1 | J19: 3946.820873 | K19: 0.3769
C22: Exposure class X = | D22: Retail (A-IRB)
E24: a | F24: b | G24: c | H24: d | I24: e | J24: f | K24: g
D25: PD scale | E25: Exposure value | F25: Exposure weighted average PD (%) | G25: Number of obligors | H25: Exposure weighted average LGD (%) | I25: Exposure weighted average maturity (years) | J25: RWEA | K25: Density of risk weighted exposure amount
B27: 1 … x | C27: Exposure class X
B28: 1 | D28: 0.00 to <0.15 | E28: 4.787175 | F28: 0.0011 | G28: 7 | H28: 0.5552 | I28: - | J28: 0.593146 | K28: 0.1239
B29: 2 | D29: 0.15 to <0.25 | E29: 0.417251 | F29: 0.0018 | G29: 4 | H29: 0.5259 | I29: - | J29: 0.067194 | K29: 0.161
B30: 3 | D30: 0.25 to <0.50 | E30: 18.124189 | F30: 0.004 | G30: 29 | H30: 0.5483 | I30: - | J30: 5.083486 | K30: 0.2805
B31: 4 | D31: 0.50 to <0.75 | E31: 8.195436 | F31: 0.0058 | G31: 20 | H31: 0.5174 | I31: - | J31: 2.671523 | K31: 0.326
B32: 5 | D32: 0.75 to <2.50 | E32: 14.427384 | F32: 0.0139 | G32: 37 | H32: 0.5588 | I32: - | J32: 7.436626 | K32: 0.5155
B33: 6 | D33: 2.50 to <10.00 | E33: 5.44688 | F33: 0.0528 | G33: 20 | H33: 0.5377 | I33: - | J33: 4.031623 | K33: 0.7402
B34: 7 | D34: 10.00 to <100.00 | E34: 1.12032 | F34: 0.2 | G34: 5 | H34: 0.4185 | I34: - | J34: 0.86438 | K34: 0.7715
B35: 8 | D35: 100.00 (Default) | E35: 2.941926 | F35: 1 | G35: 2 | H35: 0.5181 | I35: - | J35: - | K35: 0
B36: x | D36: Sub-total (Exposure class X) | E36: 55.460561 | F36: 0.0681 | G36: 124 | H36: 0.5416 | I36: - | J36: 20.747977 | K36: 0.3741
B37: y | C37: Total (all CCR relevant exposure classes) | E37: 10527.05547 | F37: 0.0044 | G37: 531 | H37: 0.5703 | I37: 1 | J37: 3967.56885 | K37: 0.3769

Sheet EU CCR5
B2: EU CCR5 – Composition of collateral for CCR exposures
B4: Reported in DKKm | D4: a | E4: b | F4: c | G4: d | H4: e | I4: f | J4: g | K4: h
D5: Collateral used in derivative transactions | H5: Collateral used in SFTs
C6: Collateral type | D6: Fair value of collateral received | F6: Fair value of posted collateral | H6: Fair value of collateral received | J6: Fair value of posted collateral
D7: Segregated | E7: Unsegregated | F7: Segregated | G7: Unsegregated | H7: Segregated | I7: Unsegregated | J7: Segregated | K7: Unsegregated
B8: 1 | C8: Cash – domestic currency | D8: 2895.887435 | E8: 54.58 | F8: 0 | G8: 376.234765 | H8: 0 | I8: 24385.6689
B9: 2 | C9: Cash – other currencies | D9: 329.9453008 | E9: 1105.496917 | F9: 579.3096441 | G9: 2903.915803 | H9: 0 | I9: 0
B10: 3 | C10: Domestic sovereign debt | D10: 0 | E10: 1480.78601 | F10: 60.8947241 | G10: 1761.139887 | H10: 0 | I10: 0
B11: 4 | C11: Other sovereign debt | D11: 105.9212825 | E11: 995.5179057 | F11: 50.71180813 | G11: 62.26949425 | H11: 0 | I11: 0
B12: 5 | C12: Government agency debt | D12: 0 | E12: 0 | F12: 0 | G12: 0 | H12: 0 | I12: 0
B13: 6 | C13: Corporate bonds | D13: 0 | E13: 0 | F13: 0 | G13: 0 | H13: 0 | I13: 0
B14: 7 | C14: Equity securities | D14: 0 | E14: 0 | F14: 0 | G14: 0 | H14: 0 | I14: 0
B15: 8 | C15: Other collateral | D15: 0 | E15: 393.238046 | F15: 0 | G15: 17.70620468 | H15: 0 | I15: 49827.32631 | K15: 0
B16: 9 | C16: Total | D16: 3331.754018 | E16: 4029.618879 | F16: 690.9161763 | G16: 5121.266154 | H16: 0 | I16: 74212.99521 | K16: 0

Sheet EU CCR6
B2: EU CCR6 – Credit derivatives exposures
B4: Reported in DKKm | D4: a | E4: b
D5: Protection bought | E5: Protection sold
B6: Notionals
B7: 1 | C7: Single-name credit default swaps | D7: 170.60095 | E7: 170.60095
B8: 2 | C8: Index credit default swaps | D8: 238.6464 | E8: 178.9848
B9: 3 | C9: Total return swaps | D9: 0 | E9: 0
B10: 4 | C10: Credit options | D10: 0 | E10: 0
B11: 5 | C11: Other credit derivatives | D11: 0 | E11: 0
B12: 6 | C12: Total notionals | D12: 409.24735 | E12: 349.58575
B13: Fair values
B14: 7 | C14: Positive fair value (asset) | D14: 0 | E14: 18.3590415
B15: 8 | C15: Negative fair value (liability) | D15: -19.38550146 | E15: 0

Sheet EU CCR8
B2: EU CCR8 – Exposures to CCPs
B4: Reported in DKKm | D4: a | E4: b
D5: Exposure value | E5: RWEA
B6: 1 | C6: Exposures to QCCPs (total) | E6: 18.96575622
B7: 2 | C7: Exposures for trades at QCCPs (excluding initial margin and default fund contributions); of which | D7: 948.2878111 | E7: 18.96575622
B8: 3 | C8: (i) OTC derivatives | D8: 167.0335424 | E8: 3.34067085
B9: 4 | C9: (ii) Exchange-traded derivatives | D9: 781.2542687 | E9: 15.62508537
B10: 5 | C10: (iii) SFTs | D10: 0 | E10: 0
B11: 6 | C11: (iv) Netting sets where cross-product netting has been approved | D11: 0 | E11: 0
B12: 7 | C12: Segregated initial margin | D12: 533.160324
B13: 8 | C13: Non-segregated initial margin | D13: 285.7725348 | E13: 0
B14: 9 | C14: Prefunded default fund contributions | D14: 0
B15: 10 | C15: Unfunded default fund contributions | D15: 0
B16: 11 | C16: Exposures to non-QCCPs (total)
B17: 12 | C17: Exposures for trades at non-QCCPs (excluding initial margin and default fund contributions); of which
B18: 13 | C18: (i) OTC derivatives
B19: 14 | C19: (ii) Exchange-traded derivatives
B20: 15 | C20: (iii) SFTs
B21: 16 | C21: (iv) Netting sets where cross-product netting has been approved
B22: 17 | C22: Segregated initial margin
B23: 18 | C23: Non-segregated initial margin
B24: 19 | C24: Prefunded default fund contributions
B25: 20 | C25: Unfunded default fund contributions

Sheet EU SEC1
B2: EU SEC1 - Securitisation exposures in the non-trading book
B4: Reported in DKKm | D4: a | E4: b | F4: c | G4: d | H4: e | I4: f | J4: g | K4: h | L4: i | M4: j | N4: k | O4: l | P4: m | Q4: n | R4: o
D5: Institution acts as originator | K5: Institution acts as sponsor | O5: Institution acts as investor
D6: Traditional | H6: Synthetic | J6: Sub-total | K6: Traditional | M6: Synthetic | N6: Sub-total | O6: Traditional | Q6: Synthetic | R6: Sub-total
D7: STS | F7: Non-STS | I7: of which SRT | K7: STS | L7: Non-STS | O7: STS | P7: Non-STS
E8: of which SRT | G8: of which SRT
B9: 1 | C9: Total exposures | O9: 6953138868 | R9: 6953138868
B10: 2 | C10: Retail (total) | O10: 243368188.3 | R10: 243368188.3
B11: 3 | C11: residential mortgage | O11: 243368188.3 | R11: 243368188.3
B12: 4 | C12: credit card
B13: 5 | C13: other retail exposures
B14: 6 | C14: re-securitisation
B15: 7 | C15: Wholesale (total) | O15: 6709770680 | R15: 6709770680
B16: 8 | C16: loans to corporates | O16: 6709770680 | R16: 6709770680
B17: 9 | C17: commercial mortgage
B18: 10 | C18: lease and receivables
B19: 11 | C19: other wholesale
B20: 12 | C20: re-securitisation
B21: Note: The mapping below assumes that institutions do not simultaneously hold positions in one and the same securitisation in both the trading and the banking book. Where that assumption does not hold, the mapping is not direct and institutions will need to do some additional assessment of the part of the securitisation that relates to the trading and to the banking book.

Sheet EU SEC4
B2: EU SEC4 - Securitisation exposures in the non-trading book and associated regulatory capital requirements - institution acting as investor
B4: Reported in DKKm | E4: a | F4: b | G4: c | H4: d | I4: e | J4: f | K4: g | L4: h | M4: i | N4: j | O4: k | P4: l | Q4: m | R4: n | S4: o | T4: EU-p | U4: EU-q
E5: Exposure values (by RW bands/deductions) | J5: Exposure values (by regulatory approach) | N5: RWEA (by regulatory approach) | R5: Capital charge after cap
E6: ≤20% RW | F6: >20% to 50% RW | G6: >50% to 100% RW | H6: >100% to <1250% RW | I6: 1250% RW/ deductions | J6: SEC-IRBA | K6: SEC-ERBA (including IAA) | L6: SEC-SA | M6: 1250% RW / deductions | N6: SEC-IRBA | O6: SEC-ERBA (including IAA) | P6: SEC-SA | Q6: 1250% RW | R6: SEC-IRBA | S6: SEC-ERBA (including IAA) | T6: SEC-SA | U6: 1250% RW
B7: 1 | C7: Total exposures | E7: 6852318738 | F7: 44548105.01 | G7: 56272024.81 | K7: 6953138868 | O7: 1428390374 | T7: 114271229.9
B8: 2 | C8: Traditional) securitisation | E8: 6852318738 | F8: 44548105.01 | G8: 56272024.81 | K8: 6953138868 | O8: 1428390374 | T8: 114271229.9
B9: 3 | C9: securitisation | E9: 6852318738 | F9: 44548105.01 | G9: 56272024.81 | K9: 6953138868 | O9: 1428390374 | T9: 114271229.9
B10: 4 | C10: Retail underlying | E10: 142548058.5 | F10: 44548105.01 | G10: 56272024.81 | K10: 243368188.3 | O10: 86436238.18 | T10: 6914899.054
B11: 5 | C11: Of which STS | K11: 0
B12: 6 | C12: Wholesale | E12: 6709770680 | G12: 0 | K12: 6709770680 | O12: 1341954136 | T12: 107356330.9
B13: 7 | C13: Of which STS
B14: 8 | C14: Re-securitisation
B15: 9 | C15: Synthetic securitisation
B16: 10 | C16: securitisation
B17: 11 | C17: Retail underlying
B18: 12 | C18: Wholesale
B19: 13 | C19: Re-securitisation
B21: Note: The mapping below assumes that institutions do not simultaneously hold positions in one and the same securitisation in both the trading and the banking book. Where that assumption does not hold, the mapping is not direct and institutions will need to do some additional assessment of the part of the securitisation that relates to the trading and to the banking book. The same applies for when institutions hold positions with different risk weights in the same transactions for columns a to e.

Sheet EU MR1
B2: EU MR1 - Market risk under the standardised approach
B4: Reported in DKKm | D4: a
D5: RWEAs
C6: Outright products
B7: 1 | C7: Interest rate risk (general and specific) | D7: 8618.856403
B8: 2 | C8: Equity risk (general and specific) | D8: 1518.231436
B9: 3 | C9: Foreign exchange risk
B10: 4 | C10: Commodity risk | D10: 19.92560519
C11: Options
B12: 5 | C12: Simplified approach
B13: 6 | C13: Delta-plus approach | D13: 2.4565773
B14: 7 | C14: Scenario approach
B15: 8 | C15: Securitisation (specific risk)
B16: 9 | C16: Total | D16: 10159.47002

Sheet EU IRRBB1
B2: EU IRRBB1 - Interest rate risks of non-trading book activities
B4: Supervisory shock scenarios | D4: a | E4: b | F4: c | G4: 040 | H4: 050 | J4: d
D5: Changes of the economic value of equity | F5: Changes of the net interest income
D6: Current period | E6: Last period | F6: Current period | G6: requirement | J6: Last period
B7: 1 | C7: Parallel up | D7: 1277 | E7: 1866.764375 | F7: 840 | J7: 825.2723678
B8: 2 | C8: Parallel down | D8: -2000 | E8: -2074.657573 | F8: -890 | J8: -868.7060227
B9: 3 | C9: Steepener | D9: 503 | E9: 584.2325458
B10: 4 | C10: Flattener | D10: -276 | E10: -246.5915995
B11: 5 | C11: Short rates up | D11: 477 | E11: 679.5334957
B12: 6 | C12: Short rates down | D12: -583 | E12: -771.4195885
C15: According to Art. 446 CRR: | D15: Institutions shall disclose the approaches for the assessment of own funds requirements for operational risk that the institution qualifies for a description of the methodology set out in Article 312(2), if used by the institution, including a discussion of relevant internal and external factors considered in the institution's measurement approach and in the case of partial use, the scope and coverage of the different methodologies used.

Sheet JYSKE REALKREDIT

Sheet EU CC1 JR
B2: EU CC1 - Composition of regulatory own funds
B4: Reported in DKKm | D4: (a} | E4: (b)
D5: At 30 June 2024 (DKK million) | E5: Source based on reference numbers/letters of the balance sheet under the regulatory scope of consolidation
B6: Common Equity Tier 1 (CET1) capital: instruments and reserves
B7: 1 | C7: Capital instruments and the related share premium accounts | D7: 601.841 | E7: a
C8: of which: Instrument type 1 | D8: 601.841 | E8: a
C9: of which: Instrument type 2
C10: of which: Instrument type 3
B11: 2 | C11: Retained earnings | D11: 23586.68567 | E11: c
B12: 3 | C12: Accumulated other comprehensive income (and other reserves)
B13: EU-3a | C13: Funds for general banking risk
B14: 4 | C14: Amount of qualifying items referred to in Article 484 (3) and the related share premium accounts subject to phase out from CET1
B15: 5 | C15: Minority interests (amount allowed in consolidated CET1)
B16: EU-5a | C16: Independently reviewed interim profits net of any foreseeable charge or dividend | D16: 1205.344615 | E16: d
B17: 6 | C17: Common Equity Tier 1 (CET1) capital before regulatory adjustments | D17: 25393.87128
B18: Common Equity Tier 1 (CET1) capital: regulatory adjustments
B19: 7 | C19: Additional value adjustments (negative amount) | D19: -38.79235
B20: 8 | C20: Intangible assets (net of related tax liability) (negative amount)
B21: 9 | C21: Empty set in the EU
B22: 10 | C22: Deferred tax assets that rely on future profitability excluding those arising from temporary differences (net of related tax liability where the conditions in Article 38 (3) are met) (negative amount)
B23: 11 | C23: Fair value reserves related to gains or losses on cash flow hedges of financial instruments that are not valued at fair value
B24: 12 | C24: Negative amounts resulting from the calculation of expected loss amounts
B25: 13 | C25: Any increase in equity that results from securitised assets (negative amount)
B26: 14 | C26: Gains or losses on liabilities valued at fair value resulting from changes in own credit standing
B27: 15 | C27: Defined-benefit pension fund assets (negative amount)
B28: 16 | C28: Direct and indirect holdings by an institution of own CET1 instruments (negative amount)
B29: 17 | C29: Direct, indirect and synthetic holdings of the CET 1 instruments of financial sector entities where those entities have reciprocal cross holdings with the institution designed to inflate artificially the own funds of the institution (negative amount)
B30: 18 | C30: Direct, indirect and synthetic holdings by the institution of the CET1 instruments of financial sector entities where the institution does not have a significant investment in those entities (amount above 10% threshold and net of eligible short positions) (negative amount)
B31: 19 | C31: Direct, indirect and synthetic holdings by the institution of the CET1 instruments of financial sector entities where the institution has a significant investment in those entities (amount above 10% threshold and net of eligible short positions) (negative amount)
B32: 20 | C32: Empty set in the EU
B33: EU-20a | C33: Exposure amount of the following items which qualify for a RW of 1250%, where the institution opts for the deduction alternative
B34: EU-20b | C34: of which: qualifying holdings outside the financial sector (negative amount)
B35: EU-20c | C35: of which: securitisation positions (negative amount)
B36: EU-20d | C36: of which: free deliveries (negative amount)
B37: 21 | C37: Deferred tax assets arising from temporary differences (amount above 10% threshold, net of related tax liability where the conditions in Article 38 (3) are met) (negative amount)
B38: 22 | C38: Amount exceeding the 17,65% threshold (negative amount)
B39: 23 | C39: of which: direct, indirect and synthetic holdings by the institution of the CET1 instruments of financial sector entities where the institution has a significant investment in those entities
B40: 24 | C40: Empty set in the EU
B41: 25 | C41: of which: deferred tax assets arising from temporary differences
B42: EU-25a | C42: Losses for the current financial year (negative amount)
B43: EU-25b | C43: Foreseeable tax charges relating to CET1 items except where the institution suitably adjusts the amount of CET1 items insofar as such tax charges reduce the amount up to which those items may be used to cover risks or losses (negative amount)
B44: 26 | C44: Empty set in the EU
B45: 27 | C45: Qualifying AT1 deductions that exceed the AT1 items of the institution (negative amount)
B46: 27a | C46: Other regulatory adjusments | D46: -56.724769
B47: 28 | C47: Total regulatory adjustments to Common Equity Tier 1 (CET1) | D47: -95.517119
B48: 29 | C48: Common Equity Tier 1 (CET1) capital | D48: 25298.35416
B49: Additional Tier 1 (AT1) capital: instruments
B50: 30 | C50: Capital instruments and the related share premium accounts
B51: 31 | C51: of which: classified as equity under applicable accounting standards
B52: 32 | C52: of which: classified as liabilities under applicable accounting standards
B53: 33 | C53: Amount of qualifying items referred to in Article 484 (4) and the related share premium accounts subject to phase out from AT1
B54: EU-33a | C54: Amount of qualifying items referred to in Article 494a(1) subject to phase out from AT1
B55: EU-33b | C55: Amount of qualifying items referred to in Article 494b(1) subject to phase out from AT1
B56: 34 | C56: Qualifying Tier 1 capital included in consolidated AT1 capital (including minority interests not included in row 5) issued by subsidiaries and held by third parties
B57: 35 | C57: of which: instruments issued by subsidiaries subject to phase out
B58: 36 | C58: Additional Tier 1 (AT1) capital before regulatory adjustments
B59: Additional Tier 1 (AT1) capital: regulatory adjustments
B60: 37 | C60: Direct and indirect holdings by an institution of own AT1 instruments (negative amount)
B61: 38 | C61: Direct, indirect and synthetic holdings of the AT1 instruments of financial sector entities where those entities have reciprocal cross holdings with the institution designed to inflate artificially the own funds of the institution (negative amount)
B62: 39 | C62: Direct, indirect and synthetic holdings of the AT1 instruments of financial sector entities where the institution does not have a significant investment in those entities (amount above 10% threshold and net of eligible short positions) (negative amount)
B63: 40 | C63: Direct, indirect and synthetic holdings by the institution of the AT1 instruments of financial sector entities where the institution has a significant investment in those entities (net of eligible short positions) (negative amount)
B64: 41 | C64: Not applicable
B65: 42 | C65: Qualifying T2 deductions that exceed the T2 items of the institution (negative amount)
B66: 42a | C66: Other regulatory adjustments to AT1 capital
B67: 43 | C67: Total regulatory adjustments to Additional Tier 1 (AT1) capital
B68: 44 | C68: Additional Tier 1 (AT1) capital
B69: 45 | C69: Tier 1 capital (T1 = CET1 + AT1) | D69: 25298.35416
B70: Tier 2 (T2) capital: instruments
B71: 46 | C71: Capital instruments and the related share premium accounts
B72: 47 | C72: Amount of qualifying items referred to in Article 484 (5) and the related share premium accounts subject to phase out from T2 as described in Article 486 (4) CRR
B73: EU-47a | C73: Amount of qualifying items referred to in Article 494a (2) subject to phase out from T2
B74: EU-47b | C74: Amount of qualifying items referred to in Article 494b (2) subject to phase out from T2
B75: 48 | C75: Qualifying own funds instruments included in consolidated T2 capital (including minority interests and AT1 instruments not included in rows 5 or 34) issued by subsidiaries and held by third parties
B76: 49 | C76: of which: instruments issued by subsidiaries subject to phase out
B77: 50 | C77: Credit risk adjustments
B78: 51 | C78: Tier 2 (T2) capital before regulatory adjustments
B79: Tier 2 (T2) capital: regulatory adjustments
B80: 52 | C80: Direct and indirect holdings by an institution of own T2 instruments and subordinated loans (negative amount)
B81: 53 | C81: Direct, indirect and synthetic holdings of the T2 instruments and subordinated loans of financial sector entities where those entities have reciprocal cross holdings with the institution designed to inflate artificially the own funds of the institution (negative amount)
B82: 54 | C82: Direct and indirect holdings of the T2 instruments and subordinated loans of financial sector entities where the institution does not have a significant investment in those entities (amount above 10% threshold and net of eligible short positions) (negative amount)
B83: 54a | C83: Not applicable
B84: 55 | C84: Direct and indirect holdings by the institution of the T2 instruments and subordinated loans of financial sector entities where the institution has a significant investment in those entities (net of eligible short positions) (negative amount)
B85: 56 | C85: Not applicable
B86: EU-56a | C86: Qualifying eligible liabilities deductions that exceed the eligible liabilities items of the institution (negative amount)
B87: 56b | C87: Other regulatory adjusments to T2 capital
B88: 57 | C88: Total regulatory adjustments to Tier 2 (T2) capital
B89: 58 | C89: Tier 2 (T2) capital
B90: 59 | C90: Total capital (TC = T1 + T2) | D90: 25298.35416
B91: 60 | C91: Total risk exposure amount | D91: 88314.41102
B92: Capital ratios and requirements including buffers
B93: 61 | C93: Common Equity Tier 1 | D93: 0.2864578257
B94: 62 | C94: Tier 1 | D94: 0.2864578257
B95: 63 | C95: Total capital | D95: 0.2864578257
B96: 64 | C96: Institution CET1 overall capital requirements | D96: 0.1467957833
B97: 65 | C97: of which: capital conservation buffer requirement | D97: 0.025
B98: 66 | C98: of which: countercyclical capital buffer requirement | D98: 0.025
B99: 67 | C99: of which: systemic risk buffer requirement | D99: 0.016099
B100: EU-67a | C100: of which: Global Systemically Important Institution (G-SII) or Other Systemically Important Institution (O-SII) buffer requirement
B101: EU-67b | C101: of which: additional own funds requirements to address the risks other than the risk of excessive leverage | D101: 0.02071422211
B102: 68 | C102: Common Equity Tier 1 capital (as a percentage of risk exposure amount) available after meeting the minimum capital requirements | D102: 0.2298060817
B103: Amounts below the thresholds for deduction (before risk weighting)
B104: 72 | C104: Direct and indirect holdings of own funds and eligible liabilities of financial sector entities where the institution does not have a significant investment in those entities (amount below 10% threshold and net of eligible short positions) | D104: 0.12
B105: 73 | C105: Direct and indirect holdings by the institution of the CET1 instruments of financial sector entities where the institution has a significant investment in those entities (amount below 17.65% thresholds and net of eligible short positions)
B106: 74 | C106: Not applicable
B107: 75 | C107: Deferred tax assets arising from temporary differences (amount below 17.65% threshold, net of related tax liability where the conditions in Article 38 (3) are met) | D107: 98.522242 | E107: h
B108: Applicable caps on the inclusion of provisions in Tier 2
B109: 76 | C109: Credit risk adjustments included in T2 in respect of exposures subject to standardised approach (prior to the application of the cap)
B110: 77 | C110: Cap on inclusion of credit risk adjustments in T2 under standardised approach
B111: 78 | C111: Credit risk adjustments included in T2 in respect of exposures subject to internal ratings-based approach (prior to the application of the cap)
B112: 79 | C112: Cap for inclusion of credit risk adjustments in T2 under internal ratings-based approach
B113: Capital instruments subject to phase-out arrangements (only applicable between 1 Jan 2014 and 1 Jan 2022)
B114: 80 | C114: Current cap on CET1 instruments subject to phase out arrangements
B115: 81 | C115: Amount excluded from CET1 due to cap (excess over cap after redemptions and maturities)
B116: 82 | C116: Current cap on AT1 instruments subject to phase out arrangements
B117: 83 | C117: Amount excluded from AT1 due to cap (excess over cap after redemptions and maturities)
B118: 84 | C118: Current cap on T2 instruments subject to phase out arrangements
B119: 85 | C119: Amount excluded from T2 due to cap (excess over cap after redemptions and maturities)

Sheet EU CC2 JR
B2: EU CC2 - Reconciliation of regulatory own funds to balance sheet in the audited financial statements
B4: Reported in DKKm | D4: Balance sheet as in published financial statements | E4: Under regulatory scope of consolidation | F4: Reference
D5: At 30 June 2024
B6: Assets - Breakdown by asset clases according to the balance sheet in the published financial statements
B7: 10 | C7: Deferred tax assets | D7: 98.522242 | E7: 98.522242 | F7: h
B8: 14 | C8: Total assets | D8: 382248.6143
B9: Liabilities - Breakdown by liability clases according to the balance sheet in the published financial statements
B10: 9 | C10: Total liabilities | D10: 356854.743
B11: Shareholders' Equity
B12: 1 | C12: Share capital | D12: 601.841 | E12: 601.841 | F12: a
B13: 3 | C13: Retained profit | D13: 24792.03028 | E13: 24792.03028 | F13: c, d
B14: 5 | C14: Total shareholders' equity | D14: 25393.87128

Sheet EU OV1 JR
B2: EU OV1 – Overview of total risk exposure amounts
B4: Reported in DKKm | D4: Risk weighted exposure amounts (RWEAs) | F4: Total own funds requirements
D5: a | E5: b | F5: c
D6: T | E6: T-1 | F6: T
B7: 1 | C7: Credit risk (excluding CCR) | D7: =+SUM(D8:D12) -> 83923.46058 | E7: 83839.78738 | F7: =+D7*0.08 -> 6713.876846
B8: 2 | C8: Of which the standardised approach | D8: =2606.374082-D14-D16-D18 -> 2463.783713 | E8: 2200.117377 | F8: =+D8*0.08 -> 197.102697
B9: 3 | C9: Of which the Foundation IRB (F-IRB) approach | D9: 0 | E9: 0 | F9: 0
B10: 4 | C10: Of which: slotting approach | D10: 0 | E10: 0 | F10: 0
B11: EU 4a | C11: Of which: equities under the simple riskweighted approach | D11: 0 | E11: 0 | F11: 0
B12: 5 | C12: Of which the Advanced IRB (A-IRB) approach | D12: =69210.876535+622.277+11626.523332 -> 81459.67687 | E12: 81639.67 | F12: 6516.774149
B13: 6 | C13: Counterparty credit risk - CCR | D13: =+SUM(D14:D18) -> 259.528369 | E13: 287.20394 | F13: 20.76226952
B14: 7 | C14: Of which the standardised approach | D14: 127.27 | E14: 135.642 | F14: 10.1816
B15: 8 | C15: Of which internal model method (IMM) | F15: 0
B16: EU 8a | C16: Of which exposures to a CCP | D16: 8.300369 | E16: 2.232 | F16: 0.66402952
B17: EU 8b | C17: Of which credit valuation adjustment - CVA | D17: 116.938 | E17: 135.77594 | F17: 9.35504
B18: 9 | C18: Of which other CCR | D18: 7.02 | E18: 13.554 | F18: 0.5616
B19: 15 | C19: Settlement risk | D19: 0 | E19: 0 | F19: 0
B20: 16 | C20: Securitisation exposures in the non-trading book (after the cap) | D20: 0 | E20: 0 | F20: 0
B21: 17 | C21: Of which SEC-IRBA approach | F21: 0
B22: 18 | C22: Of which SEC-ERBA (including IAA) | F22: 0
B23: 19 | C23: Of which SEC-SA approach | F23: 0
B24: EU 19a | C24: Of which 1250%/ deduction | F24: 0
B25: 20 | C25: Position, foreign exchange and commodities risks (Market risk) | D25: 0 | E25: 0 | F25: 0
B26: 21 | C26: Of which the standardised approach | F26: 0
B27: 22 | C27: Of which IMA | F27: 0
B28: EU 22a | C28: Large exposures | D28: 0 | E28: 0 | F28: 0
B29: 23 | C29: Operational risk | D29: =+D31 -> 4131.421 | E29: 3341.5457 | F29: 330.51368
B30: EU 23a | C30: Of which basic indicator approach | F30: 0
B31: EU 23b | C31: Of which standardised approach | D31: 4131.421 | E31: 3341.5457 | F31: 330.51368
B32: EU 23c | C32: Of which advanced measurement approach | F32: 0
B33: 24 | C33: Amounts below the thresholds for deduction (subject to 250% risk weight) (For information) | D33: 0 | E33: 0 | F33: 0
B34: 29 | C34: Total | D34: =+D7+D13+D19+D20+D28+D29+D33+D25 -> 88314.40995 | E34: 87468.53702 | F34: 7065.152796

Sheet EU CQ1 JR
B2: EU CQ1 - Credit quality of forborne exposures
B4: Reported in DKKm | D4: a | E4: b | F4: c | H4: d | I4: e | J4: f | K4: g | M4: h
D5: Gross carrying amount/ Nominal amount of exposures with forbearance measures | I5: Accumulated impairment, accumulated negative changes in fair value due to credit risk and provisions | K5: Collaterals received and financial guarantees received on forborne exposures
D6: Performing forborne | E6: Non-performing forborne | I6: On performing forborne exposures | J6: On non-performing forborne exposures | M6: Of which: Collateral and financial guarantees received on non-performing exposures with forbearance measures
F7: Of which defaulted | H7: Of which impaired
B8: 5 | C8: Cash balances at central banks and other demand deposits
B9: 10 | C9: Loans and advances | D9: 1562.973385 | E9: 3074.103807 | F9: 2820.041865 | J9: 112.7042543 | K9: 4504.737992 | M9: 2961.990814
B10: 20 | C10: Central banks
B11: 30 | C11: General governments
B12: 40 | C12: Credit institutions
B13: 50 | C13: Other financial corporations | E13: 0.05543495 | F13: 0.05543495 | J13: 0.00168942 | K13: 0.05374553 | M13: 0.05374553
B14: 60 | C14: Non-financial corporations | D14: 694.1642594 | E14: 1817.033993 | F14: 1687.922584 | J14: 39.30718843 | K14: 2464.417165 | M14: 1777.726804
B15: 70 | C15: Households | D15: 868.8091256 | E15: 1257.014379 | F15: 1132.063846 | J15: 73.3953765 | K15: 2040.267082 | M15: 1184.210264
B16: 80 | C16: Debt Securities
B17: 90 | C17: Loan commitments given | D17: 0.41577542 | E17: 8.3003755 | F17: 8.3003755 | H17: 8.3003755 | K17: 8.37648425 | M17: 7.96070883
B18: 100 | C18: Total | D18: 1563.38916 | E18: 3082.404182 | F18: 2828.34224 | H18: 8.3003755 | J18: 112.7042543 | K18: 4513.114476 | M18: 2969.951523

Sheet EU CQ3 JR
B2: EU CQ3 - Credit quality of performing and non-performing exposures by past due days
B4: Reported in DKKm | E4: a | F4: b | I4: c | K4: d | M4: e | O4: f | Q4: g | T4: h | V4: i | X4: j | Z4: k | AB4: l
E5: Gross carrying amount / Nominal amount
E6: Performing exposures | K6: Non-performing exposures
F7: Not past due or Past due < 30 days | I7: Past due > 30 days < 90 days | M7: Unlikely to pay that are not past-due or past-due < = 90 days | O7: Past due > 90 days <= 180 days | Q7: Past due > 180 days < =1 year | T7: Past due > 1 year <= 2 years | V7: Past due > 2 year <= 5 years | X7: Past due > 5 year <= 7 years | Z7: Past due > 7 years | AB7: Of which defaulted
B8: 005 | C8: Cash balances at central banks and other demand deposits | E8: 0 | F8: 0 | G8: 0 | H8: 0 | I8: 0 | J8: 0 | K8: 0 | L8: 0 | M8: 0 | N8: 0 | O8: 0 | P8: 0 | Q8: 0 | R8: 0 | S8: 0 | T8: 0 | U8: 0 | V8: 0 | W8: 0 | X8: 0 | Y8: 0 | Z8: 0 | AA8: 0 | AB8: 0 | AC8: 0
B9: 010 | C9: Loans and advances | E9: 3.595266591e+11 | F9: 3.594482599e+11 | G9: 3.594482599e+11 | H9: 3.594482599e+11 | I9: 78399165.93 | J9: 78399165.93 | K9: 3074103807 | L9: 3074103807 | M9: 2944357789 | N9: 2944357789 | O9: 63615558.99 | P9: 63615558.99 | Q9: 43947142.63 | R9: 43947142.63 | S9: 43947142.63 | T9: 22090314.84 | U9: 22090314.84 | V9: 93001.09 | W9: 93001.09 | X9: 0 | Y9: 0 | Z9: 0 | AA9: 0 | AB9: 2820041865 | AC9: 2820041865
B10: 020 | C10: Central banks | E10: 6003312513 | F10: 6003312513 | G10: 6003312513 | H10: 6003312513 | I10: 0 | J10: 0 | K10: 0 | L10: 0 | M10: 0 | N10: 0 | O10: 0 | P10: 0 | Q10: 0 | R10: 0 | S10: 0 | T10: 0 | U10: 0 | V10: 0 | W10: 0 | X10: 0 | Y10: 0 | Z10: 0 | AA10: 0 | AB10: 0 | AC10: 0
B11: 030 | C11: General governments | E11: 135642960.4 | F11: 135642960.4 | G11: 135642960.4 | H11: 135642960.4 | I11: 0 | J11: 0 | K11: 0 | L11: 0 | M11: 0 | N11: 0 | O11: 0 | P11: 0 | Q11: 0 | R11: 0 | S11: 0 | T11: 0 | U11: 0 | V11: 0 | W11: 0 | X11: 0 | Y11: 0 | Z11: 0 | AA11: 0 | AB11: 0 | AC11: 0
B12: 040 | C12: Credit institutions | E12: 2109606746 | F12: 2109606746 | G12: 2109606746 | H12: 2109606746 | I12: 0 | J12: 0 | K12: 0 | L12: 0 | M12: 0 | N12: 0 | O12: 0 | P12: 0 | Q12: 0 | R12: 0 | S12: 0 | T12: 0 | U12: 0 | V12: 0 | W12: 0 | X12: 0 | Y12: 0 | Z12: 0 | AA12: 0 | AB12: 0 | AC12: 0
B13: 050 | C13: Other financial corporations | E13: 1010249713 | F13: 1010249713 | G13: 1010249713 | H13: 1010249713 | I13: 0 | J13: 0 | K13: 55434.95 | L13: 55434.95 | M13: 0 | N13: 0 | O13: 55434.95 | P13: 55434.95 | Q13: 0 | R13: 0 | S13: 0 | T13: 0 | U13: 0 | V13: 0 | W13: 0 | X13: 0 | Y13: 0 | Z13: 0 | AA13: 0 | AB13: 55434.95 | AC13: 55434.95
B14: 060 | C14: Non-financial corporations | E14: 1.761500515e+11 | F14: 1.761500515e+11 | G14: 1.761500515e+11 | H14: 1.761500515e+11 | I14: 0 | J14: 0 | K14: 1817033993 | L14: 1817033993 | M14: 1810351336 | N14: 1810351336 | O14: 5389129.99 | P14: 5389129.99 | Q14: 1293526.22 | R14: 1293526.22 | S14: 1293526.22 | T14: 0 | U14: 0 | V14: 0 | W14: 0 | X14: 0 | Y14: 0 | Z14: 0 | AA14: 0 | AB14: 1687922584 | AC14: 1687922584
B15: 070 | C15: Of which SMEs | E15: 4.241592768e+10 | F15: 4.241592768e+10 | G15: 4.241592768e+10 | H15: 4.241592768e+10 | I15: 0 | J15: 0 | K15: 755327940.2 | L15: 755327940.2 | M15: 748645284 | N15: 748645284 | O15: 5389129.99 | P15: 5389129.99 | Q15: 1293526.22 | R15: 1293526.22 | S15: 1293526.22 | T15: 0 | U15: 0 | V15: 0 | W15: 0 | X15: 0 | Y15: 0 | Z15: 0 | AA15: 0 | AB15: 626807861.2 | AC15: 626807861.2
B16: 080 | C16: Households | E16: 1.741177956e+11 | F16: 1.740393964e+11 | G16: 1.740393964e+11 | H16: 1.740393964e+11 | I16: 78399165.93 | J16: 78399165.93 | K16: 1257014379 | L16: 1257014379 | M16: 1134006453 | N16: 1134006453 | O16: 58170994.05 | P16: 58170994.05 | Q16: 42653616.41 | R16: 42653616.41 | S16: 42653616.41 | T16: 22090314.84 | U16: 22090314.84 | V16: 93001.09 | W16: 93001.09 | X16: 0 | Y16: 0 | Z16: 0 | AA16: 0 | AB16: 1132063846 | AC16: 1132063846
B17: 090 | C17: Debt Securities | E17: 1.979212735e+10 | F17: 1.979212735e+10 | G17: 1.979212735e+10 | H17: 1.979212735e+10 | I17: 0 | J17: 0 | K17: 0 | L17: 0 | M17: 0 | N17: 0 | O17: 0 | P17: 0 | Q17: 0 | R17: 0 | S17: 0 | T17: 0 | U17: 0 | V17: 0 | W17: 0 | X17: 0 | Y17: 0 | Z17: 0 | AA17: 0 | AB17: 0 | AC17: 0
B18: 100 | C18: Central banks | E18: 0 | F18: 0 | G18: 0 | H18: 0 | I18: 0 | J18: 0 | K18: 0 | L18: 0 | M18: 0 | N18: 0 | O18: 0 | P18: 0 | Q18: 0 | R18: 0 | S18: 0 | T18: 0 | U18: 0 | V18: 0 | W18: 0 | X18: 0 | Y18: 0 | Z18: 0 | AA18: 0 | AB18: 0 | AC18: 0
B19: 110 | C19: General governments | E19: 0 | F19: 0 | G19: 0 | H19: 0 | I19: 0 | J19: 0 | K19: 0 | L19: 0 | M19: 0 | N19: 0 | O19: 0 | P19: 0 | Q19: 0 | R19: 0 | S19: 0 | T19: 0 | U19: 0 | V19: 0 | W19: 0 | X19: 0 | Y19: 0 | Z19: 0 | AA19: 0 | AB19: 0 | AC19: 0
B20: 120 | C20: Credit institutions | E20: 1.979212735e+10 | F20: 1.979212735e+10 | G20: 1.979212735e+10 | H20: 1.979212735e+10 | I20: 0 | J20: 0 | K20: 0 | L20: 0 | M20: 0 | N20: 0 | O20: 0 | P20: 0 | Q20: 0 | R20: 0 | S20: 0 | T20: 0 | U20: 0 | V20: 0 | W20: 0 | X20: 0 | Y20: 0 | Z20: 0 | AA20: 0 | AB20: 0 | AC20: 0
B21: 130 | C21: Other financial corporations | E21: 0 | F21: 0 | G21: 0 | H21: 0 | I21: 0 | J21: 0 | K21: 0 | L21: 0 | M21: 0 | N21: 0 | O21: 0 | P21: 0 | Q21: 0 | R21: 0 | S21: 0 | T21: 0 | U21: 0 | V21: 0 | W21: 0 | X21: 0 | Y21: 0 | Z21: 0 | AA21: 0 | AB21: 0 | AC21: 0
B22: 140 | C22: Non-financial corporations | E22: 0 | F22: 0 | G22: 0 | H22: 0 | I22: 0 | J22: 0 | K22: 0 | L22: 0 | M22: 0 | N22: 0 | O22: 0 | P22: 0 | Q22: 0 | R22: 0 | S22: 0 | T22: 0 | U22: 0 | V22: 0 | W22: 0 | X22: 0 | Y22: 0 | Z22: 0 | AA22: 0 | AB22: 0 | AC22: 0
B23: 150 | C23: Off-balance sheet exposures | E23: 1.474957344e+10 | K23: 8300375.5 | L23: 8300375.5 | AB23: 8300375.5 | AC23: 8300375.5
B24: 160 | C24: Central banks | E24: 0 | K24: 0 | L24: 0 | AB24: 0 | AC24: 0
B25: 170 | C25: General governments | E25: 0 | K25: 0 | L25: 0 | AB25: 0 | AC25: 0
B26: 180 | C26: Credit institutions | E26: 0 | K26: 0 | L26: 0 | AB26: 0 | AC26: 0
B27: 190 | C27: Other financial corporations | E27: 178201301.3 | K27: 0 | L27: 0 | AB27: 0 | AC27: 0
B28: 200 | C28: Non-financial corporations | E28: 1.326586084e+10 | K28: 0 | L28: 0 | AB28: 0 | AC28: 0
B29: 210 | C29: Households | E29: 1305511292 | K29: 8300375.5 | L29: 8300375.5 | AB29: 8300375.5 | AC29: 8300375.5
B30: 220 | C30: Total | E30: 3.940683598e+11 | F30: 3.792403872e+11 | G30: 3.792403872e+11 | H30: 3.792403872e+11 | I30: 78399165.93 | J30: 78399165.93 | K30: 3082404182 | L30: 3082404182 | M30: 2944357789 | N30: 2944357789 | O30: 63615558.99 | P30: 63615558.99 | Q30: 43947142.63 | R30: 43947142.63 | S30: 43947142.63 | T30: 22090314.84 | U30: 22090314.84 | V30: 93001.09 | W30: 93001.09 | X30: 0 | Y30: 0 | Z30: 0 | AA30: 0 | AB30: 2828342240 | AC30: 2828342240

Sheet EU CQ7 JR
B2: EU CQ7 - Collateral obtained by taking possession and execution processes
B5: Reported in DKKm | D5: a | E5: b
D6: Collateral obtained by taking possession
D7: Value at initial recognition | E7: Accumulated negative changes
B8: 010 | C8: Property Plant and Equipment (PP&E)
B9: 020 | C9: Other than PP&E | D9: 130909155 | E9: 0
B10: 030 | C10: Residential immovable property | D10: 2389076 | E10: 0
B11: 040 | C11: Commercial Immovable property
B12: 050 | C12: Movable property (auto, shipping, etc.)
B13: 060 | C13: Equity and debt instruments | D13: 128520079
B14: 070 | C14: Other collateral
B15: 080 | C15: Total | D15: 130909155 | E15: 0

Sheet EU CR1 JR
B2: EU CR1 - Performing and non-performing exposures and related provisions.
B4: Reported in DKKm | D4: a | E4: b | F4: c | G4: d | H4: e | I4: f | J4: g | K4: h | L4: i | M4: j | N4: k | O4: l | P4: m | Q4: n | R4: o
D5: Gross carrying values | J5: Accumulated impairment, accumulated negative changes in fair value due to credit risk and provisions | P5: Accumulated partial write-of | Q5: Collateral and financial guarantees received
D6: Performing exposures | G6: Non-performing exposures | J6: Performing exposures – accumulated impairment and provisions | M6: Non-performing exposures – accumulated impairment, accumulated negative changes in fair value due to credit risk and provisions | Q6: On performing exposures | R6: On non-performing exposures
E9: Of which stage 1 | F9: Of which stage 2 | H9: Of which stage 2 | I9: Of which stage 3 | K9: Of which stage 1 | L9: Of which stage 2 | N9: Of which stage 2 | O9: Of which stage 3
B10: 5 | C10: Cash balances at central banks and other demand deposits | D10: 0 | E10: 0 | F10: 0
B11: 10 | C11: Loans and advances | D11: 3.595266591e+11 | E11: 3.507377949e+11 | F11: 8788864185 | G11: 3074103807 | H11: 254061941.9 | I11: 2820041865 | J11: 1074293061 | K11: 627733515.2 | L11: 446559545.3 | M11: 112704254.3 | N11: 3046926.45 | O11: 109657327.9 | P11: 0 | Q11: 3.505030819e+11 | R11: 2961399552
B12: 20 | C12: Central banks | D12: 6003312513 | E12: 6003312513 | F12: 0 | G12: 0 | H12: 0 | I12: 0 | J12: 0 | K12: 0 | L12: 0 | M12: 0 | N12: 0 | O12: 0 | P12: 0 | Q12: 0 | R12: 0
B13: 30 | C13: General governments | D13: 135642960.4 | E13: 135642960.4 | F13: 0 | G13: 0 | H13: 0 | I13: 0 | J13: 358.41 | K13: 358.41 | L13: 0 | M13: 0 | N13: 0 | O13: 0 | P13: 0 | Q13: 135642602 | R13: 0
B14: 40 | C14: Credit institutions | D14: 2109606746 | E14: 2108390549 | F14: 1216196.39 | G14: 0 | H14: 0 | I14: 0 | J14: 0 | K14: 0 | L14: 0 | M14: 0 | N14: 0 | O14: 0 | P14: 0 | Q14: 16336165.4 | R14: 0
B15: 50 | C15: Other financial corporations | D15: 1010249713 | E15: 945861336.6 | F15: 64388376.2 | G15: 55434.95 | H15: 0 | I15: 55434.95 | J15: 152042.24 | K15: 138694.31 | L15: 13347.93 | M15: 1689.42 | N15: 0 | O15: 1689.42 | P15: 0 | Q15: 1010097671 | R15: 53745.53
B16: 60 | C16: Non-financial corporations | D16: 1.761500515e+11 | E16: 1.746763613e+11 | F16: 1473690257 | G16: 1817033993 | H16: 129111408.9 | I16: 1687922584 | J16: 591654767.1 | K16: 381793707 | L16: 209861060.1 | M16: 39307188.43 | N16: 778.1 | O16: 39306410.33 | P16: 0 | Q16: 1.757056958e+11 | R16: 1777726804
B17: 70 | C17: Of which SMEs | D17: 4.241592768e+10 | E17: 4.157696677e+10 | F17: 838960901.5 | G17: 755327940.2 | H17: 128520078.9 | I17: 626807861.2 | J17: 90636639.8 | K17: 65084940.56 | L17: 25551699.24 | M17: 14766489.38 | N17: 0 | O17: 14766489.38 | P17: 0 | Q17: 4.232529104e+10 | R17: 740561450.8
B18: 80 | C18: Households | D18: 1.741177956e+11 | E18: 1.668682262e+11 | F18: 7249569356 | G18: 1257014379 | H18: 124950533 | I18: 1132063846 | J18: 482485892.8 | K18: 245800755.5 | L18: 236685137.3 | M18: 73395376.5 | N18: 3046148.35 | O18: 70349228.15 | P18: 0 | Q18: 1.736353097e+11 | R18: 1183619003
B19: 90 | C19: Debt securities | D19: 1.979212735e+10 | E19: 1.979212735e+10 | F19: 0 | G19: 0 | H19: 0 | I19: 0 | J19: 0 | K19: 0 | L19: 0 | M19: 0 | N19: 0 | O19: 0 | P19: 0 | Q19: 0 | R19: 0
B20: 100 | C20: Central banks | D20: 0 | E20: 0 | F20: 0 | G20: 0 | H20: 0 | I20: 0 | J20: 0 | K20: 0 | L20: 0 | M20: 0 | N20: 0 | O20: 0 | P20: 0 | Q20: 0 | R20: 0
B21: 110 | C21: General governments | D21: 0 | E21: 0 | F21: 0 | G21: 0 | H21: 0 | I21: 0 | J21: 0 | K21: 0 | L21: 0 | M21: 0 | N21: 0 | O21: 0 | P21: 0 | Q21: 0 | R21: 0
B22: 120 | C22: Credit institutions | D22: 1.979212735e+10 | E22: 1.979212735e+10 | F22: 0 | G22: 0 | H22: 0 | I22: 0 | J22: 0 | K22: 0 | L22: 0 | M22: 0 | N22: 0 | O22: 0 | P22: 0 | Q22: 0 | R22: 0
B23: 130 | C23: Other financial corporations | D23: 0 | E23: 0 | F23: 0 | G23: 0 | H23: 0 | I23: 0 | J23: 0 | K23: 0 | L23: 0 | M23: 0 | N23: 0 | O23: 0 | P23: 0 | Q23: 0 | R23: 0
B24: 140 | C24: Non-financial corporations | D24: 0 | E24: 0 | F24: 0 | G24: 0 | H24: 0 | I24: 0 | J24: 0 | K24: 0 | L24: 0 | M24: 0 | N24: 0 | O24: 0 | P24: 0 | Q24: 0 | R24: 0
B25: 150 | C25: Off-balance-sheet exposures | D25: 1.474957344e+10 | E25: 1.474957344e+10 | F25: 0 | G25: 8300375.5 | H25: 0 | I25: 8300375.5 | J25: 6629639.77 | K25: 5886231.27 | L25: 743408.5 | M25: 0 | N25: 0 | O25: 0 | Q25: 0 | R25: 0
B26: 160 | C26: Central banks | E26: 0 | F26: 0 | G26: 0 | H26: 0 | I26: 0 | J26: 0 | K26: 0 | L26: 0 | M26: 0 | N26: 0 | O26: 0 | Q26: 0 | R26: 0
B27: 170 | C27: General governments | D27: 0 | E27: 0 | F27: 0 | G27: 0 | H27: 0 | I27: 0 | J27: 0 | K27: 0 | L27: 0 | M27: 0 | N27: 0 | O27: 0 | Q27: 0 | R27: 0
B28: 180 | C28: Credit institutions | D28: 0 | E28: 0 | F28: 0 | G28: 0 | H28: 0 | I28: 0 | J28: 0 | K28: 0 | L28: 0 | M28: 0 | N28: 0 | O28: 0 | Q28: 0 | R28: 0
B29: 190 | C29: Other financial corporations | D29: 178201301.3 | E29: 178201301.3 | F29: 0 | G29: 0 | H29: 0 | I29: 0 | J29: 0 | K29: 0 | L29: 0 | M29: 0 | N29: 0 | O29: 0 | Q29: 0 | R29: 0
B30: 200 | C30: Non-financial corporations | D30: 1.326586084e+10 | E30: 1.326586084e+10 | F30: 0 | G30: 0 | H30: 0 | I30: 0 | J30: 6500170.98 | K30: 5756762.48 | L30: 743408.5 | M30: 0 | N30: 0 | O30: 0 | Q30: 0 | R30: 0
B31: 210 | C31: Households | D31: 1305511292 | E31: 1305511292 | F31: 0 | G31: 8300375.5 | H31: 0 | I31: 8300375.5 | J31: 129468.79 | K31: 129468.79 | L31: 0 | M31: 0 | N31: 0 | O31: 0 | Q31: 0 | R31: 0
B32: 220 | C32: Total | D32: 3.940683598e+11 | E32: 3.852794957e+11 | F32: 8788864185 | G32: 3082404182 | H32: 254061941.9 | I32: 2828342240 | J32: 1080922700 | K32: 633619746.4 | L32: 447302953.8 | M32: 112704254.3 | N32: 3046926.45 | O32: 109657327.9 | P32: 0 | Q32: 3.505030819e+11 | R32: 2961399552

Sheet EU CR1-A JR
B2: EU CR1-A: Maturity of exposures
B4: Reported in DKKm | D4: a | E4: b | F4: c | G4: d | H4: e | I4: f
D5: Net exposure value
D6: On demand | E6: <= 1 year | F6: > 1 year <= 5 years | G6: > 5 years | H6: No stated maturity | I6: Total
B7: 1 | C7: Loans and advances | D7: 0 | E7: 6354.2 | F7: 9386 | G7: 338896.2 | I7: 354636.4
B8: 2 | C8: Debt securities | D8: 91.57 | E8: 7102.63 | F8: 14177.06 | G8: 132.06 | I8: 21503.31
B9: 3 | C9: Total | D9: 91.57 | E9: 13456.83 | F9: 23563.06 | G9: 339028.26 | I9: 376139.72

Sheet EU CR2 JR
B2: EU CR2 - Changes in the stock of non-performing loans and advances
B4: Reported in DKKm | D4: a
D5: Gross carrying amount
B6: 010 | C6: Initial stock of non-performing loans and advances | D6: 3118941285
B7: 020 | C7: Inflows to non-performing portfolios | D7: 721473453.4
B8: 030 | C8: Outflows from non-performing portfolios | D8: 364234754.5
B9: 040 | C9: Outflows due to write-offs | D9: 210109607
B10: 050 | C10: Outflow due to other situations | D10: 191966569.6
B11: 060 | C11: Final stock of non-performing loans and advances | D11: 3074103807

Sheet EU CR3 JR
B2: EU CR3 - CRM techniques overview: Disclosure of the use of credit risk mitigation techniques
B4: Reported in DKKm | D4: Unsecured carrying amount | E4: Secured carrying amount
F5: Of which secured by collateral | G5: Of which secured by financial guarantees
H6: Of which secured by credit derivatives
D7: a | E7: b | F7: c | G7: d | H7: e
B8: 1 | C8: Loans and advances | D8: 9285494031 | E8: 352128271521 | F8: 310681811678 | G8: 41446459843 | H8: 0
B9: 2 | C9: Debt securities | D9: 1.979212735e+10 | E9: 0 | F9: 0 | G9: 0 | H9: 0
B10: 3 | C10: Total | D10: 2.907762138e+10 | E10: 352128271521 | F10: 310681811678 | G10: 41446459843 | H10: 0
B11: 4 | C11: Of which non-performing exposures | D11: 0 | E11: 2961399552 | F11: 2961399552 | G11: 0 | H11: 0
B12: EU-5 | C12: Of which defaulted | D12: 0 | E12: 2961399552

Sheet EU CR4 JR
B2: EU CR4 – standardised approach – Credit risk exposure and CRM effects
B4: Reported in DKKm
C5: Exposure classes | D5: Exposures before CCF and before CRM | F5: Exposures post CCF and post CRM | H5: RWAs and RWAs density
D6: On-balance-sheet exposures | E6: Off-balance-sheet exposures | F6: On-balance-sheet exposures | G6: Off-balance-sheet exposures | H6: RWEA | I6: RWEA density (%)
D7: a | E7: b | F7: c | G7: d | H7: e | I7: f
B8: 1 | C8: Central governments or central banks | D8: 6101834755 | E8: - | F8: 6101834755 | G8: - | H8: 246305605 | I8: 0.0404
B9: 2 | C9: Regional government or local authorities | D9: 135642602 | E9: - | F9: 135642602 | G9: - | H9: - | I9: 0
B10: 3 | C10: Public sector entities
B11: 4 | C11: Multilateral development banks
B12: 5 | C12: International organisations
B13: 6 | C13: Institutions | D13: 831780497 | E13: - | F13: 831780497 | G13: - | H13: 166388833 | I13: 0.2
B14: 7 | C14: Corporates | D14: 5899498 | E14: 8387598 | F14: 5899498 | G14: 8316430 | H14: 14215928 | I14: 1
B15: 8 | C15: Retail
B16: 9 | C16: Secured by mortgages on immovable property
B17: 10 | C17: Exposures in default
B18: 11 | C18: Exposures associated with particularly high risk | D18: 79815 | E18: - | F18: 79815 | G18: - | H18: 119722 | I18: 1.5
B19: 12 | C19: Covered bonds | D19: 19791712161 | E19: - | F19: 19791712161 | G19: - | H19: 1979171216 | I19: 0.1
B20: 13 | C20: Institutions and corporates with a short-term credit assessment
B21: 14 | C21: Collective investment undertakings
B22: 15 | C22: Equity | D22: 57581948 | E22: - | F22: 57581948 | G22: - | H22: 57581948 | I22: 1
B23: 16 | C23: Other items
B24: 17 | C24: TOTAL | D24: 26924531277 | E24: 8387598 | F24: 26924531277 | G24: 8316430 | H24: 2463783253 | I24: 0.0915

Sheet EU CR5 JR
B2: EU CR5 – standardised approach
B4: Reported in DKKm
C5: Exposure classes | D5: Risk weight | S5: Total | T5: Of which unrated
D6: 0 | E6: 0.02 | F6: 0.04 | G6: 0.1 | H6: 0.2 | I6: 0.35 | J6: 0.5 | K6: 0.7 | L6: 0.75 | M6: 1 | N6: 1.5 | O6: 2.5 | P6: 3.7 | Q6: 12.5 | R6: Others
D7: a | E7: b | F7: c | G7: d | H7: e | I7: f | J7: g | K7: h | L7: i | M7: j | N7: k | O7: l | P7: m | Q7: n | R7: o | S7: p | T7: q
B8: 1 | C8: Central governments or central banks | D8: 6003312513 | E8: - | F8: - | G8: - | H8: - | I8: - | J8: - | K8: - | L8: - | M8: - | N8: - | O8: 98522242 | P8: - | Q8: - | R8: - | S8: 6101834755 | T8: -
B9: 2 | C9: Regional government or local authorities | D9: 135642602 | E9: - | F9: - | G9: - | H9: - | I9: - | J9: - | K9: - | L9: - | M9: - | N9: - | O9: - | P9: - | Q9: - | R9: - | S9: 135642602 | T9: -
B10: 3 | C10: Public sector entities
B11: 4 | C11: Multilateral development banks
B12: 5 | C12: International organisations
B13: 6 | C13: Institutions | D13: - | E13: - | F13: - | G13: - | H13: 831671386 | I13: - | J13: 109111 | K13: - | L13: - | M13: - | N13: - | O13: - | P13: - | Q13: - | R13: - | S13: 831780497 | T13: -
B14: 7 | C14: Corporates | D14: - | E14: - | F14: - | G14: - | H14: - | I14: - | J14: - | K14: - | L14: - | M14: 14215928 | N14: - | O14: - | P14: - | Q14: - | R14: - | S14: 14215928 | T14: 14215928
B15: 8 | C15: Retail
B16: 9 | C16: Secured by mortgages on immovable property
B17: 10 | C17: Exposures in default
B18: 11 | C18: Exposures associated with particularly high risk | D18: - | E18: - | F18: - | G18: - | H18: - | I18: - | J18: - | K18: - | L18: - | M18: - | N18: 79815 | O18: - | P18: - | Q18: - | R18: - | S18: 79815 | T18: 79815
B19: 12 | C19: Covered bonds | D19: - | E19: - | F19: - | G19: 19791712161 | H19: - | I19: - | J19: - | K19: - | L19: - | M19: - | N19: - | O19: - | P19: - | Q19: - | R19: - | S19: 19791712161 | T19: -
B20: 13 | C20: Institutions and corporates with a short-term credit assessment
B21: 14 | C21: Unit or shares in collective investment undertakings
B22: 15 | C22: Equity | D22: - | E22: - | F22: - | G22: - | H22: - | I22: - | J22: - | K22: - | L22: - | M22: 57581948 | N22: - | O22: - | P22: - | Q22: - | R22: - | S22: 57581948 | T22: 57581948
B23: 16 | C23: Other items
B24: 17 | C24: TOTAL | D24: 6138955115 | E24: - | F24: - | G24: 19791712161 | H24: 831671386 | I24: - | J24: 109111 | K24: - | L24: - | M24: 71797877 | N24: 79815 | O24: 98522242 | P24: - | Q24: - | R24: - | S24: 26932847707 | T24: 71877692

Sheet EU CR6-A JR
B2: EU CR6-A - Scope of the use of IRB and SA approaches
B4: Reported in DKKm | D4: Exposure value as defined in Article 166 CRR for exposures subject to IRB approach | E4: Total exposure value for exposures subject to the Standardised approach and to the IRB approach | F4: Percentage of total exposure value subject to the permanent partial use of the SA (%) | G4: Percentage of total exposure value subject to a roll-out plan (%) | H4: Percentage of total exposure value subject to IRB Approach (%)
D5: a | E5: b | F5: c | G5: e | H5: e
B6: 1 | C6: Central governments or central banks | D6: - | E6: 6237477716 | F6: 1 | G6: 0 | H6: 0
B7: 1.1 | C7: Of which Regional governments or local authorities | E7: 135642960 | F7: 1 | G7: 0 | H7: 0
B8: 1.2 | C8: Of which Public sector entities | E8: - | F8: 0 | G8: 0 | H8: 0
B9: 2 | C9: Institutions | D9: - | E9: 20623492658 | F9: 1 | G9: 0 | H9: 0
B10: 3 | C10: Corporates | D10: 157716552556 | E10: 157730848563 | F10: 0.0001 | G10: 0 | H10: 0.9999
B11: 3.1 | C11: Of which Corporates - Specialised lending, excluding slotting approach | E11: - | F11: 0 | G11: 0 | H11: 0
B12: 3.2 | C12: Of which Corporates - Specialised lending under slotting approach | E12: - | F12: 0 | G12: 0 | H12: 0
B13: 4 | C13: Retail | D13: 181034763859 | E13: 181034763859 | F13: 0 | G13: 0 | H13: 1
B14: 4.1 | C14: of which Retail – Secured by real estate SMEs | E14: 30085416252 | F14: 0 | G14: 0 | H14: 1
B15: 4.2 | C15: of which Retail – Secured by real estate non-SMEs | E15: 150949347607 | F15: 0 | G15: 0 | H15: 1
B16: 4.3 | C16: of which Retail – Qualifying revolving | E16: - | F16: 0 | G16: 0 | H16: 0
B17: 4.4 | C17: of which Retail – Other SMEs | E17: - | F17: 0 | G17: 0 | H17: 0
B18: 4.5 | C18: of which Retail – Other non-SMEs | E18: - | F18: 0 | G18: 0 | H18: 0
B19: 5 | C19: Equity | D19: - | E19: 57581948 | F19: 1 | G19: 0 | H19: 0
B20: 6 | C20: Other non-credit obligation assets | D20: 493084927 | E20: 493084927 | F20: 0 | G20: 0 | H20: 1
B21: 7 | C21: Total | D21: 339244401342 | E21: 366177249671 | F21: 0.0736 | G21: 0 | H21: 0.9264

Sheet EU CR6-B JR
B2: EU CR6-B - IRB approach – Credit risk exposures by exposure class and PD range
B4: Reported in DKKm
B5: A-IRB | C5: PD scale | D5: On-balance sheet exposures | E5: Off-balance-sheet exposures pre-CCF | F5: Exposure weighted average CCF | G5: Exposure post CCF and post CRM | H5: Exposure weighted average PD (%) | I5: Number of obligors | J5: Exposure weighted average LGD (%) | K5: Exposure weighted average maturity ( years) | L5: Risk weighted exposure amount after supporting factors | M5: Density of risk weighted exposure amount | N5: Expected loss amount | O5: Value adjust-ments and provisions
C6: a | D6: b | E6: c | F6: d | G6: e | H6: f | I6: g | J6: h | K6: i | L6: j | M6: k | N6: l | O6: m
B7: Corporate
C8: 0.00 to <0.15 | D8: 333052115 | E8: 373518 | F8: 0.2 | G8: 333126819 | H8: 0.0008 | I8: 11 | J8: 0.3205 | K8: 5 | L8: 82960228 | M8: 0.249 | N8: 80090 | O8: -150795
C9: 0.00 to <0.10 | D9: 332579721 | E9: 373518 | F9: 0.2 | G9: 332654424 | H9: 0.0008 | I9: 10 | J9: 0.3208 | K9: 5 | L9: 82916378 | M9: 0.2493 | N9: 80027 | O9: -148819
C10: 0.10 to <0.15 | D10: 472394 | E10: - | F10: 0 | G10: 472394 | H10: 0.0013 | I10: 1 | J10: 0.1057 | K10: 3 | L10: 43850 | M10: 0.0928 | N10: 63 | O10: -1976
C11: 0.15 to <0.25 | D11: 8627985064 | E11: - | F11: 0 | G11: 8627985064 | H11: 0.0018 | I11: 68 | J11: 0.1943 | K11: 5 | L11: 2486656387 | M11: 0.2882 | N11: 2996587 | O11: -11952378
C12: 0.25 to <0.50 | D12: 39977079888 | E12: 4662244376 | F12: 0.4824 | G12: 42226308991 | H12: 0.003 | I12: 1019 | J12: 0.0445 | K12: 5 | L12: 3692518950 | M12: 0.0874 | N12: 6723025 | O12: -40393439
C13: 0.50 to <0.75 | D13: 9929081909 | E13: 262366851 | F13: 0.4141 | G13: 10037731308 | H13: 0.0064 | I13: 507 | J13: 0.0659 | K13: 5 | L13: 1555085345 | M13: 0.1549 | N13: 4184653 | O13: -9650824
C14: 0.75 to <2.50 | D14: 61019338144 | E14: 6207663220 | F14: 0.4091 | G14: 63558950016 | H14: 0.0134 | I14: 1695 | J14: 0.0826 | K14: 5 | L14: 15787342802 | M14: 0.2484 | N14: 70648338 | O14: -142132955
C15: 0.75 to <1.75 | D15: 49970787348 | E15: 5319152081 | F15: 0.4382 | G15: 52301872743 | H15: 0.0119 | I15: 1207 | J15: 0.0789 | K15: 5 | L15: 12028779242 | M15: 0.23 | N15: 47927859 | O15: -110514297
C16: 1.75 to <2.5 | D16: 11048550796 | E16: 888511139 | F16: 0.2347 | G16: 11257077274 | H16: 0.0203 | I16: 488 | J16: 0.1 | K16: 5 | L16: 3758563559 | M16: 0.3339 | N16: 22720480 | O16: -31618658
C17: 2.50 to <10.00 | D17: 16336989613 | E17: 206888536 | F17: 0.4463 | G17: 16429324011 | H17: 0.0411 | I17: 700 | J17: 0.0973 | K17: 5 | L17: 6031248972 | M17: 0.3671 | N17: 66753018 | O17: -33541422
C18: 2.5 to <5 | D18: 12918238537 | E18: 188908590 | F18: 0.4697 | G18: 13006976945 | H18: 0.0339 | I18: 543 | J18: 0.0955 | K18: 5 | L18: 4529533752 | M18: 0.3482 | N18: 42391738 | O18: -23035038
C19: 5 to <10 | D19: 3418751076 | E19: 17979946 | F19: 0.2 | G19: 3422347065 | H19: 0.0682 | I19: 157 | J19: 0.1042 | K19: 5 | L19: 1501715220 | M19: 0.4388 | N19: 24361279 | O19: -10506384
C20: 10.00 to <100.00 | D20: 1916236686 | E20: - | F20: 0 | G20: 1916236686 | H20: 0.2865 | I20: 124 | J20: 0.1052 | K20: 5 | L20: 940104580 | M20: 0.4906 | N20: 58180142 | O20: -12600353
C21: 10 to <20 | D21: 1289678683 | E21: - | F21: 0 | G21: 1289678683 | H21: 0.1363 | I21: 82 | J21: 0.1046 | K21: 5 | L21: 678011952 | M21: 0.5257 | N21: 18498824 | O21: -7527066
C22: 20 to <30 | D22: 119780562 | E22: - | F22: 0 | G22: 119780562 | H22: 0.2533 | I22: 19 | J22: 0.1087 | K22: 5 | L22: 74153327 | M22: 0.6191 | N22: 3272176 | O22: -2658063
C23: 30.00 to <100.00 | D23: 506777440 | E23: - | F23: 0 | G23: 506777440 | H23: 0.6764 | I23: 23 | J23: 0.1057 | K23: 5 | L23: 187939301 | M23: 0.3709 | N23: 36409143 | O23: -2415224
C24: 100.00 (Default) | D24: 1166640259 | E24: - | F24: 0 | G24: 1166640259 | H24: 1 | I24: 46 | J24: 0.119 | K24: 5 | L24: 1190516878 | M24: 1.0205 | N24: 47554911 | O24: -47554303
B25: Subtotal (exposure class) | D25: 139306403679 | E25: 11339536500 | F25: 0.4015 | G25: 144296303154 | H25: 0.0239 | I25: 4170 | J25: 0.0798 | K25: 5 | L25: 31766434141 | M25: 0.2201 | N25: 257120764 | O25: -297976470
B29: Corporate SME
C30: 0.00 to <0.15 | D30: 509153833 | E30: 69587000 | F30: 0.2 | G30: 523071233 | H30: 0.0008 | I30: 7 | J30: 0.2509 | K30: 5 | L30: 102622101 | M30: 0.1962 | N30: 98415 | O30: -1145567
C31: 0.00 to <0.10 | D31: 509153833 | E31: 69587000 | F31: 0.2 | G31: 523071233 | H31: 0.0008 | I31: 7 | J31: 0.2509 | K31: 5 | L31: 102622101 | M31: 0.1962 | N31: 98415 | O31: -1145567
C32: 0.10 to <0.15 | D32: - | E32: - | F32: 0 | G32: - | H32: 0 | I32: - | J32: 0 | K32: - | L32: - | M32: 0 | N32: - | O32: -
C33: 0.15 to <0.25 | D33: 81228345 | E33: - | F33: 0 | G33: 81228345 | H33: 0.0018 | I33: 3 | J33: 0.3757 | K33: 5 | L33: 33348657 | M33: 0.4106 | N33: 54673 | O33: -33665
C34: 0.25 to <0.50 | D34: 344356445 | E34: 21861000 | F34: 0.2 | G34: 348728645 | H34: 0.0036 | I34: 17 | J34: 0.1484 | K34: 5 | L34: 71409100 | M34: 0.2048 | N34: 189370 | O34: -654865
C35: 0.50 to <0.75 | D35: 951724708 | E35: - | F35: 0 | G35: 951724708 | H35: 0.0069 | I35: 13 | J35: 0.1069 | K35: 5 | L35: 212235452 | M35: 0.223 | N35: 700334 | O35: -402103
C36: 0.75 to <2.50 | D36: 6712418917 | E36: - | F36: 0 | G36: 6712418917 | H36: 0.0151 | I36: 164 | J36: 0.1207 | K36: 5 | L36: 2002810205 | M36: 0.2984 | N36: 12013085 | O36: -23530500
C37: 0.75 to <1.75 | D37: 4327765666 | E37: - | F37: 0 | G37: 4327765666 | H37: 0.0123 | I37: 123 | J37: 0.1263 | K37: 5 | L37: 1269366273 | M37: 0.2933 | N37: 6639487 | O37: -14085472
C38: 1.75 to <2.5 | D38: 2384653251 | E38: - | F38: 0 | G38: 2384653251 | H38: 0.0204 | I38: 41 | J38: 0.1106 | K38: 5 | L38: 733443932 | M38: 0.3076 | N38: 5373597 | O38: -9445028
C39: 2.50 to <10.00 | D39: 3474015660 | E39: 16363268 | F39: 0.2 | G39: 3477288314 | H39: 0.0431 | I39: 69 | J39: 0.122 | K39: 5 | L39: 1367727385 | M39: 0.3933 | N39: 18392500 | O39: -14074498
C40: 2.5 to <5 | D40: 2792117601 | E40: 9827320 | F40: 0.2 | G40: 2794083065 | H40: 0.0366 | I40: 45 | J40: 0.1229 | K40: 5 | L40: 1084021908 | M40: 0.388 | N40: 12642279 | O40: -11073796
C41: 5 to <10 | D41: 681898059 | E41: 6535948 | F41: 0.2 | G41: 683205249 | H41: 0.0697 | I41: 24 | J41: 0.1183 | K41: 5 | L41: 283705478 | M41: 0.4153 | N41: 5750221 | O41: -3000702
C42: 10.00 to <100.00 | D42: 853980743 | E42: - | F42: 0 | G42: 853980743 | H42: 0.2868 | I42: 19 | J42: 0.1429 | K42: 5 | L42: 575455796 | M42: 0.6739 | N42: 35401493 | O42: -15963891
C43: 10 to <20 | D43: 383266150 | E43: - | F43: 0 | G43: 383266150 | H43: 0.1395 | I43: 7 | J43: 0.1029 | K43: 5 | L43: 187841071 | M43: 0.4901 | N43: 5474781 | O43: -1813724
C44: 20 to <30 | D44: 320218052 | E44: - | F44: 0 | G44: 320218052 | H44: 0.2892 | I44: 6 | J44: 0.204 | K44: 5 | L44: 333778969 | M44: 1.0423 | N44: 18522283 | O44: -6183994
C45: 30.00 to <100.00 | D45: 150496541 | E45: - | F45: 0 | G45: 150496541 | H45: 0.6569 | I45: 6 | J45: 0.1149 | K45: 5 | L45: 53835756 | M45: 0.3577 | N45: 11404429 | O45: -7966173
C46: 100.00 (Default) | D46: 471808497 | E46: - | F46: 0 | G46: 471808497 | H46: 1 | I46: 8 | J46: 0.3731 | K46: 5 | L46: 683735610 | M46: 1.4492 | N46: 124886400 | O46: -122623676
B47: Subtotal (exposure class) | D47: 13398687148 | E47: 107811268 | F47: 0.0648 | G47: 13420249402 | H47: 0.0728 | I47: 300 | J47: 0.1377 | K47: 5 | L47: 5049344307 | M47: 0.3762 | N47: 191736269 | O47: -178428765
B49: Retail Mort
C50: 0.00 to <0.15 | D50: 9617497 | E50: - | F50: 0 | G50: 9617497 | H50: 0.0003 | I50: 15 | J50: 0 | K50: - | L50: - | M50: 0 | N50: - | O50: -4401
C51: 0.00 to <0.10 | D51: 9617497 | E51: - | F51: 0 | G51: 9617497 | H51: 0.0003 | I51: 15 | J51: 0 | K51: - | L51: - | M51: 0 | N51: - | O51: -4401
C52: 0.10 to <0.15 | D52: - | E52: - | F52: 0 | G52: - | H52: 0 | I52: - | J52: 0 | K52: - | L52: - | N52: - | O52: -
C53: 0.15 to <0.25 | D53: 34793242 | E53: - | F53: 0 | G53: 34793242 | H53: 0.0025 | I53: 31 | J53: 0.0666 | K53: - | L53: 1153207 | M53: 0.0331 | N53: 5729 | O53: -2054
C54: 0.25 to <0.50 | D54: 2218663072 | E54: 14715176 | F54: 0.2 | G54: 2221606107 | H54: 0.0044 | I54: 4075 | J54: 0.074 | K54: - | L54: 124417355 | M54: 0.056 | N54: 726693 | O54: -839678
C55: 0.50 to <0.75 | D55: 38822094201 | E55: 122572571 | F55: 0.2 | G55: 38846608716 | H55: 0.0064 | I55: 52830 | J55: 0.0941 | K55: - | L55: 3590507579 | M55: 0.0924 | N55: 23445230 | O55: -50217627
C56: 0.75 to <2.50 | D56: 91369687028 | E56: 1033534888 | F56: 0.2 | G56: 91576394006 | H56: 0.0129 | I56: 86234 | J56: 0.1057 | K56: - | L56: 15171076884 | M56: 0.1657 | N56: 127510325 | O56: -110163879
C57: 0.75 to <1.75 | D57: 77559941577 | E57: 218240358 | F57: 0.2 | G57: 77603589648 | H57: 0.0115 | I57: 75093 | J57: 0.1001 | K57: - | L57: 11169413461 | M57: 0.1439 | N57: 88507492 | O57: -86835490
C58: 1.75 to <2.5 | D58: 13809745451 | E58: 815294530 | F58: 0.2 | G58: 13972804357 | H58: 0.0209 | I58: 11141 | J58: 0.1367 | K58: - | L58: 4001663422 | M58: 0.2864 | N58: 39002833 | O58: -23328390
C59: 2.50 to <10.00 | D59: 13937210301 | E59: 54788523 | F59: 0.2 | G59: 13948168005 | H59: 0.0478 | I59: 11761 | J59: 0.1131 | K59: - | L59: 5185337196 | M59: 0.3718 | N59: 74675408 | O59: -87497933
C60: 2.5 to <5 | D60: 8854935802 | E60: 40257425 | F60: 0.2 | G60: 8862987287 | H60: 0.0344 | I60: 7402 | J60: 0.1119 | K60: - | L60: 2792819102 | M60: 0.3151 | N60: 33735648 | O60: -32035999
C61: 5 to <10 | D61: 5082274499 | E61: 14531098 | F61: 0.2 | G61: 5085180718 | H61: 0.0711 | I61: 4359 | J61: 0.1153 | K61: - | L61: 2392518093 | M61: 0.4705 | N61: 40939759 | O61: -55461933
C62: 10.00 to <100.00 | D62: 2886006531 | E62: 3956605 | F62: 0.2 | G62: 2886797852 | H62: 0.2411 | I62: 2658 | J62: 0.1244 | K62: - | L62: 2004359354 | M62: 0.6943 | N62: 86337677 | O62: -85802160
C63: 10 to <20 | D63: 1438719908 | E63: 3012054 | F63: 0.2 | G63: 1439322318 | H63: 0.1312 | I63: 1173 | J63: 0.1259 | K63: - | L63: 963442591 | M63: 0.6694 | N63: 24025787 | O63: -44975300
C64: 20 to <30 | D64: 599777831 | E64: - | F64: 0 | G64: 599777831 | H64: 0.2342 | I64: 694 | J64: 0.1202 | K64: - | L64: 439604307 | M64: 0.7329 | N64: 16902691 | O64: -21534630
C65: 30.00 to <100.00 | D65: 847508793 | E65: 944551 | F65: 0.2 | G65: 847697703 | H65: 0.4324 | I65: 791 | J65: 0.1248 | K65: - | L65: 601312457 | M65: 0.7093 | N65: 45409198 | O65: -19292230
C66: 100.00 (Default) | D66: 1421823492 | E66: 17693451 | F66: 0.2 | G66: 1425362182 | H66: 1 | I66: 1706 | J66: 0.1441 | K66: - | L66: 1617143728 | M66: 1.1345 | N66: 91470192 | O66: -90911524
B67: Subtotal (exposure class) | D67: 150699895364 | E67: 1247261213 | F67: 0.1999 | G67: 150949347607 | H67: 0.028 | I67: 159310 | J67: 0.1037 | K67: - | L67: 27693995303 | M67: 0.1835 | N67: 404171254 | O67: -425439257
B69: Retail Mort SME
C70: 0.00 to <0.15 | D70: 139765014 | E70: 6142554 | F70: 0.2 | G70: 140993525 | H70: 0.0008 | I70: 25 | J70: 0.1178 | K70: - | L70: 2680021 | M70: 0.019 | N70: 13328 | O70: -441997
C71: 0.00 to <0.10 | D71: 126475779 | E71: 6142554 | F71: 0.2 | G71: 127704289 | H71: 0.0008 | I71: 19 | J71: 0.119 | K71: - | L71: 2360341 | M71: 0.0185 | N71: 11569 | O71: -410881
C72: 0.10 to <0.15 | D72: 13289236 | E72: - | F72: 0 | G72: 13289236 | H72: 0.0013 | I72: 6 | J72: 0.1057 | K72: - | L72: 319680 | M72: 0.0241 | N72: 1759 | O72: -31116
C73: 0.15 to <0.25 | D73: 1635886429 | E73: - | F73: 0 | G73: 1635886429 | H73: 0.0019 | I73: 134 | J73: 0.1046 | K73: - | L73: 52727896 | M73: 0.0322 | N73: 320244 | O73: -6439057
C74: 0.25 to <0.50 | D74: 1837110939 | E74: 23600231 | F74: 0.2 | G74: 1841830985 | H74: 0.0037 | I74: 272 | J74: 0.0943 | K74: - | L74: 93488260 | M74: 0.0508 | N74: 682002 | O74: -4643280
C75: 0.50 to <0.75 | D75: 3035960030 | E75: 24255533 | F75: 0.2 | G75: 3040811136 | H75: 0.0058 | I75: 450 | J75: 0.1001 | K75: - | L75: 209217721 | M75: 0.0688 | N75: 1725934 | O75: -11063969
C76: 0.75 to <2.50 | D76: 17600868718 | E76: 1934398435 | F76: 0.2677 | G76: 18118780234 | H76: 0.0144 | I76: 1106 | J76: 0.1081 | K76: - | L76: 2505920335 | M76: 0.1383 | N76: 28159572 | O76: -64899667
C77: 0.75 to <1.75 | D77: 12117146163 | E77: 59397633 | F77: 0.2356 | G77: 12131142077 | H77: 0.0113 | I77: 829 | J77: 0.1078 | K77: - | L77: 1436252669 | M77: 0.1184 | N77: 14809772 | O77: -45677915
C78: 1.75 to <2.5 | D78: 5483722555 | E78: 1875000802 | F78: 0.2688 | G78: 5987638157 | H78: 0.0205 | I78: 277 | J78: 0.1086 | K78: - | L78: 1069667665 | M78: 0.1786 | N78: 13349800 | O78: -19221752
C79: 2.50 to <10.00 | D79: 4212424034 | E79: 5329398 | F79: 0.2 | G79: 4213489914 | H79: 0.0453 | I79: 392 | J79: 0.1106 | K79: - | L79: 1181600377 | M79: 0.2804 | N79: 21521364 | O79: -25502268
C80: 2.5 to <5 | D80: 3141812694 | E80: 2223918 | F80: 0.2 | G80: 3142257478 | H80: 0.0355 | I80: 253 | J80: 0.1081 | K80: - | L80: 757088206 | M80: 0.2409 | N80: 12054957 | O80: -13143714
C81: 5 to <10 | D81: 1070611340 | E81: 3105480 | F81: 0.2 | G81: 1071232436 | H81: 0.0741 | I81: 139 | J81: 0.1182 | K81: - | L81: 424512171 | M81: 0.3963 | N81: 9466408 | O81: -12358554
C82: 10.00 to <100.00 | D82: 797630014 | E82: 3159815 | F82: 0.2 | G82: 798261977 | H82: 0.3545 | I82: 94 | J82: 0.1091 | K82: - | L82: 330892385 | M82: 0.4145 | N82: 30353522 | O82: -13253044
C83: 10 to <20 | D83: 437628178 | E83: 3159815 | F83: 0.2 | G83: 438260141 | H83: 0.1506 | I83: 56 | J83: 0.1114 | K83: - | L83: 207551982 | M83: 0.4736 | N83: 7404294 | O83: -5989495
C84: 20 to <30 | D84: 60986290 | E84: - | F84: 0 | G84: 60986290 | H84: 0.2599 | I84: 15 | J84: 0.1105 | K84: - | L84: 33031864 | M84: 0.5416 | N84: 1741092 | O84: -886703
C85: 30.00 to <100.00 | D85: 299015546 | E85: - | F85: 0 | G85: 299015546 | H85: 0.6727 | I85: 23 | J85: 0.1054 | K85: - | L85: 90308538 | M85: 0.302 | N85: 21208136 | O85: -6376846
C86: 100.00 (Default) | D86: 295362052 | E86: - | F86: 0 | G86: 295362052 | H86: 1 | I86: 33 | J86: 0.1274 | K86: - | L86: 324575790 | M86: 1.0989 | N86: 12991405 | O86: -12978826
B87: Subtotal (exposure class) | D87: 29555007230 | E87: 1996885966 | F87: 0.228 | G87: 30085416252 | H87: 0.0351 | I87: 2506 | J87: 0.1068 | K87: - | L87: 4701102784 | M87: 0.1563 | N87: 95767371 | O87: -139222107
B90: Total (all exposures classes) | D90: 332959993421 | E90: 14691494947 | F90: 0.2829 | G90: 338751316415 | H90: 0.0287 | I90: 166286 | J90: 0.0951 | K90: 2 | L90: 69210876535 | M90: 0.2043 | N90: 948795658 | O90: -1041066599

Sheet EU CR7 JR
B2: EU CR7 - IRB approach – Effect on the RWEAs of credit derivatives used as CRM techniques
B5: Reported in DKKm | D5: Pre-credit derivatives risk weighted exposure amount | E5: Actual risk weighted exposure amount
D6: a | E6: b
B7: 1 | C7: Exposures under F-IRB
B8: 2 | C8: Central governments and central banks
B9: 3 | C9: Institutions
B10: 4 | C10: Corporates
B11: 4.1 | C11: of which Corporates - SMEs
B12: 4.2 | C12: of which Corporates - Specialised lending
B13: 5 | C13: Exposures under A-IRB | D13: 69210876535 | E13: 69210876535
B14: 6 | C14: Central governments and central banks | D14: - | E14: -
B15: 7 | C15: Institutions | D15: - | E15: -
B16: 8 | C16: Corporates | D16: 36815778448 | E16: 36815778448
B17: 8.1 | C17: of which Corporates - SMEs | D17: 5049344307 | E17: 5049344307
B18: 8.2 | C18: of which Corporates - Specialised lending | D18: - | E18: -
B19: 9 | C19: Retail | D19: 32395098087 | E19: 32395098087
B20: 9.1 | C20: of which Retail – SMEs - Secured by immovable property collateral | D20: 4701102784 | E20: 4701102784
B21: 9.2 | C21: of which Retail – non-SMEs - Secured by immovable property collateral | D21: 27693995303 | E21: 27693995303
B22: 9.3 | C22: of which Retail – Qualifying revolving | D22: - | E22: -
B23: 9.4 | C23: of which Retail – SMEs - Other | D23: - | E23: -
B24: 9.5 | C24: of which Retail – Non-SMEs- Other | D24: - | E24: -
B25: 10 | C25: TOTAL (including F-IRB exposures and A-IRB exposures) | D25: 69210876535 | E25: 69210876535

Sheet EU CR7-A JR
B2: EU CR7-A - IRB approach – Disclosure of the extent of the use of CRM techniques
B5: Reported in DKKm
B6: A-IRB | D6: Total exposures | E6: Credit risk Mitigation techniques | P6: Credit risk Mitigation methods in the calculation of RWEAs
E7: Funded credit Protection (FCP) | N7: Unfunded credit Protection (UFCP) | P7: RWEA without substitution effects (reduction effects only) | Q7: RWEA with substitution effects (both reduction and sustitution effects)
E8: Part of exposures covered by Financial Collaterals (%) | F8: Part of exposures covered by Other eligible collaterals (%) | J8: Part of exposures covered by Other funded credit protection (%) | N8: Part of exposures covered by Guarantees (%) | O8: Part of exposures covered by Credit Derivatives (%)
G9: Part of exposures covered by Immovable property Collaterals (%) | H9: Part of exposures covered by Receivables (%) | I9: Part of exposures covered by Other physical collateral (%) | K9: Part of exposures covered by Cash on deposit (%) | L9: Part of exposures covered by Life insurance policies (%) | M9: Part of exposures covered by Instruments held by a third party (%)
D10: a | E10: b | F10: c | G10: d | H10: e | I10: f | J10: g | K10: h | L10: i | M10: j | N10: k | O10: l | P10: m | Q10: n
B11: 1 | C11: Central governments and central banks
B12: 2 | C12: Institutions
B13: 3 | C13: Corporates | D13: 157716552556 | E13: 0 | F13: 0.92 | G13: 0.92 | H13: 0 | I13: 0 | J13: 0 | K13: 0 | L13: 0 | M13: 0 | N13: 0 | O13: 0 | P13: 36815778448 | Q13: 36815778448
B14: 3.1 | C14: Of which Corporates – SMEs | D14: 13420249402 | E14: 0 | F14: 0.97 | G14: 0.97 | H14: 0 | I14: 0 | J14: 0 | K14: 0 | L14: 0 | M14: 0 | N14: 0 | O14: 0 | P14: 5049344307 | Q14: 5049344307
B15: 3.2 | C15: Of which Corporates – Specialised lending
B16: 3.3 | C16: Of which Corporates – Other | D16: 144296303154 | E16: 0 | F16: 0.91 | G16: 0.91 | H16: 0 | I16: 0 | J16: 0 | K16: 0 | L16: 0 | M16: 0 | N16: 0 | O16: 0 | P16: 31766434141 | Q16: 31766434141
B17: 4 | C17: Retail | D17: 331984111466 | E17: 0 | F17: 0.37 | G17: 0.37 | H17: 0 | I17: 0 | J17: 0 | K17: 0 | L17: 0 | M17: 0 | N17: 0 | O17: 0 | P17: 32395098087 | Q17: 32395098087
B18: 4.1 | C18: Of which Retail – Immovable property SMEs | D18: 181034763859 | E18: 0 | F18: 0.16 | G18: 0.16 | H18: 0 | I18: 0 | J18: 0 | K18: 0 | L18: 0 | M18: 0 | N18: 0 | O18: 0 | P18: 4701102784 | Q18: 4701102784
B19: 4.2 | C19: Of which Retail – Immovable property non-SMEs | D19: 150949347607 | E19: 0 | F19: 0.62 | G19: 0.62 | H19: 0 | I19: 0 | J19: 0 | K19: 0 | L19: 0 | M19: 0 | N19: 0 | O19: 0 | P19: 27693995303 | Q19: 27693995303
B20: 4.3 | C20: Of which Retail – Qualifying revolving
B21: 4.4 | C21: Of which Retail – Other SMEs
B22: 4.5 | C22: Of which Retail – Other non-SMEs
B23: 5 | C23: Total | D23: 338751316415 | E23: 0 | F23: 0.79 | G23: 0.79 | H23: 0 | I23: 0 | J23: 0 | K23: 0 | L23: 0 | M23: 0 | N23: 0 | O23: 0 | P23: 69210876535 | Q23: 69210876535

Sheet EU CR8 JR
B2: EU CR8 - RWEA flow statements of credit risk exposures under the IRB approach
B4: Reported in DKKm | D4: Risk weighted exposure amount
D5: a
B6: 1 | C6: Risk weighted exposure amount as at the end of the previous reporting period | D6: 67375.19087
B7: 2 | C7: Asset size (+/-) | D7: 1116.129172
B8: 3 | C8: Asset quality (+/-) | D8: 719.5568176
B9: 4 | C9: Model updates (+/-) | D9: 0
B10: 5 | C10: Methodology and policy (+/-) | D10: 0
B11: 6 | C11: Acquisitions and disposals (+/-) | D11: 0
B12: 7 | C12: Foreign exchange movements (+/-) | D12: -0.0003247054541
B13: 8 | C13: Other (+/-) | D13: 0
B14: 9 | C14: Risk weighted exposure amount as at the end of the reporting period | D14: 69210.87654

Sheet EU LR1 JR
B2: EU LR1 - LRSum: Summary reconciliation of accounting assets and leverage ratio exposures
B4: Reported in DKKm | D4: a
B5: At 30 June 2024 | D5: Applicable amount
B6: 1 | C6: Total assets as per published financial statements | D6: 382248.6143
B7: 2 | C7: Adjustment for entities which are consolidated for accounting purposes but are outside the scope of prudential consolidation
B8: 3 | C8: (Adjustment for securitised exposures that meet the operational requirements for the recognition of risk transference)
B9: 4 | C9: (Adjustment for temporary exemption of exposures to central banks (if applicable))
B10: 5 | C10: (Adjustment for fiduciary assets recognised on the balance sheet pursuant to the applicable accounting framework but excluded from the total exposure measure in accordance with point (i) of Article 429a(1) CRR)
B11: 6 | C11: Adjustment for regular-way purchases and sales of financial assets subject to trade date accounting
B12: 7 | C12: Adjustment for eligible cash pooling transactions
B13: 8 | C13: Adjustments for derivative financial instruments | D13: 212.7091586
B14: 9 | C14: Adjustment for securities financing transactions (SFTs) | D14: 0
B15: 10 | C15: Adjustment for off-balance sheet items (ie conversion to credit equivalent amounts of off-balance sheet exposures) | D15: 5812.915198
B16: 11 | C16: (Adjustment for prudent valuation adjustments and specific and general provisions which have reduced Tier 1 capital)
B17: EU-11a | C17: (Adjustment for exposures excluded from the total exposure measure in accordance with point (c ) of Article 429a(1) CRR)
B18: EU-11b | C18: (Adjustment for exposures excluded from the total exposure measure in accordance with point (j) of Article 429a(1) CRR)
B19: 12 | C19: Other adjustments | D19: -95.89340946
B20: 13 | C20: Total exposure measure | D20: 388324.3452

Sheet EU LR2 JR
B2: EU LR2 - Leverage ratio common disclosure
B4: Reported in DKKm | D4: CRR leverage ratio exposures
B5: At 30 June 2024 (DKK million) | D5: 2024-06-30 | E5: 2023-12-31
B6: On-balance sheet exposures (excluding derivatives and SFTs)
B7: 1 | C7: On-balance sheet items (excluding derivatives, SFTs, but including collateral) | D7: 380562.0265 | E7: 358550.9207
B8: 2 | C8: Gross-up for derivatives collateral provided where deducted from the balance sheet assets pursuant to the applicable accounting framework
B9: 3 | C9: (Deductions of receivables assets for cash variation margin provided in derivatives transactions) | D9: 0 | E9: 0
B10: 4 | C10: (Adjustment for securities received under securities financing transactions that are recognised as an asset)
B11: 5 | C11: (General credit risk adjustments to on-balance sheet items)
B12: 6 | C12: (Asset amounts deducted in determining Tier 1 capital) | D12: -95.5171191 | E12: -62.15925667
B13: 7 | C13: Total on-balance sheet exposures (excluding derivatives and SFTs) | D13: 380466.5093 | E13: 358488.7615
B14: Derivative exposures
B15: 8 | C15: Replacement cost associated with SA-CCR derivatives transactions (ie net of eligible cash variation margin) | D15: 7.39061811 | E15: 9.573597684
B16: EU-8a | C16: Derogation for derivatives: replacement costs contribution under the simplified standardised approach
B17: 9 | C17: Add-on amounts for potential future exposure associated with SA-CCR derivatives transactions | D17: 759.5947456 | E17: 706.4242157
B18: EU-9a | C18: Derogation for derivatives: Potential future exposure contribution under the simplified standardised approach
B19: EU-9b | C19: Exposure determined under Original Exposure Method
B20: 10 | C20: (Exempted CCP leg of client-cleared trade exposures) (SA-CCR)
B21: EU-10a | C21: (Exempted CCP leg of client-cleared trade exposures) (simplified standardised approach)
B22: EU-10b | C22: (Exempted CCP leg of client-cleared trade exposures) (original Exposure Method)
B23: 11 | C23: Adjusted effective notional amount of written credit derivatives | D23: 0 | E23: 0
B24: 12 | C24: (Adjusted effective notional offsets and add-on deductions for written credit derivatives)
B25: 13 | C25: Total derivatives exposures | D25: 766.9853637 | E25: 715.9978134
B26: Securities financing transaction (SFT) exposures
B27: 14 | C27: Gross SFT assets (with no recognition of netting), after adjustment for sales accounting transactions | D27: 1277.935325 | E27: 0
B28: 15 | C28: (Netted amounts of cash payables and cash receivables of gross SFT assets)
B29: 16 | C29: Counterparty credit risk exposure for SFT assets | D29: 0 | E29: 0
B30: EU-16a | C30: Derogation for SFTs: Counterparty credit risk exposure in accordance with Articles 429e(5) and 222 CRR
B31: 17 | C31: Agent transaction exposures
B32: EU-17a | C32: (Exempted CCP leg of client-cleared SFT exposure)
B33: 18 | C33: Total securities financing transaction exposures | D33: 1277.935325 | E33: 0
B34: Other off-balance sheet exposures
B35: 19 | C35: Off-balance sheet exposures at gross notional amount | D35: 14766.26141 | E35: 13713.6951
B36: 20 | C36: (Adjustments for conversion to credit equivalent amounts) | D36: -8953.346214 | E36: -8256.520066
B37: 21 | C37: (General provisions deducted in determining Tier 1 capital and specific provisions associated with off-balance sheet exposures)
B38: 22 | C38: Off-balance sheet exposures | D38: 5812.915198 | E38: 5457.175037
B39: Excluded exposures
B40: EU-22a | C40: (Exposures excluded from the total exposure measure in accordance with point (c ) of Article 429a(1) CRR)
B41: EU-22b | C41: (Exposures exempted in accordance with point (j) of Article 429a (1) CRR (on and off balance sheet))
B42: EU-22c | C42: (Excluded exposures of public development banks (or units) - Public sector investments)
B43: EU-22d | C43: (Excluded exposures of public development banks (or units) - Promotional loans): - Promotional loans granted by a public development credit institution - Promotional loans granted by an entity directly set up by the central government, regional governments or local authorities of a Member State - Promotional loans granted by an entity set up by the central government, regional governments or local authorities of a Member State through an intermediate credit institution)
B44: EU-22e | C44: ( Excluded passing-through promotional loan exposures by non-public development banks (or units)): - Promotional loans granted by a public development credit institution - Promotional loans granted by an entity directly set up by the central government, regional governments or local authorities of a Member State - Promotional loans granted by an entity set up by the central government, regional governments or local authorities of a Member State through an intermediate credit institution)
B45: EU-22f | C45: (Excluded guaranteed parts of exposures arising from export credits )
B46: EU-22g | C46: (Excluded excess collateral deposited at triparty agents )
B47: EU-22h | C47: (Excluded CSD related services of CSD/institutions in accordance with point (o) of Article 429a(1) CRR)
B48: EU-22i | C48: (Excluded CSD related services of designated institutions in accordance with point (p) of Article 429a(1) CRR)
B49: EU-22j | C49: (Reduction of the exposure value of pre-financing or intermediate loans )
B50: EU-22k | C50: (Total exempted exposures)
B51: Capital and total exposure measure
B52: 23 | C52: Tier 1 capital | D52: 25298.35468 | E52: 22096.3733
B53: 24 | C53: Total exposure measure | D53: 388324.3452 | E53: 364661.9343
B54: Leverage ratio
B55: 25 | C55: Leverage ratio | D55: 0.06514748559 | E55: 0.06059413178
B56: EU-25 | C56: Leverage ratio excluding the impact of the exemption of public sector investments and promotional loans) (%) | D56: 0.06514748559 | E56: 0.06059413178
B57: 25a | C57: Leverage ratio (excluding the impact of any applicable temporary exemption of central bank reserves) | D57: 0.06514748559 | E57: 0.06059413178
B58: 26 | C58: Regulatory minimum leverage ratio requirement (%) | D58: 0 | E58: 0
B59: EU-26a | C59: Additional own funds requirements to address the risk of excessive leverage (%) | D59: 0 | E59: 0
B60: EU-26b | C60: of which: to be made up of CET1 capital (percentage points) | D60: 0 | E60: 0
B61: 27 | C61: Leverage ratio buffer requirement (%) | D61: 0 | E61: 0
B62: EU-27a | C62: Overall leverage ratio requirement (%) | D62: 0 | E62: 0
B63: Choice on transitional arrangements and relevant exposures
B64: EU-27b | C64: Choice on transitional arrangements for the definition of the capital measure | D64: Transitional | E64: Transitional
B65: Disclosure of mean values
B66: 28 | C66: Mean value of gross SFT assets, after adjustment for sale accounting transactions and netted of amounts of associated cash payables and cash receivables | D66: 843.4669344 | E66: 13687.00578
B67: 29 | C67: Quarter-end value of gross SFT assets, after adjustment for sale accounting transactions and netted of amounts of associated cash payables and cash receivables | D67: 1277.935325 | E67: 0
B68: 30 | C68: Total exposure measure (including the impact of any applicable temporary exemption of central bank reserves) incorporating mean values from row 28 of gross SFT assets (after adjustment for sale accounting transactions and netted of amounts of associated cash payables and cash receivables) | D68: 387889.8768 | E68: 378348.9401
B69: 30a | C69: Total exposure measure (excluding the impact of any applicable temporary exemption of central bank reserves) incorporating mean values from row 28 of gross SFT assets (after adjustment for sale accounting transactions and netted of amounts of associated cash payables and cash receivables) | D69: 387889.8768 | E69: 378348.9401
B70: 31 | C70: Leverage ratio (including the impact of any applicable temporary exemption of central bank reserves) incorporating mean values from row 28 of gross SFT assets (after adjustment for sale accounting transactions and netted of amounts of associated cash payables and cash receivables) | D70: 0.0652204561 | E70: 0.05840210176
B71: 31a | C71: Leverage ratio (excluding the impact of any applicable temporary exemption of central bank reserves) incorporating mean values from row 28 of gross SFT assets (after adjustment for sale accounting transactions and netted of amounts of associated cash payables and cash receivables) | D71: 0.0652204561 | E71: 0.05840210176

Sheet EU LR3 JR
B2: EU LR3 - LRSpl: Split-up of on balance sheet exposures (excluding derivatives, SFTs and exempted exposures)
B4: Reported in DKKm | D4: a
B5: At 30 June 2024 (DKK million) | D5: CRR leverage ratio exposures
B6: EU-1 | C6: Total on-balance sheet exposures (excluding derivatives, SFTs, and exempted exposures), of which: | D6: 380562.0265
B7: EU-2 | C7: Trading book exposures | D7: 0
B8: EU-3 | C8: Banking book exposures, of which: | D8: 380562.0265
B9: EU-4 | C9: Covered bonds | D9: 19791.71216
B10: EU-5 | C10: Exposures treated as sovereigns | D10: 6237.477357
B11: EU-6 | C11: Exposures to regional governments, MDB, international organisations and PSE not treated as sovereigns | D11: 0
B12: EU-7 | C12: Institutions | D12: 831.7804974
B13: EU-8 | C13: Secured by mortgages of immovable properties | D13: 264257.9344
B14: EU-9 | C14: Retail exposures | D14: 56772.26845
B15: EU-10 | C15: Corporates | D15: 7813.057511
B16: EU-11 | C16: Exposures in default | D16: 3081.56597
B17: EU-12 | C17: Other exposures (eg equity, securitisations, and other non-credit obligation assets) | D17: 21776.23012

Sheet EU CCR3 JR
B2: EU CCR3 - Standardised approach – CCR exposures by regulatory exposure class and risk weights
B4: Reported in DKKm
C5: Exposure classes | D5: Risk weight
D6: a | E6: b | F6: c | G6: d | H6: e | I6: f | J6: g | K6: h | L6: i | M6: j | N6: k | O6: l
D7: 0 | E7: 0.02 | F7: 0.04 | G7: 0.1 | H7: 0.2 | I7: 0.5 | J7: 0.7 | K7: 0.75 | L7: 1 | M7: 1.5 | N7: Others | O7: Total exposure value
B8: 1 | C8: Central governments or central banks
B9: 2 | C9: Regional government or local authorities
B10: 3 | C10: Public sector entities
B11: 4 | C11: Multilateral development banks
B12: 5 | C12: International organisations
B13: 6 | C13: Institutions | E13: 76253359 | H13: 87737147 | I13: 246977668 | O13: 410968173
B14: 7 | C14: Corporates
B15: 8 | C15: Retail
B16: 9 | C16: Institutions and corporates with a short-term credit assessment
B17: 10 | C17: Other items
B18: 11 | C18: Total exposure value | E18: 76253359 | H18: 87737147 | I18: 246977668 | O18: 410968173

Sheet EU LIQ1 JR
B2: EU LIQ1 - Quantitative information of LCR
B4: Reported in DKKm | D4: a | E4: b | F4: c | G4: d | H4: e | I4: f | J4: g | K4: h
D5: Total unweighted value (average) | H5: Total weighted value (average)
B6: EU 1a | C6: Quarter ending on (DD Month YYY) | D6: T | E6: T-1 | F6: T-2 | G6: T-3 | H6: T | I6: T-1 | J6: T-2 | K6: T-3
B7: EU 1b | C7: Number of data points used in the calculation of averages | D7: 12 | E7: 12 | F7: 12 | G7: 12 | H7: 12 | I7: 12 | J7: 12 | K7: 12
B8: HIGH-QUALITY LIQUID ASSETS
B9: 1 | C9: Total high-quality liquid assets (HQLA), after application of haircuts in line with Article 9 of regulation (EU) 2015/61 | H9: 15848.90661 | I9: 16397.88909 | J9: 16986.27122 | K9: 16098.72113
B10: CASH - OUTFLOWS
B11: 2 | C11: retail deposits and deposits from small business customers, of which: | D11: 0 | E11: 0 | F11: 0 | G11: 0 | H11: 0 | I11: 0 | J11: 0 | K11: 0
B12: 3 | C12: Stable deposits | D12: 0 | E12: 0 | F12: 0 | G12: 0 | H12: 0 | I12: 0 | J12: 0 | K12: 0
B13: 4 | C13: Less stable deposits | D13: 0 | E13: 0 | F13: 0 | G13: 0 | H13: 0 | I13: 0 | J13: 0 | K13: 0
B14: 5 | C14: Unsecured wholesale funding | D14: 1720.956462 | E14: 1621.234209 | F14: 1235.843663 | G14: 1135.047217 | H14: 1720.956462 | I14: 1621.234209 | J14: 1235.843663 | K14: 1135.047217
B15: 6 | C15: Operational deposits (all counterparties) and deposits in networks of cooperative banks | D15: 0 | E15: 0 | F15: 0 | G15: 0 | H15: 0 | I15: 0 | J15: 0 | K15: 0
B16: 7 | C16: Non-operational deposits (all counterparties) | D16: 0 | E16: 0 | F16: 0 | G16: 0 | H16: 0 | I16: 0 | J16: 0 | K16: 0
B17: 8 | C17: Unsecured debt | D17: 1720.956462 | E17: 1621.234209 | F17: 1235.843663 | G17: 1135.047217 | H17: 1720.956462 | I17: 1621.234209 | J17: 1235.843663 | K17: 1135.047217
B18: 9 | C18: Secured wholesale funding | H18: 0 | I18: 0 | J18: 0 | K18: 0
B19: 10 | C19: Additional requirements | D19: 520.976207 | E19: 510.6691792 | F19: 510.670607 | G19: 476.5333848 | H19: 520.976207 | I19: 510.6691792 | J19: 510.670607 | K19: 476.5333848
B20: 11 | C20: Outflows related to derivative exposures and other collateral requirements | D20: 520.976207 | E20: 510.6691792 | F20: 510.670607 | G20: 476.5333848 | H20: 520.976207 | I20: 510.6691792 | J20: 510.670607 | K20: 476.5333848
B21: 12 | C21: Outflows related to loss of funding on debt products | D21: 0 | E21: 0 | F21: 0 | G21: 0 | H21: 0 | I21: 0 | J21: 0 | K21: 0
B22: 13 | C22: Credit and liquidity facilities | D22: 0 | E22: 0 | F22: 0 | G22: 0 | H22: 0 | I22: 0 | J22: 0 | K22: 0
B23: 14 | C23: Other contractual funding obligations | D23: 1624.642338 | E23: 1542.88151 | F23: 1275.57208 | G23: 1367.572424 | H23: 1592.517338 | I23: 1511.457899 | J23: 1245.127636 | K23: 1337.211313
B24: 15 | C24: Other contingent funding obligations | D24: 7.649100417 | E24: 9.227650333 | F24: 11.59204558 | G24: 14.22110033 | H24: 0.5836114208 | I24: 0.5626376917 | J24: 0.5796022792 | K24: 0.7110550167
B25: 16 | C25: TOTAL CASH OUTFLOWS | H25: 3835.033618 | I25: 3643.923924 | J25: 2992.221509 | K25: 2949.50297
B26: CASH - INFLOWS
B27: 17 | C27: Secured lending (e.g. reverse repos) | D27: 4910.909144 | E27: 5562.427048 | F27: 6177.879443 | G27: 5786.867471 | H27: 423.7830346 | I27: 469.3892879 | J27: 522.3616464 | K27: 414.9714138
B28: 18 | C28: Inflows from fully performing exposures | D28: 2373.488657 | E28: 2256.279299 | F28: 1769.633592 | G28: 1632.630392 | H28: 1880.769748 | I28: 1786.260108 | J28: 1399.813023 | K28: 1270.410533
B29: 19 | C29: Other cash inflows | D29: 352.4948007 | E29: 287.9248694 | F29: 217.2987012 | G29: 302.6923468 | H29: 352.4948007 | I29: 287.9248694 | J29: 217.2987012 | K29: 302.6923468
B30: EU-19a | C30: (Difference between total weighted inflows and total weighted outflows arising from transactions in third countries where there are transfer restrictions or which are denominated in non-convertible currencies) | H30: 0 | I30: 0 | J30: 0 | K30: 0
H31: 0 | I31: 0 | J31: 0 | K31: 0
B32: EU-19b | C32: (Excess inflows from a related specialised credit institution) | H32: 0 | I32: 0 | J32: 0 | K32: 0
H33: 0 | I33: 0 | J33: 0 | K33: 0
B34: 20 | C34: TOTAL CASH INFLOWS | D34: 7636.892602 | E34: 8106.631216 | F34: 8164.811736 | G34: 7722.190209 | H34: 2657.047584 | I34: 2543.574266 | J34: 2139.473371 | K34: 1988.074294
B35: EU-20a | C35: Fully exempt inflows | D35: 0 | E35: 0 | F35: 0 | G35: 0 | H35: 0 | I35: 0 | J35: 0 | K35: 0
B37: EU-20b | C37: Inflows subject to 90% cap | D37: 0 | E37: 0 | F37: 0 | G37: 0 | H37: 0 | I37: 0 | J37: 0 | K37: 0
B39: EU-20c | C39: Inflows subject to 75% cap | D39: 0 | E39: 0 | F39: 0 | G39: 0 | H39: 0 | I39: 0 | J39: 0 | K39: 0
B41: TOTAL ADJUSTED VALUE
B42: 21 | C42: LIQUIDITY BUFFER | H42: 14677.02121 | I42: 15569.41043 | J42: 16157.79256 | K42: 15854.17487
B43: 22 | C43: TOTAL NET CASH OUTFLOWS | H43: 1787.036231 | I43: 1664.003894 | J43: 1416.819739 | K43: 1466.670169
B44: 23 | C44: LIQUIDITY COVERAGE RATIO | H44: 98.61904048 | I44: 99.96257381 | J44: 98.43139901 | K44: 15.43568903

Sheet EU LIQ2 JR
B2: EU LIQ2: Net Stable Funding Ratio
B4: Reported in DKKm | D4: 2024-06-30 | I4: 2024-03-31 | N4: 2023-12-31 | S4: 2023-09-30 | X4: 2023-06-30
D5: Unweighted value by residual maturity | H5: Weighted value | I5: Unweighted value by residual maturity | M5: Weighted value | N5: Unweighted value by residual maturity | R5: Weighted value | S5: Unweighted value by residual maturity | W5: Weighted value | X5: Unweighted value by residual maturity | AB5: Weighted value
D6: No maturity | E6: < 6 months | F6: 6 months to < 1yr | G6: ≥ 1yr | I6: No maturity | J6: < 6 months | K6: 6 months to < 1yr | L6: ≥ 1yr | N6: No maturity | O6: < 6 months | P6: 6 months to < 1yr | Q6: ≥ 1yr | S6: No maturity | T6: < 6 months | U6: 6 months to < 1yr | V6: ≥ 1yr | X6: No maturity | Y6: < 6 months | Z6: 6 months to < 1yr | AA6: ≥ 1yr
B7: Available stable funding (ASF) Items
B8: 1 | C8: Capital items and instruments | D8: 25393.8718 | E8: 0 | F8: 0 | G8: 0 | H8: 25393.8718 | I8: 24702.14765 | J8: 0 | K8: 0 | L8: 0 | M8: 24702.14765 | N8: 24188.52719 | O8: 0 | P8: 0 | Q8: 0 | R8: 24188.52719 | S8: 23497.97562 | T8: 0 | U8: 0 | V8: 0 | W8: 23497.97562 | X8: 23041.36626 | Y8: 0 | Z8: 0 | AA8: 0 | AB8: 23041.36626
B9: 2 | C9: Own funds | D9: 25393.8718 | E9: 0 | F9: 0 | G9: 0 | H9: 25393.8718 | I9: 24702.14765 | J9: 0 | K9: 0 | L9: 0 | M9: 24702.14765 | N9: 24188.52719 | O9: 0 | P9: 0 | Q9: 0 | R9: 24188.52719 | S9: 23497.97562 | T9: 0 | U9: 0 | V9: 0 | W9: 23497.97562 | X9: 23041.36626 | Y9: 0 | Z9: 0 | AA9: 0 | AB9: 23041.36626
B10: 3 | C10: Other capital instruments | E10: 0 | F10: 0 | G10: 0 | H10: 0 | J10: 0 | K10: 0 | L10: 0 | M10: 0 | O10: 0 | P10: 0 | Q10: 0 | R10: 0 | T10: 0 | U10: 0 | V10: 0 | W10: 0 | Y10: 0 | Z10: 0 | AA10: 0 | AB10: 0
B11: 4 | C11: Retail deposits | E11: 0 | F11: 0 | G11: 0 | H11: 0 | J11: 0 | K11: 0 | L11: 0 | M11: 0 | O11: 0 | P11: 0 | Q11: 0 | R11: 0 | T11: 0 | U11: 0 | V11: 0 | W11: 0 | Y11: 0 | Z11: 0 | AA11: 0 | AB11: 0
B12: 5 | C12: Stable deposits | E12: 0 | F12: 0 | G12: 0 | H12: 0 | J12: 0 | K12: 0 | L12: 0 | M12: 0 | O12: 0 | P12: 0 | Q12: 0 | R12: 0 | T12: 0 | U12: 0 | V12: 0 | W12: 0 | Y12: 0 | Z12: 0 | AA12: 0 | AB12: 0
B13: 6 | C13: Less stable deposits | E13: 0 | F13: 0 | G13: 0 | H13: 0 | J13: 0 | K13: 0 | L13: 0 | M13: 0 | O13: 0 | P13: 0 | Q13: 0 | R13: 0 | T13: 0 | U13: 0 | V13: 0 | W13: 0 | Y13: 0 | Z13: 0 | AA13: 0 | AB13: 0
B14: 7 | C14: Wholesale funding: | E14: 4.2 | F14: 0 | G14: 0 | H14: 0 | J14: 4.50283754 | K14: 0 | L14: 0 | M14: 0 | O14: 0 | P14: 0 | Q14: 0 | R14: 0 | T14: 16.89098656 | U14: 0 | V14: 0 | W14: 0 | Y14: 83.10790101 | Z14: 0 | AA14: 0 | AB14: 0
B15: 8 | C15: Operational deposits | E15: 0 | F15: 0 | G15: 0 | H15: 0 | J15: 0 | K15: 0 | L15: 0 | M15: 0 | O15: 0 | P15: 0 | Q15: 0 | R15: 0 | T15: 0 | U15: 0 | V15: 0 | W15: 0 | Y15: 0 | Z15: 0 | AA15: 0 | AB15: 0
B16: 9 | C16: Other wholesale funding | E16: 4.2 | F16: 0 | G16: 0 | H16: 0 | J16: 4.50283754 | K16: 0 | L16: 0 | M16: 0 | O16: 0 | P16: 0 | Q16: 0 | R16: 0 | T16: 16.89098656 | U16: 0 | V16: 0 | W16: 0 | Y16: 83.10790101 | Z16: 0 | AA16: 0 | AB16: 0
B17: 10 | C17: Interdependent liabilities | E17: 0 | F17: 0 | G17: 0 | H17: 0 | J17: 0 | K17: 0 | L17: 0 | M17: 0 | O17: 0 | P17: 0 | Q17: 0 | R17: 0 | T17: 0 | U17: 0 | V17: 0 | W17: 0 | Y17: 0 | Z17: 0 | AA17: 0 | AB17: 0
B18: 11 | C18: Other liabilities: | D18: 0 | E18: 4157.832142 | F18: 0 | G18: 0 | H18: 0 | I18: 4.73616663 | J18: 4427.448397 | K18: 0 | L18: 0 | M18: 0 | N18: 4.89010316 | O18: 3765.31883 | P18: 750 | Q18: 0 | R18: 375 | S18: 1.27765611 | T18: 3827.138497 | U18: 750 | V18: 0 | W18: 375 | X18: 0 | Y18: 3533.581354 | Z18: 0 | AA18: 750 | AB18: 750
B19: 12 | C19: NSFR derivative liabilities | D19: 0 | I19: 4.73616663 | N19: 4.89010316 | S19: 1.27765611 | X19: 0
B20: 13 | C20: All other liabilities and capital instruments not included in the above categories | E20: 4157.832142 | F20: 0 | G20: 0 | H20: 0 | J20: 4427.448397 | K20: 0 | L20: 0 | M20: 0 | O20: 3765.31883 | P20: 750 | Q20: 0 | R20: 375 | T20: 3827.138497 | U20: 750 | V20: 0 | W20: 375 | Y20: 3533.581354 | Z20: 0 | AA20: 750 | AB20: 750
B21: 14 | C21: Total available stable funding (ASF) | H21: 25393.8718 | M21: 24702.14765 | R21: 24563.52719 | W21: 23872.97562 | AB21: 23791.36626
B22: Required stable funding (RSF) Items
B23: 15 | C23: Total high-quality liquid assets (HQLA) | H23: 5773.474842 | M23: 6898.829005 | R23: 6248.602407 | W23: 4506.369591 | AB23: 5291.877919
B24: EU-15a | C24: Assets encumbered for a residual maturity of one year or more in a cover pool | E24: 0 | F24: 0 | G24: 0 | H24: 0 | J24: 0 | K24: 0 | L24: 0 | M24: 0 | O24: 0 | P24: 0 | Q24: 0 | R24: 0 | T24: 0 | U24: 0 | V24: 0 | W24: 0 | Y24: 0 | Z24: 0 | AA24: 0 | AB24: 0
B25: 16 | C25: Deposits held at other financial institutions for operational purposes | E25: 0 | F25: 0 | G25: 0 | H25: 0 | J25: 0 | K25: 0 | L25: 0 | M25: 0 | O25: 0 | P25: 0 | Q25: 0 | R25: 0 | T25: 0 | U25: 0 | V25: 0 | W25: 0 | Y25: 0 | Z25: 0 | AA25: 0 | AB25: 0
B26: 17 | C26: Performing loans and securities: | E26: 3007.424881 | F26: 734.6115007 | G26: 1076.461857 | H26: 2522.249432 | J26: 6008.175438 | K26: 610.1002025 | L26: 331.8995473 | M26: 1282.500049 | O26: 3607.785649 | P26: 180.0776972 | Q26: 1658.397965 | R26: 1915.315502 | T26: 1864.916925 | U26: 844.9402383 | V26: 1349.049352 | W26: 1864.17172 | Y26: 7219.885925 | Z26: 457.9265017 | AA26: 1632.449285 | AB26: 2302.750143
B27: 18 | C27: Performing securities financing transactions with financial customers collateralised by Level 1 HQLA subject to 0% haircut | E27: 0 | F27: 0 | G27: 0 | H27: 0 | J27: 0 | K27: 0 | L27: 0 | M27: 0 | O27: 0 | P27: 0 | Q27: 0 | R27: 0 | T27: 0 | U27: 0 | V27: 0 | W27: 0 | Y27: 0 | Z27: 0 | AA27: 0 | AB27: 0
B28: 19 | C28: Performing securities financing transactions with financial customer collateralised by other assets and loans and advances to financial institutions | E28: 2090.610532 | F28: 0 | G28: 0 | H28: 145.164287 | J28: 5915.865236 | K28: 0 | L28: 0 | M28: 341.3175011 | O28: 3398.026735 | P28: 0 | Q28: 0 | R28: 219.8709455 | T28: 1804.088387 | U28: 0 | V28: 0 | W28: 119.6789686 | Y28: 7166.882407 | Z28: 0 | AA28: 0 | AB28: 441.6757682
B29: 20 | C29: Performing loans to non- financial corporate clients, loans to retail and small business customers, and loans to sovereigns, and PSEs, of which: | E29: 68.27442858 | F29: 0.13146869 | G29: 263.1363021 | H29: 331.5421993 | J29: 91.86941353 | K29: 2.68027485 | L29: 261.5971396 | M29: 356.1468279 | O29: 73.58597132 | P29: 4.1384564 | Q29: 278.5811241 | R29: 356.3055519 | T29: 60.82853774 | U29: 0.12256625 | V29: 268.8471126 | W29: 329.7982166 | Y29: 53.00351814 | Z29: 2.72799773 | AA29: 274.0032973 | AB29: 329.7348132
B30: 21 | C30: With a risk weight of less than or equal to 35% under the Basel II Standardised Approach for credit risk | E30: 0 | F30: 0 | G30: 0 | H30: 0 | J30: 0 | K30: 0 | L30: 0 | M30: 0 | O30: 0 | P30: 0 | Q30: 0 | R30: 0 | T30: 0 | U30: 0 | V30: 0 | W30: 0 | Y30: 0 | Z30: 0 | AA30: 0 | AB30: 0
B31: 22 | C31: Performing residential mortgages, of which: | E31: 0 | F31: 0 | G31: 0 | H31: 0 | J31: 0 | K31: 0 | L31: 0 | M31: 0 | O31: 0 | P31: 0 | Q31: 0 | R31: 0 | T31: 0 | U31: 0 | V31: 0 | W31: 0 | Y31: 0 | Z31: 0 | AA31: 0 | AB31: 0
B32: 23 | C32: With a risk weight of less than or equal to 35% under the Basel II Standardised Approach for credit risk | E32: 0 | F32: 0 | G32: 0 | H32: 0 | J32: 0 | K32: 0 | L32: 0 | M32: 0 | O32: 0 | P32: 0 | Q32: 0 | R32: 0 | T32: 0 | U32: 0 | V32: 0 | W32: 0 | Y32: 0 | Z32: 0 | AA32: 0 | AB32: 0
B33: 24 | C33: Other loans and securities that are not in default and do not qualify as HQLA, including exchange-traded equities and trade finance on-balance sheet products | E33: 848.5399209 | F33: 734.480032 | G33: 813.3255551 | H33: 2045.542946 | J33: 0.4407888583 | K33: 607.4199277 | L33: 70.30240778 | M33: 585.0357202 | O33: 136.1729433 | P33: 175.9392408 | Q33: 1379.816841 | R33: 1339.139005 | T33: 0 | U33: 844.8176721 | V33: 1080.202239 | W33: 1414.694534 | Y33: 0 | Z33: 455.198504 | AA33: 1358.445988 | AB33: 1531.339561
B34: 25 | C34: Interdependent assets | E34: 1742.090708 | F34: 45.10949849 | G34: 352970.6652 | H34: 0 | J34: 4175.46634 | K34: 326.4252694 | L34: 351482.3114 | M34: 0 | O34: 3073.808586 | P34: 673.3533485 | Q34: 352226.4399 | R34: 0 | T34: 6323.356743 | U34: 184.074867 | V34: 337143.7084 | W34: 0 | Y34: 6544.922047 | Z34: 122.6026372 | AA34: 337399.4708 | AB34: 0
B35: 26 | C35: Other assets: | D35: 0 | E35: 15.96405939 | F35: 0 | G35: 891.2415976 | H35: 903.7211776 | I35: 0 | J35: 4.73616663 | K35: 0 | L35: 1159.173727 | M35: 1159.410535 | N35: 0 | O35: 22.1699462 | P35: 0 | Q35: 1200.961596 | R35: 1215.893968 | S35: 0 | T35: 23.87152352 | U35: 0 | V35: 1246.113123 | W35: 1262.22543 | X35: 0 | Y35: 1.14628746 | Z35: 0 | AA35: 1045.753007 | AB35: 1046.772004
B36: 27 | C36: Physical traded commodities | G36: 0 | H36: 0 | L36: 0 | M36: 0 | Q36: 0 | R36: 0 | V36: 0 | W36: 0 | AA36: 0 | AB36: 0
B37: 28 | C37: Assets posted as initial margin for derivative contracts and contributions to default funds of CCPs | E37: 13.70499303 | F37: 0 | G37: 0 | H37: 11.64924408 | J37: 0 | K37: 0 | L37: 0 | M37: 0 | O37: 17.27984304 | P37: 0 | Q37: 0 | R37: 14.68786658 | T37: 18.64841367 | U37: 0 | V37: 0 | W37: 15.85115162 | Y37: 0 | Z37: 0 | AA37: 0 | AB37: 0
B38: 29 | C38: NSFR derivative assets | E38: 0.75513956 | H38: 0.75513956 | J38: 0 | M38: 0 | O38: 0 | R38: 0 | T38: 0 | W38: 0 | Y38: 1.01229817 | AB38: 1.01229817
B39: 30 | C39: NSFR derivative liabilities before deduction of variation margin posted | E39: 1.5039268 | H39: 0.07519634 | J39: 4.73616663 | M39: 0.2368083315 | O39: 4.89010316 | R39: 0.244505158 | T39: 5.22310985 | W39: 0.2611554925 | Y39: 0.13398929 | AB39: 0.0066994645
B40: 31 | C40: All other assets not included in the above categories | E40: 0 | F40: 0 | G40: 891.2415976 | H40: 891.2415976 | J40: 0 | K40: 0 | L40: 1159.173727 | M40: 1159.173727 | O40: 0 | P40: 0 | Q40: 1200.961596 | R40: 1200.961596 | T40: 0 | U40: 0 | V40: 1246.113123 | W40: 1246.113123 | Y40: 0 | Z40: 0 | AA40: 1045.753007 | AB40: 1045.753007
B41: 32 | C41: Off-balance sheet items | E41: 0 | F41: 0 | G41: 8.387598 | H41: 0.4193799 | J41: 0 | K41: 0 | L41: 8.150414 | M41: 0.4075207 | O41: 0 | P41: 0 | Q41: 8.150414 | R41: 0.4075207 | T41: 0 | U41: 0 | V41: 7.042251 | W41: 0.35211255 | Y41: 0 | Z41: 0 | AA41: 7.802903 | AB41: 0.39014515
B42: 33 | C42: Total RSF | H42: 9199.864832 | M42: 9341.14711 | R42: 9380.219398 | W42: 7633.118853 | AB42: 8641.790211
B43: 34 | C43: Net Stable Funding Ratio (%) | H43: 2.760244011 | M43: 2.644444774 | R43: 2.61865167 | W43: 3.127551933 | AB43: 2.753059919
